Workbook

Sheet Qualité-prix (hidden)
B2: LE VRAI RAPPORT QUALITE-PRIX DES PRINCIPAUX FORFAITS
B7: Banque | C7: Nom du package (tarif annuel) | D7: Coût annuel du compte sans Internet | F7: Coût annuel du compte avec Internet | H7: L'avis de Capital (édition octobre 2007)
D8: Avec package | E8: Sans package | F8: Avec package | G8: Sans package
B9: Banque populaire | C9: Equipage 2 | D9: 95 | E9: 69 | F9: 122 | G9: 98 | H9: Cher payé, le forfait ne permet même pas la gestion de ses comptes en ligne. A éviter
B10: Rives de Paris | C10: (95 €)
B11: Banque populaire | C11: Equipage 2 | D11: 126 | E11: 86 | F11: 113 | G11: 73 | H11: A revoir. Ne propose aucun virement externe, ce qui alourdit la facture annuelle.
B12: Val de France | C12: (84 €)
B13: Barclays | C13: Classic | D13: 108 | E13: 129 | F13: 108 | G13: 113 | H13: Pas donné, ce forfait est cependant conseillé : il est rentable dans tous les cas de figure.
C14: (108 €)
B15: BNP Paribas | C15: Esprit Libre | D15: 103 | E15: 78 | F15: 93 | G15: 68 | H15: Malgré deux virements inclus, coûte 30 à 36% plus cher que l'usage à la carte.
C16: Référence (91 €)
B17: Caisse d'épargne | C17: Satellis Essentiel | D17: 101 | E17: 82 | F17: 72 € * | G17: 68 | H17: Les clients utilisant Internet peuvent y trouver un intérêt (compte rémunéré gratuit).
B18: Ile de France Paris | C18: (90 €)
B19: Caisse d'épargne | C19: Satellis Essentiel | D19: 130 | E19: 107 | F19: 116 | G19: 113 | H19: Un des Produits les plus chers, et dépourvu de nombreux services utiles.
B20: Provence-Alpes-Corse | C20: (90 €)
B21: CIC | C21: Essentiel | D21: 104 | E21: 75 | F21: 96 €** | G21: 110 | H21: N'inclut ni opposition ni virement : seulement conseillé aux internautes.
C22: (72 €)
B23: Crédit Agricole | C23: Compte Service | D23: 134 | E23: 81 | F23: 120 | G23: 90 | H23: Le coût réel de ce forfait, qui n'intègre pas la carte bancaire, s'élève à deux fois son prix !
B24: Ile de France | C24: Equilibre Plus (60 €)
B25: Crédit Agricole | C25: Compte Service | D25: 122 | E25: 88 | F25: 131 | G25: 97 | H25: Mal bâti. Alourdit de plus de 25% le coût d'utilisation du compte courant.
B26: Centre Est | C26: Equilibre (51 €)
B27: Crédit du Nord | C27: Norplus option | D27: 117 | E27: 81 | F27: 138 | G27: 111 | H27: Services superflus (assurance, coffre-fort, …), pas d'accès Internet : un forfait médiocre.
C28: Visa (92 €)
B29: Crédit Mutuel | C29: Eurocompte CMB | D29: 88 | E29: 97 | F29: 79 | G29: 100 | H29: Jusqu'à 21 euros d'économie : un package rentable et parmi les moins chers du marché.
B30: de Bretagne | C30: (67 €)
B31: Crédit Mutuel | C31: Eurocompte | D31: 134 | E31: 73 | F31: 120 | G31: 95 | H31: Ce forfait, un des deux plus chers à l'achat, augmente dans tous les cas la facture.
B32: Ile de France | C32: Confort (108 €)
B33: HSBC France | C33: HSBC Dynamique | D33: 94 | E33: 100 | F33: 94 | G33: 86 | H33: Aucune mauvaise surprise avec cette formule, bien conçue. Sauf son prix élevé.
C34: (90 €)
B35: La Banque Postale | C35: Adispo Privilège | D35: 80 | E35: 79 | F35: 67 | G35: 66 | H35: Presque rentable. Donne aussi droit à une franchise d'agios sur les découverts.
C36: (52 €)
B37: LCL | C37: Formule Zen | D37: 121 | E37: 92 | F37: 123 | G37: 97 | H37: S'en tenir à la facturation à la carte fait ici économiser de 26 à 29 euros par an.
C38: (55 €)
B39: Société Générale | C39: Jazz | D39: 112 | E39: 78 | F39: 100 | G39: 64 | H39: Trop de services guère utilisés, comme ces trois chèques de banque par an.
C40: (89 €)
B41: Pour réaliser ce comparatif, nous avons calculé le coût réel des packages de seize banques pour un client effectuant des opérations tout au long de l'année et comparer ce coût avec ce qu'il aurait payé s'il n'avait pas pris le forfait. Conclusion : le coût réel des forfaits est supérieur à leur prix. Parce que des services indispensables n'y figurent pas et sont facturés en plus. Autre leçon à retenir : la facturation à la carte revient le plus souvent moins cher. Sauf à la Barclays, au Crédit Mutuel de Bretagne et chez HSBC, dont les forfaits collent assez biens aux besoins du client.
B42: * Package retenu : Satellis Direct, spécifique à la gestion Internet, à 68 euros par an | F42: ** Package retenu : Global Formule Web, spécifique à la gestion Internet, à 96 euros par an.

Sheet Coût d'un compte (hidden)
B6: Coût d'un compte avec une carte standard sans Internet | N6: Coût d'un compte avec une carte standard et Internet
B7: Les moins chères | F7: Les plus chères | N7: Les moins chères | R7: Les plus chères
B8: 1. | C8: Crédit Agricole | D8: 69 | F8: 1. | G8: Barclays | H8: 129 | N8: 1. | O8: Boursorama | P8: 37 | R8: 1. | S8: Crédit agricole | T8: 161
C9: Nord-Est | O9: Banque | S9: Charente-Périgord
B10: 1. | C10: Banque Populaire | D10: 69 | F10: 2. | G10: Banque populaire | H10: 124 | N10: 2. | O10: Coopabanque | P10: 46 | R10: 2. | S10: Créd. Agr. Charente -Marit. Deux Sèvres | T10: 150
C11: Rives de Paris | G11: côte d'Azur
B12: 3. | C12: Crédit Agricole | D12: 71 | F12: 2. | G12: Crédit agricole | H12: 124 | N12: 2. | O12: Monabanq | P12: 46 | R12: 3. | S12: Banque populaire | T12: 147
C13: Normandie | G13: Anjou | S13: Côte d'Azur
B14: 4. | C14: Crédit Comparatif | D14: 73 | F14: 4. | G14: Crédit agricole | H14: 120 | N14: 4. | O14: Groupama Banque | P14: 53 | R14: 4. | S14: Banque populaire | T14: 140
G15: Charente-Périgord | S15: des Alpes
B16: 4. | C16: Crédit mutuel | D16: 73 | F16: 5. | G16: Crédit mutuel | H16: 118 | N16: 5. | O16: Axa Banque | P16: 57 | R16: 5. | S16: Crédit Mutuel | T16: 138
C17: Ile-de-France | G17: du Sud-Ouest | S17: du Sud-Ouest
B21: Coût d'un compte avec une carte haute gamme sans Internet | N21: Coût d'un compte avec une carte haute gamme et Internet
B22: Les moins chères | F22: Les plus chères | N22: Les moins chères | R22: Les plus chères
B23: 1. | C23: Crédit mutuel | D23: 155 | F23: 1. | G23: Banque populaire | H23: 326 | N23: 1. | O23: Boursorama | P23: 156 | R23: 1. | S23: Banque populaire | T23: 349
C24: Massif central | G24: Côte d'Azur | O24: Banque | S24: Centre Atlantique
B25: 2. | C25: Crédit mutuel | D25: 191 | F25: 2. | G25: Barclays | H25: 319 | N25: 2. | O25: Crédit mutuel | P25: 171 | R25: 1. | S25: Banque populaire | T25: 349
C26: de Bretagne | O26: Massif Central | S26: Côte d'Azur
B27: 3. | C27: Crédit agricole | D27: 196 | F27: 3. | G27: Caisse d'épargne | H27: 315 | N27: 2. | O27: Coopabanque | P27: 173 | R27: 3. | S27: Banque populaire | T27: 330
C28: Centre France | G28: de Bretagne | S28: du Nord
B29: 4. | C29: Créd. Agr. Toulouse | D29: 200 | F29: 4. | G29: Banque populaire | H29: 314 | N29: 4. | O29: Monabanq | P29: 179 | R29: 4. | S29: crédit Agricole | T29: 329
C30: et Midi Toulousain | G30: Centre Atlantique | S30: Charente-Périgord
B31: 5. | C31: Crédit agricole | D31: 203 | F31: 5. | G31: Société marseillaise | H31: 312 | N31: 5. | O31: Crédit agricole | P31: 183 | R31: 5. | S31: Banque populaire | T31: 327
C32: Nord Est | G32: de Crédit | O32: Centre France | S32: des Alpes

Sheet rachat
A1: RACHAT DE PRÊT
A6: SITUATION ACTUELLE | E6: Décomposition montant nouveau prêt
A8: capital restant du en | B8: 2021-01-01 | C8: 245000 | E8: capital dû | F8: =C8 -> 245000
A10: nombre de mensualités restantes | C10: 240 | E10: pénalités (3%) | F10: 2400
A12: mensualité assurance incluse | C12: 669.96 | E12: travaux
A14: Total du | C14: =(C10*C12) -> 160790.4 | E14: FRAIS DOSSIER | F14: 990
A16: COUT TOTAL (interets + assurances) | C16: =C14-C8 -> -84209.6 | E16: CREDIT LOGEMENT | F16: 1926
A18: SITUATION NOUVELLE | E18: AUTRE GARANTIE | F18: 1500
A20: montant nouveau prêt | C20: 123000 | E20: total | F20: =SUM(F8+F10+F12+F16+F18+F14) -> 251816
A22: taux d'intérêts hors assurance | C22: 0.0091
E23: Cout final credit logement si restitution 75%
A24: durée en mois | C24: 196 | F24: =(F16-300)*0.75 -> 1219.5
A26: mensualité sans assurance | C26: =-PMT(C22/12,C24,C20) -> 675.5808888
E27: Assurances du Rachat
A28: assurance mensuelle | B28: 0 | C28: 0
E29: Quotité Monsieur | F29: 1
A30: mensualité assurance incluse | C30: 585.49
E31: Quotité Madame | F31: 0
A33: total dû | C33: =C30*C24 -> 114756.04 | F33: TAUX
E34: Monsieur | F34: 0.0028
A35: coût total | C35: =((C24*C30))-C20 -> -8243.96 | E35: Madame | F35: 0
A37: =IF(B37<0,"perte","gain") -> gain | B37: =-((C30*C24)-C12*C10) -> 46034.36 | C37: 20000 | F37: MENSUALITES
E38: Monsieur | F38: =SUM(C20*F34/12)*F29 -> 28.7
A39: =IF(B37>0,"gain mensuel","") -> gain mensuel | B39: =IF(B37>0,B37/C24,"") -> 234.8691837 | E39: Madame | F39: =SUM(C20*F35/12)*F31 -> 0
E40: Total | F40: =SUM(F38:F39) -> 28.7

Sheet Banque de Bretagne (hidden)
B6: Banque de Bretagne
B11: Créée en 1909, la Banque de Bretagne s’est nourrie au fil du temps de l’expérience et de la mobilisation de personnalités bretonnes. A ce caractère régional bien affirmé et la qualité de services de proximité, elle a pu élargir depuis 1989 sa gamme de services en rejoignant le groupe BNP Paribas Solution packagée: ''Convention DUO LIBERTÉ Plein Ciel'' tarif 67,8 euros Le pack comprend : DUO LIBERTÉ est une offre de services comprenant une carte bancaire, une facilité de caisse (à l'exception de DUO LIBERTÉ Élan et Forfait de compte), la tenue de compte, un relevé mensuel et l'accès illimité aux services de banque à distance. Le prix de DUO LIBERTÉ varie selon les options choisies. Il évolue à chaque date anniversaire du contrat. Coût de la carte Visa sans pack : 35 euros par an Pas de solution Assurance habitation
B14: POINTS FORTS | G14: POINTS FAIBLES
B16: Modularité des échéances Modularité gratuite. A la hausse ou à la baisse sans toutefois pouvoir dépasser la date d'échéance finale d'origine. A compter du 24 ème mois et chaque année. | G16: Modularité des échéances Accessible seulement à compter du 24 ème mois et chaque année.
G20: Report d'échéance Impossible.
G22: Transfert de prêt
G23: Impossible
B24: Pénalités de Remboursement Anticipé Exonération d'Indemnité de Remboursement Anticipé négociable.
B28: Assurances de prêt Possible de proposer CARDIF, April et autres au cas par cas. | G28: Assurances de Prêt Assurances Groupe chère (Natio vie AXA 4208, 0,38% du capital emprunté)
B32: Divers VEFA : Franchise partielle et totale possible sur les intérêts intercalaires. | G32: Divers Pas de prêt mixte et pas de prêt sur 30 ans. Très faible réseau d'agences.
B35: * Réservé à un usage strictement interne ** Informations données à titre indicatif, sans engagement contractuel et susceptibles de modifications ***Toute information contraire doit immédiatement être communiqué au département Animation et Formation

Sheet Barclays (hidden)
B6: Barclays
B11: Barclays c'est 25 millions de clients à travers le monde. Présent dans plus de 60 pays avec 118 000 collaborateurs et 3 000 agences à travers le monde. C'est une banque multispécialiste à destination de clientèles aisées et haut de gamme. Solution Packagée : '' Convention Classic '' tarif 108 euros Le pack comprend : Le forfait Barclays Classic offre une carte de paiement internationale Visa Classic, l'assurance des moyens de paiement Barclays Sécurité, les frais d'opposition sur chèques et prélèvements, une opposition sur carte, les virements nationaux, la gratuité des retraits, un chèque de banque par an et l'exonération des frais de tenue de compte. Barclays Classic inclut également l'accès aux services de banque à distance, une facilité de caisse de 1500 euros et une assurance décès accidentel - perte totale et irréversible d'autonomie accidentelle. Enfin, le titulaire du forfait bénéficie de la rémunération de ses dépôts à 3% bruts (à la condition de dépenser au minimum 750 euros par mois avec sa carte bancaire). Coût de la carte Visa sans pack : 44 euros par an.
B14: POINTS FORTS | G14: POINTS FAIBLES
B16: Modularité des échéances Modularité gratuite Hausse jusqu'à 30% de l'échéance précédente | G16: Modularité des échéances Possible à partir de la 2ème années (1 mois avant la date anniversaire) tous les 12 mois (1 fois par an).
B21: Tarification des services Exemple de tarification : Forfait Barclays Classic --> 9€ / mois. Convention conseillée car rentable dans tous les cas de figure. | G21: Tarification des services Alors que la tarification moyenne d'une carte internationale à débit immédiat est de 34 euros elle est à Barclays à 44 euros. Alors que la tarification moyenne d'une carte haut de gamme est de 113 euros elle est à Barclays de 130 euros . Alors que la moyenne nationale de frais annuel de tenue de compte est de 7 euros elle est de 40 euros à la Barclays.
B23: Divers Compte rémunéré, rémunération à 3% dès le premier euro, jusqu'à 10 000 euros. Conseillers joignables, les conseillers suivent leurs clients en moyenne 8 ans. Ils ont des portefeuilles clients moins important et apportent un service de qualité. VEFA : Amortissement immédiat possible. | G23: Divers Compte rémunéré, pour en bénéficier : être titulaire d'un forfait Barclays et dépenser au moins 750€ par mois avec sa carte bancaire. Banque élitiste qui vise les revenus supérieurs à 50 000 € par an Très faible réseau d'agences. Pas de produits mixtes et pas de prêt sur 30 ans. Pas de franchise partielle ou totale dans le cas de VEFA.
B27: * Réservé à un usage strictement interne ** Informations données à titre indicatif, sans engagement contractuel et susceptibles de modifications ***Toute information contraire doit immédiatement être communiqué au département Animation et Formation

Sheet BNP Paribas (hidden)
B7: BNP Paribas
B12: Un des plus grands réseau bancaire à l'international, 6ème banque mondiale, 1ère entreprise française (source Forbes 2007) Banque généraliste "tous publics", dynamique, dispose d'une très bonne image et d'un réseau d'agences très large (2500 agences) 5ème banque sur 140 en terme de tarification, donc bien placée (selon l'Observatoire de la concurence), internet gratuit, Solution Packagée: '' Convention Esprit Libre Référence '' tarif 91 euros Le pack comprend : Carte Visa à débit immédiat ou différé, 2 chèques de banque et 2 virements permanents (frais de mise en place et frais de virements à l'unité) par an. Une assurance décès accidentel, une assurance des moyens de paiement qui prend en charge les frais d'opposition. Facilité de caisse avec un seuil de perception de 3 EUR / trimestre. . Huit retraits déplacés gratuits par mois. Accès à l'offre multimédia serveur vocal, téléconseillers, Internet (service transactionnel inclus). En option : BNP Paribas Sécurité Plus, l'assurance des moyens de paiement étendue aux moyens de paiement des autres banques. Coût de la carte Visa sans pack : 37 euros par an Solution Assurance habitation : '' Assurance Habitation BNP Paribas'' Elle offre en plus d'une assurance habitation complète (vol, incendie, dégâts des eaux), des services d'assistance au domicile et aux personnes (vous-même et vos proches). Formule Habitat 1 est conçue pour vous si l'appartement que vous occupez (en tant que propriétaire ou locataire, seul ou en famille) se compose de 3 pièces principales maximum. La valeur de vos biens mobiliers reste inférieure à 60 000 € dont 2 000 € pour votre matériel hi-fi, informatique, son, vidéo... Formule Habitat 2 est conçue pour vous si vous vivez en maison ou en appartement. Formule PNO (Propriétaire Non-Occupant) est conçue pour vous si vous avez investi dans un bien que vous louez vide.
B15: POINTS FORTS | G15: POINTS FAIBLES
B17: Modularité des échéances Modularité gratuite Hausse : 2% jusqu’à 10% sans nouvelle étude de dossier, au-delà nouvelle étude et cela par rapport à l'échéance précédente Baisse : 2% mini de la dernière échéance jusqu’à un allongement de la durée initiale de 2 ans maxi. | G17: Modularité des échéances Possible seulement à partir de la 3ème année Si modulation supérieure à 10%, nouvelle étude du dossier et risque de refus
B21: Report des échéances Report des échéances gratuit Possible de 3 à 12 mois et en plusieurs fois, Véritable sécurité en cas de difficulté
B23: Transférabilité du prêt Sur nouvelle opération possible | G23: Transférabilité du prêt 2% du Capital Restant Du (mini 600€, maxi 2000€) L'option de transfert est caduque si l'emprunteur réalise un remboursement anticipé partiel ou une opération de modulation.
B24: Pénalités de Remboursement Anticipé Exonération d'Indemnité de Remboursement Anticipé possible.
B28: Assurances de prêt Acceptation de Cardif Garantie Emprunteur et de Meilleurtaux Emprunteur. | G28: Assurance de prêt ADP groupe très chère (AXA, 36 à 50 ans = 0,41 du montant du prêt et au-dela 0,60%) L'ADP groupe ne contient qu'une invalidité totale à 66%, ne propose pas de protection de la famille, ne propose comme base de remboursement que la perte de revenu. Elle n'exonère pas l'assuré du paiement des cotisations lors des prises en charge par l'assurance
B30: Tarification des services Bien positionnée (5ème banque la moins chère selon une étude) Offre "Esprit Libre" complète et adaptée selon les profils clients. Exemple de tarification : Esprit Libre Référence avec Carte Visa Classic --> 7,55€ / mois | G30: Tarification des services Le magazine Capital révèle en Octobre 2007 que malgré 2 virements inclus, le forfait coûte 30 à 36% plus cher que l'usage à la carte des services.
B31: Divers Financement 110% possible sur jeune à potentiel ou primo accédant Pas de frais de dossier pour les prêts immobiliers. Avantage pour les primo accédants : produit TEC 5 sur 30 ans (fixe 5 ans), produit fixe sur 30 ans. RIB invariant lors de changement d’agence. VEFA : les intérêts intercalaires peuvent être payés mensuellement ou en une fois à la consolidation du prêt ou reporté sur le capital emprunté. | G31: Divers Faible réactivité en raison de mécanisme de décision souvent lourd. Le Pack esprit Libre Référence coûte 30% à 36% plus cher que l'usage des services à la carte malgré deux virements inclus.
B34: * Réservé à un usage strictement interne ** Informations données à titre indicatif, sans engagement contractuel et susceptibles de modifications ***Toute information contraire doit immédiatement être communiqué au département Animation et Formation

Sheet Caisse Epargne IDF (hidden)
B7: Caisse d'Epargne IDF Paris
B12: 3ème groupe bancaire Français ayant pour ambition de devenir '' La banque universelle " Image de marque très forte auprès des Français, banque rajeunissant son image de marque Compte chèque rémunéré (dès le premier euro, avec le Forfait Satellis Essentiel, l'argent de votre compte de dépôt vous rapporte désormais 0,50% jusqu'à 2500 € Prise en charge gratuite du changement des coordonnées bancaires du client (Domilis) Pas de facturation pour les retraits dans les distributeurs autre que CE, si utilisation des distributeurs CE obtention de points S'Miles qui permettent d'avoir des cadeaux Solution Packagée : '' Convention Satellis Essentiel '' tarif 90 euros Le pack comprend : Satellis Essentiel regroupe une carte Visa à débit immédiat, une assurance perte et vol des moyens de paiement, une facilité de caisse, les services de gestion des comptes à distance (Internet, minitel, téléphone et mobile), la rémunération du compte courant. En outre le titulaire est exonéré des frais de tenue de compte, des frais d'émission d'un chèque de banque, il bénéficie d'une assistance opposition, d'un service d'épargne automatique. Il peut également effectuer gratuitement un virement ponctuel et bénéficie d’un échéancier de virement permanent. Coût de la carte Visa sans pack : 34,55 euros par an. Solution Assurance habitation : '' Assurance Habitation Caisse d'Epargne '' FORMULE 1 '',Spécialement conçue pour les jeunes de moins de 26 ans et adaptée à leur mode de vie. - Une garantie en cas de vol jusqu’à 8 000 €. - Le rééquipement en valeur à neuf pour le matériel informatique, image et son de moins de 3 ans, FORMULE 2, les garanties essentielles pour assurer ce qui compte le plus pour vous sans monopoliser votre budget… - Un capital mobilier assuré jusqu’à 32 000 € - Les objets de valeur remboursés en cas de vol jusqu’à 3 200 €, FORMULE 3, pour vous assurer un remboursement optimal et la tranquillité d’esprit en cas de sinistre. - Un capital mobilier assuré jusqu’à 80 000 €. - Le rééquipement en valeur à neuf quel que soit le sinistre. En cas de sinistre important, la prise en charge de plusieurs mensualités du crédit immobilier ou de vos loyers si vous êtes locataire. Avec la FORMULE 3+, des garanties et des options pour couvrir votre capital mobilier jusqu’à 162 000 €.
B15: POINTS FORTS | G15: POINTS FAIBLES
B17: Modularité des échéances Modularité possible et gratuite Modularité accessible dès la 13ème échéance. Hausse : 2.75% jusqu’à 10% sans nouvelle étude du dossier au-delà nouvelle étude par rapport à l'échéance précédente. Baisse : l'allongement de la durée du crédit ne doit pas excéder 2 ans. | G17: Modularité des échéances Au delà de 10% nouvelle étude de la banque avec justificatifs par rapport à l'échéance précédente.
B21: Report d'échéance Possible de reporter 1 à 12 échéances en 1 ou plusieurs fois, à partir de la 18ème échéance.
B24: Transférabilité du prêt Transfert possible et gratuit. | G24: Transférabilité du prêt Soumis à l'acceptation de l'agence gérant la relation avec le client, et si SACCEF OK, et que l'opération se fasse en moins de 2 mois. Frais de dossier à la discrétion de l'agence CE.
B26: Pénalités Remboursement Anticipé Négociable si prévente de l'assurance Multi Risques Habitation.
B29: Garantie SACCEF (moins chère que Crédit Logement). | G29: Garantie Caution SACCEF, non remboursable.
G31: Assurances de Prêt Privilégie son assurances groupe. Accorde peu d'accepation de délégation.
B33: Tarification des services Une des moins chère du marché et un compte rémunéré gratuit. Le magazine Capital Octobre 2007 révèle que le coût annuel d'un compte est le moins cher de toute les CE. La tenue de compte, la gestion par internet et les prélèvements automatiques sont gratuits. Offre diversifiée et complète pouvant satisfaire la clientèle la plus large Exemple de tarification : Formule Satellis Direct ---> 5,65€ / mois.
B35: Divers Compte chèque rémunéré. Large réseau d'agences de proximité sur l'ensemble du territoire. Avantage pour les primo accédants taux fixe sur 30 ans et produit mixte (Tactimmo 3 et 5, fixe 3 ans et 5 ans et capé 2,5 ensuite). | G35: Divers Barème non dérogeable, impossible de décôter par rapport à la grille fournie par la CEIDF. Pas de décote possible sur profil haut de gamme.
B37: * Réservé à un usage strictement interne ** Informations données à titre indicatif, sans engagement contractuel et susceptibles de modifications ***Toute information contraire doit immédiatement être communiqué au département Animation et Formation

Sheet Caisse Epargne Rhone Alpes (hidden)
B7: Caisse d'Epargne Rhône Alpes
B12: 3ème groupe bancaire Français ayant pour ambition de devenir "La banque universelle" Image de marque très forte auprès des Français, banque rajeunissant son image de marque Compte chèque rémunéré (dès le premier euro, avec le Forfait Satellis Essentiel, l'argent de votre compte de dépôt vous rapporte désormais 0,50% jusqu'à 2500 € Prise en charge gratuite du changement des coordonnées bancaires du client (Domilis) Pas de facturation pour les retraits dans les distributeurs autre que CE, si utilisation des distributeurs CE obtention de points S'Miles qui permettent d'avoir des cadeaux Solution Packagée : '' Convention Satellis Essentiel '' tarif 90 euros Le pack comprend : Satellis Essentiel regroupe une carte Visa à débit immédiat, une assurance perte et vol des moyens de paiement, une facilité de caisse, les services de gestion des comptes à distance (Internet, minitel, téléphone et mobile), la rémunération du compte courant. En outre le titulaire est exonéré des frais de tenue de compte, des frais d'émission d'un chèque de banque, il bénéficie d'une assistance opposition, d'un service d'épargne automatique. Il peut également effectuer gratuitement un virement ponctuel et bénéficie d’un échéancier de virement permanent. Coût de la carte Visa sans pack : 34,65 euros par an Solution Assurance habitation : Assurance Habitation Caisse d'Epargne FORMULE 1, spécialement conçue pour les jeunes de moins de 26 ans et adaptée à leur mode de vie. - Une garantie en cas de vol jusqu’à 8 000 €. - Le rééquipement en valeur à neuf pour le matériel informatique, image et son de moins de 3 ans, FORMULE 2, les garanties essentielles pour assurer ce qui compte le plus pour vous sans monopoliser votre budget… - Un capital mobilier assuré jusqu’à 32 000 € - Les objets de valeur remboursés en cas de vol jusqu’à 3 200 €, FORMULE 3, pour vous assurer un remboursement optimal et la tranquillité d’esprit en cas de sinistre. - Un capital mobilier assuré jusqu’à 80 000 €. - Le rééquipement en valeur à neuf quel que soit le sinistre. En cas de sinistre important, la prise en charge de plusieurs mensualités du crédit immobilier ou de vos loyers si vous êtes locataire. Avec la FORMULE 3+, des garanties et des options pour couvrir votre capital mobilier jusqu’à 162 000 €.
B15: POINTS FORTS | G15: POINTS FAIBLES
B17: Modularité des échéances Modularité possible et gratuite A la hausse: jusqu'à 50% de l'échéance initiale. A la baisse: on ne peut descendre en-dessous de l'échéance initiale. | G17: Modularité des échéances Possible uniquement à partir de la 13ème échéance et à date anniversaire
B20: Report d'échéance Possible de reporter 3 à 12 échéances en 1 ou plusieurs fois, à partir de la 18ème échéance, 1 seule fois par an. | G20: Report d'échéance Seulement à partir de la 18ème échéance, et 1 seule fois par an
B23: Transférabilité du prêt Transfert possible et gratuit. | G23: Transférabilité du prêt Soumis à l'acceptation de l'agence gérant la relation avec le client, et si SACCEF OK, et que l'opération se fasse en moins de 2 mois. Frais de dossier à la discrétion de l'agence CE
B26: Pénalités Remboursement Anticipé Négociable | G26: Pénalités Remboursement Anticipé Accepte l'exo uniquement à partir de 5 ans après le début du prêt
G28: Garantie de prêt Caution SACCEF, non remboursable
B30: Assurances de prêt April possible | G30: Assurances de prêt Privilégie son ADP groupe (CNP) à de rares exceptions délégation (APRIL)
B31: Tarification des services Une des moins chère du marché et un compte rémunéré gratuit Offre diversifiée et complète pouvant satisfaire la clientèle la plus large Exemple de tarification : Formule Satellis Essentiel ----> 6,54€ / mois
B32: Divers Compte chèque rémunéré Large réseau d'agences de proximité sur l'ensemble du territoire Pas de facturation si vous retirez dans une autre banque que la Caisse d'Epargne, système de points de fidélité si retrait auprès d'une caisse d'épargne Produits en taux fixe sur 30 ans | G32: Divers Pas de produits Mixte
B36: * Réservé à un usage strictement interne ** Informations données à titre indicatif, sans engagement contractuel et susceptibles de modifications ***Toute information contraire doit immédiatement être communiqué au département Animation et Formation

Sheet Caisse Epargne de Bretagne (hidden)
B7: Caisse d'Epargne Bretagne
B12: 3ème groupe bancaire Français ayant pour ambition de devenir '' La banque universelle " Image de marque très forte auprès des Français, banque rajeunissant son image de marque Compte chèque rémunéré (dès le premier euro, avec le Forfait Satellis Essentiel Solution Packagée : '' Convention Satellis Essentiel '' tarif 90 euros Le pack comprend : Satellis Essentiel regroupe une carte Visa à débit immédiat, une assurance perte et vol des moyens de paiement, une facilité de caisse, les services de gestion des comptes à distance (Internet, minitel, téléphone et mobile), la rémunération du compte courant. En outre le titulaire est exonéré des frais de tenue de compte, des frais d'émission d'un chèque de banque, il bénéficie d'une assistance opposition, d'un service d'épargne automatique. Il peut également effectuer gratuitement un virement ponctuel et bénéficie d’un échéancier de virement permanent. Coût de la carte Visa sans pack : 17,32 euros par an Solution Assurance habitation : Assurance Habitation Caisse d'Epargne FORMULE 1, spécialement conçue pour les jeunes de moins de 26 ans et adaptée à leur mode de vie. - Une garantie en cas de vol jusqu’à 8 000 €. - Le rééquipement en valeur à neuf pour le matériel informatique, image et son de moins de 3 ans, FORMULE 2, les garanties essentielles pour assurer ce qui compte le plus pour vous sans monopoliser votre budget… - Un capital mobilier assuré jusqu’à 32 000 € - Les objets de valeur remboursés en cas de vol jusqu’à 3 200 €, FORMULE 3, pour vous assurer un remboursement optimal et la tranquillité d’esprit en cas de sinistre. - Un capital mobilier assuré jusqu’à 80 000 €. - Le rééquipement en valeur à neuf quel que soit le sinistre. En cas de sinistre important, la prise en charge de plusieurs mensualités du crédit immobilier ou de vos loyers si vous êtes locataire. Avec la FORMULE 3+, des garanties et des options pour couvrir votre capital mobilier jusqu’à 162 000 €.
B15: POINTS FORTS | G15: POINTS FAIBLES
B17: Modularité des échéances Modularité possible et gratuite. A la hausse: maxi 20% de l'échéance initiale. A la baisse: pas moins que l'échéance initiale et à partir de la 12 ème échéance, sans limite. | G17: Modularité des échéances Possible uniquement à partir de la 12ème échéance et à date anniversaire.
G22: Report d'échéance Non.
B25: Transférabilité du prêt transfert de prêt possible | G25: Transférabilité du prêt 327,08€ de frais.
G28: Pénalités remboursement anticipé Non négociable.
G30: Assurance de Prêt Délégation non négociable.
B31: Tarification des services Une des moins chère du marché et un compte rémunéré gratuit. Exemple de tarification : Formule Satellis Essentiel -----> 9€ / mois. | G31: Tarification des services Le magazine Capital Octobre 2007 révèle que la tarification de CE de Bretagne est élevée et la rend peu attractive (prix de la Visa premier 127 euros, d'un envoi de chequier à 6,54 euros)
B32: Divers Compte chèque rémunéré. Large réseau d'agences de proximité sur l'ensemble du territoire. Offre diversifiée et complète pouvant satisfaire la clientèle la plus large. Crédit Duo fixe plus variable.
B37: * Réservé à un usage strictement interne ** Informations données à titre indicatif, sans engagement contractuel et susceptibles de modifications ***Toute information contraire doit immédiatement être communiqué au département Animation et Formation

Sheet C. I. C (hidden)
B6: C.I.C
B11: L'ensemble Crédit Mutuel-CIC est : le 4ème groupe bancaire, 2ème banque de détail, 1er bancassureur et 2ème pour la monétique Banque dynamique et avec un vaste réseau d'agences. Des conseillers agence très professionnels pour les besoins de la clientèle Solution Packagée : '' Convention Essentiel '' tarif 72 euros Le pack comprend : Le Contrat regroupe : une carte internationale à débit immédiat ou différé associée à une assurance perte et vol des moyens de paiement, une facilité de caisse, une assurance décès, des services de banque à distance (Filbanque Particuliers), un service d'épargne automatique, le service monéo, des services de protection (garantie achat). Le titulaire bénéficie en outre d'une exonération totale des frais de retraits déplacés (liée ici à la carte et non au package), ainsi que d'une franchise de 35 opérations sur les frais de traitement des opérations non automatisables. Coût de la carte Visa sans pack : 34 euros par an Solution Assurance habitation : '' Assurance Habitation CIC '' Garantie Tous Risques, rembourse les dommages occasionnés à vos biens assurés : du vase cassé à la chute accidentelle d'un arbre sur votre toit... vous serez intégralement remboursé. Garantie Dommages Électriques vous protège en cas de détérioration ou destruction de vos équipements suite à incendie ou de surtension électrique. Vous êtes indemnisé en valeur à neuf pour la durée que vous avez choisie : jusqu'à 3 ans pour l'informatique et jusqu'à 9 ans pour les objets électriques.
B14: POINTS FORTS | G14: POINTS FAIBLES
B16: Modularité des échéances Modularité possible du prêt dès la 2ème année | G16: Modularité des échéances La modularité est payante (15€ minimum). Limitée à la hausse à 30% de l'échéance initiale et accessible seulement à partir de la 2ème année. Pour la diminution de l'échéance, il ne faut pas que la durée du prêt se rallonge de plus de 2 ans.
B18: Report des échéances Report possible: 12 échéances (suspension des échéances pendant 3 mois et ce 4 fois durant la vie du prêt)
B21: Transférabilité du prêt Transfert de prêt possible | G21: Transférabilité du prêt Frais de dossier possible.
B23: Garantie de prêt Possible garantie caution par CMH (la moins chère du marché).
B24: Assurances de prêt Délégation possible (Télévie) et Premium sous conditions. Offre Assurance De Prêt compétitive avec Assurance Crédit Mutuel. ACE (Tarification agressive pour les jeunes) permet la distinction fumeur/non fumeur et offre les mêmes garanties que le contrat groupe Assurance Crédit Mutuel. | G24: Assurances de prêt L'ADP groupe (ACM) ne propose pas de protection famille, ne fait pas de distinction fumeur/non fumeur, n' a pour base de remboursement que la seule perte de revenu de l'assuré. Elle n'exonère pas l'assuré du paiement des cotisations lors des prises en charge. Le contrat ACM et ACE (jeunes) ne prennent en compte qu'une invalidité totale (66% minimum), la perte de salaire est prise en charge.
G25: Tarification des services Le magazine Capital Octobre 2007 ne conseille pas le forfait qui n'inclut ni opposition, ni virement et qui serait seulement conseillé aux internautes. Beaucoup de services sont plus chers que la moyenne nationale, c'est le cas : pour la réédition du code confidentiel, pour un rejet de prélèvement automatique...
B26: Divers Offre crédit large avec possibilité de financement jusqu'à 30 ans avec une offre à taux mixte (taux fixe 10 ans et variable au-dela sans Indemnité de Remboursement Anticipé). Vaste réseau d'agences sur le territoire. Offre avantageuse pour les jeunes et les primo accédants : produit fixe sur 30 ans, mixte (fixe 10 ans sur 30 ans), (fixe 5 ans), (fixe 10 ans). Si le risque le permet, possibilité d'amortissement immédiat du capital débloqué sur les projets en VEFA. Crédit revente : Relais et rachat du Capital Restant Du. | G26: Divers Frais de dossier systématique forfait 200 €. Franchise partielle uniquement pour les projets en VEFA. Pas de franchise totale sauf sur prêt relais.
B28: * Réservé à un usage strictement interne ** Informations données à titre indicatif, sans engagement contractuel et susceptibles de modifications ***Toute information contraire doit immédiatement être communiqué au département Animation et Formation

Sheet Crédit Agricole IDF (hidden)
B6: Crédit Agricole Ile de France
B11: " Une relation durable, ça change la vie " 1er Groupe Bancaire Français, 1ère banque europénne, 5ème banque mondiale Le Crédit Agricole rajeunit et dynamise son image grâce à sa communication. 1er réseau de proximité bancaire de France Offre jeune spéciale Formule Géniale sur 23 ans : 15 ans fixe modulable puis 8 ans révisable Dégressivité sur les IRA, et tarif assurance avantageux Solution Packagée : '' Convention Service Equilibre Plus '' tarif 60 euros Le pack comprend : une assurance des moyens de paiement, les frais d'opposition, la mise en place de virements permanents. Pour les imprévus, une facilité de caisse assortie d'une assurance décès invalidité et une exonération d'agios sontintégrées. Le service de banque à distance permet de gérer ses comptes courants et comptes titres via Internet.(attention le forfait ne contient pas la carte bancaire) Coût de la carte Visa ou MasterCard sans pack : 35 euros par an Solution Assurance habitation : Multirisques habitation (PACIFICA) Formule Eco : 1 à 4 pièces et 20 000 euros de capital mobilier. Formule Equilibre : 1 à 10 pièces et 50 000 euros de capital mobilier (ou plus si vous le souhaitez) Formule Rééquipement à Neuf : 1 à 20 pièces et 100 000 euros de capital mobilier (ou plus si vous le souhaitez)
B14: POINTS FORTS | G14: POINTS FAIBLES
B16: Modularité des échéances Modularité gratuite A partir de la 13ème échéance Hausse : 30% maxi par rapport à l'échéance précédente Baisse : minoration de l’échéance jusqu’à un allongement de la durée initiale de 3 ans
B20: Report des échéances Report possible et gratuit | G20: Report des échéances Limité à 1 échéance par an
B21: Transférabilité du prêt Transfert de prêt possible et gratuit
G23: Pénalités en cas de remboursement anticipé Exonération d'Indemnité de Remboursement Anticipé non négociables.
G25: Assurances de prêt Délégation non négociable. Assurance Groupe CNP chère et garantie limitée. Pas de liberté donnée au client pour choisir son ADP.
B26: Tarification des services Le magazine Capital Octobre 2007 révèle que le coût annuel d'un compte au Crédit Agricole IDF est globalement bien positionné. Offre "Equilibre+ /Privilège + /Optimum + /Initial /Prélude /Mozaïc" . Exemple de tarification : Privilège + --> 6,10€ / mois. | G26: Tarification des services Tarification des services élevée Le magazine Capital Octobre 2007 révèle que le coût réel du forfait Crédit Agricole n'intègre pas la carte bancaire et s'élève en réalité à 2 fois son prix
B30: Divers N'exige pas la domiciliation des revenus pour le locatif Banque de proximité, généraliste, tout public Offre adaptée pour les investisseurs, produits adaptés pour la construction, produit mixte G2 jusqu'à 25 ans VEFA : franchise partielle ou franchise totale Amortissement immédiat possible | G30: Divers Pas de prêt sur 30 ans Prévoir des frais de dossier
B33: * Réservé à un usage strictement interne ** Informations données à titre indicatif, sans engagement contractuel et susceptibles de modifications ***Toute information contraire doit immédiatement être communiqué au département Animation et Formation

Sheet Crédit Agricole Normandie (hidden)
B6: Crédit Agricole Normandie
B11: "Une relation durable, ça change la vie". 1er Groupe Bancaire Français, 1ère banque europénne, 5ème banque mondiale. Le Crédit Agricole rajeunit et dynamise son image grâce à sa communication. 1er réseau de proximité bancaire de France Solution Packagée : '' Convention Service Equilibre '' tarif 51 euros Le pack comprend : une assurance des moyens de paiement, les frais d'opposition, la mise en place de virements permanents. Pour les imprévus, une facilité de caisse assortie d'une assurance décès invalidité et une exonération d'agios sontintégrées. Le service de banque à distance permet de gérer ses comptes courants et comptes titres via Internet.(attention le forfait ne contient pas la carte bancaire) Coût de la carte Visa ou MasterCard sans pack : 33,50 euros par an Solution Assurance habitation : Formule Eco : 1 à 4 pièces Formule Equilibre : 1 à 10 pièces Formule Rééquipement à Neuf : 1 à 20 pièces
B14: POINTS FORTS | G14: POINTS FAIBLES
B16: Modularité des échéances Modularité possible et gratuite. A la hausse: jusqu'à 30% de l'échéance initiale. A la baisse: il ne faut pas que la durée du prêt se rallonge de plus de 2 ans. | G16: Modularité des échéances Possible uniquement à partir de la 13ème échéance et limitée à 30%.
B20: Report des échéances report d'échéance possible et gratuit. 1 fois par an pour 1 mensualité. | G20: Report des échéances Limité à 1 mois par an.
B21: Transférabilité du prêt Transfert de prêt possible au cas par cas.
G22: Pénalités de remboursement anticipé Exonération difficilement négociable.
B24: Assurances de prêt Négociable difficilement et sous conditions. | G24: Assurances de prêt Possibilité ADP Premium, mais hausse du taux et 153€ de frais Assurance groupe CNP chère et garantie limitée Pas de liberté donnée au client pour choisir son ADP
B26: Tarification des services Offre "Compte Service Avantage /Initial /Confort /Mozaïc" . Exemple de tarification : Privilège --> 5,70€ / mois | G26: Tarification des services Tarification des services élevée Retrait auprès des distributeurs d'autres banques payant : 1€ par retrait au-delà du 5ème Le magasine Capital Octobre 2007 révèle que le forfait Crédit Agricole est mal bati et qu'il alourdit de plus de 25% le coût d'utilisation du compte courant
B27: Divers Banque de proximité. Banque généraliste, tout public. Fixe sur 30 ans. 110% sur 25 ans. 100% plus frais de négo sur 30 ans. VEFA : Franchise partielle uniquement sur les intérêts intercalaires. | G27: Divers Pas de mixte 200€ de frais de dossiers à intégrer
B29: * Réservé à un usage strictement interne ** Informations données à titre indicatif, sans engagement contractuel et susceptibles de modifications ***Toute information contraire doit immédiatement être communiqué au département Animation et Formation

Sheet Crédit Agricole Provence Alpes (hidden)
B7: Crédit Agricole Alpes Provence
B12: "Une relation durable, ça change la vie" 1er Groupe Bancaire Français, 1ère banque europénne, 5ème banque mondiale. Le Crédit Agricole rajeunit et dynamise son image grâce à sa communication. 1er réseau de proximité bancaire de France Solution Packagée : '' Convention Service Equilibre '' tarif 51 euros Le pack comprend : une assurance des moyens de paiement, les frais d'opposition, la mise en place de virements permanents. Pour les imprévus, une facilité de caisse assortie d'une assurance décès invalidité et une exonération d'agios sont intégrées. Le service de banque à distance permet de gérer ses comptes courants et comptes titres via Internet. Attention : le forfait ne contient pas la carte bancaire. Coût de la carte MasterCard sans pack : 42,50 euros par an Solution Assurance habitation : Formule Eco : 1 à 4 pièces Formule Equilibre : 1 à 10 pièces Formule Rééquipement à Neuf : 1 à 20 pièces
B15: POINTS FORTS | G15: POINTS FAIBLES
B17: Modularité des échéances Modularité possible et gratuite. A la hausse: jusqu'à 30% de l'échéance précédente. A la baisse: il ne faut pas que la durée du prêt se rallonge de plus de 3 ans pour un taux fixe, 5 ans pour un taux variable. | G17: Modularité des échéances Possible uniquement à partir de la 13ème échéance et limitée à 30%
B21: Report des échéances Report possible et gratuit Le client a le choix soit de faire un report partiel (uniquement le capital), soit un report total (intérêts + capital). Possibilité de faire une pause (2 à 5 ans) UNIQUEMENT sur étude du dossier. | G21: Report des échéances Possible uniquement à partir de la 13ème échéance. Limité à 1 échéance par an.
B25: Transférabilité du prêt Transfert possible au cas par cas.
B27: Pénalités de remboursement anticipé Exonération négociable sous réserve de vente de l'assurance Multi Risques Habitation. | G27: Pénalités en cas de remboursement anticipé Soumise à la vente de la Multi Risques Habitation du Crédit Agricole.
G29: Assurances de prêt Délégations non négociables. Assurance Groupe CNP chère et garantie limitée. Pas de liberté donnée au client pour choisir son Assurance De Prêt.
B30: Tarification des services Offre "Compte Service Sérénité /Optimum /Initial /Mozaïc" . Exemple de tarification : Sérénité --> 59,76€ / an. Nom du package: '' Convention Service Equilibre Plus '' tarif 60 euros | G30: Tarification des services Tarification des services élevée Retrait auprès des distributeurs d'autres banques payant : 0,94€ / retrait Le magasine Capital Octobre 2007 révèle que le forfait Crédit Agricole est mal bati et qu'il alourdit de plus de 25% le coût d'utilisation du compte courant.
B31: Divers Banque de proximité, généraliste, "Tous publics". Investissement locatif, non domiciliation des revenus négociable Pas de frais de dossier, contrairement à d'autres caisses régionales. Fixe sur 30 ans. Produit "Double détente" sur 30 ans capé +2.
B34: * Réservé à un usage strictement interne ** Informations données à titre indicatif, sans engagement contractuel et susceptibles de modifications ***Toute information contraire doit immédiatement être communiqué au département Animation et Formation

Sheet Caisse Epargne côte d'azur (hidden)
B6: Caisse d'épargne Côte d'Azur
B11: 3ème groupe bancaire Français ayant pour ambition de devenir '' La banque universelle " Image de marque très forte auprès des Français, banque rajeunissant son image de marque Compte chèque rémunéré (dès le premier euro, avec le Forfait Satellis Essentiel, l'argent de votre compte de dépôt vous rapporte désormais 0,50% jusqu'à 2500 € Prise en charge gratuite du changement des coordonnées bancaires du client (Domilis) Pas de facturation pour les retraits dans les distributeurs autre que CE, si utilisation des distributeurs CE obtention de points S'Miles qui permettent d'avoir des cadeaux Solution Packagée : '' Convention Satellis Essentiel '' tarif 73,16 euros Le pack comprend : Satellis Essentiel regroupe une carte Visa à débit immédiat, une assurance perte et vol des moyens de paiement, une facilité de caisse, les services de gestion des comptes à distance (Internet, minitel, téléphone et mobile), la rémunération du compte courant. En outre le titulaire est exonéré des frais de tenue de compte, des frais d'émission d'un chèque de banque, il bénéficie d'une assistance opposition, d'un service d'épargne automatique. Il peut également effectuer gratuitement un virement ponctuel et bénéficie d’un échéancier de virement permanent. Coût de la carte Visa sans pack : 34,82 euros par an Solution Assurance habitation : '' Assurance Habitation Caisse d'Epargne '' FORMULE 1 '',Spécialement conçue pour les jeunes de moins de 26 ans et adaptée à leur mode de vie. - Une garantie en cas de vol jusqu’à 8 000 €. - Le rééquipement en valeur à neuf pour le matériel informatique, image et son de moins de 3 ans, FORMULE 2, les garanties essentielles pour assurer ce qui compte le plus pour vous sans monopoliser votre budget… - Un capital mobilier assuré jusqu’à 32 000 € - Les objets de valeur remboursés en cas de vol jusqu’à 3 200 €, FORMULE 3, pour vous assurer un remboursement optimal et la tranquillité d’esprit en cas de sinistre. - Un capital mobilier assuré jusqu’à 80 000 €. - Le rééquipement en valeur à neuf quel que soit le sinistre. En cas de sinistre important, la prise en charge de plusieurs mensualités du crédit immobilier ou de vos loyers si vous êtes locataire. Avec la FORMULE 3+, des garanties et des options pour couvrir votre capital mobilier jusqu’à 162 000 €.
B14: POINTS FORTS | G14: POINTS FAIBLES
B16: Modularité des échéances Modularité possible et gratuite. A la hausse: augmentation des échéances non limitée si respect du risque A la baisse: possible sous réserve de ne pas descendre en dessous de l'échéance initiale du prêt. Possible dès la première date anniversaire et à chaque date anniversaire du prêt. | G16: Modularité des échéances Impossible de diminuer son échéance en dessous de l'échéance initiale du prêt. Modularité possible uniquement à chaque date anniversaire du prêt. La mensualité augmentée court pour 12 mois minimum jusqu'à la prochaine date anniversaire, ce qui est contraignant si un problème survient car il est impossible de baisser la mensualité avant la prochaine date anniversaire.
B20: Report d'échéance Possible de reporter 12 échéances maximumm en 1 ou plusieurs fois, à partir de la 18ème échéance. | G20: Report d'échéance Un minimum de 3 échéances est demandé à chaque suspension (impossible de suspendre 1 seule échéance) Uniquement possible à partir de la 18ème mensualité
B22: Transférabilité de prêt Transfert de prêt possible | G22: Transférabilité de prêt Soumis à l'acceptation de l'agence gérant la relation avec le client, et si SACCEF OK, et que l'opération se fasse en moins de 2 mois. Frais de dossier à la discrétion de l'agence CE.
B23: Pénalités Remboursement Anticipé Négociable au cas par cas
B25: Garantie de prêt SACCEF a un coût initial moins cher que Crédit Logement
B26: Garantie de prêt Caution SACCEF (moins chère que Crédit Logement) | G26: Garantie de prêt Caution SACCEF, non remboursable
G28: Assurances de Prêt Privilégie son assurances groupe. Accorde peu d'accepation de délégation.
B30: Tarification des services Une des moins chère du marché et un compte rémunéré gratuit. Le magazine Capital Octobre 2007 révèle que le coût annuel d'un compte est le moins cher de toute les CE. La tenue de compte, la gestion par internet et les prélèvements automatiques sont gratuits. Offre diversifiée et complète pouvant satisfaire la clientèle la plus large. Exemple de Pack : Formule Satellis Essentiel Plus ---> 7,43€ / mois.
B32: Divers Compte chèque rémunéré. Délivrance du Livret A. Large réseau d'agences de proximité sur l'ensemble du territoire. | G32: Divers Pas de décote possible sur profil haut de gamme. Pas de produits mixtes même sur 30 ans.
B34: * Réservé à un usage strictement interne ** Informations données à titre indicatif, sans engagement contractuel et susceptibles de modifications ***Toute information contraire doit immédiatement être communiqué au département Animation et Formation

Sheet Banque Populaire des Alpes (hidden)
B6: Banque Populaire des Alpes
B11: 163 agences de proximité en région. L'un des principaux réseaux bancaires de France, le groupe Banques Populaires est composé de 18 Banques Populaires régionales, comptant plus de 7.000.000 de clients dont 3.200.000 sociétaires 2.878 agences en France et présent dans 68 pays Solution packagée : '' Convention Equipage Classique '' tarif 91,44 euros Le pack comprend : La carte bancaire internationale : Visa Classic / Visa Premier / Visa Infinite suivant la convention choisie, l’assurance de vos moyens de paiement : protection contre les conséquences d’une perte ou d’un vol de vos moyens de paiement, clés, papiers et même contre le vol de votre mobile, l’autorisation de découvert pour prévenir les aléas de trésorerie assortie d'une assurance dècès toutes causes, la franchise d’agios de 7 €, le service d’informations juridiques pour des réponses personnalisées, les accès à la banque à distance. Coût de la carte Visa ou MasterCard sans pack : 43 euros par an Solution Assurance habitation : '' Assur Bp Habitat '' : - En cas de sinistre, l'habitation est garantie en valeur de reconstruction à neuf à vie - En cas de sinistre ou de vol, le mobilier est garanti en valeur de remplacement à vie, - Remboursement à neuf jusqu'à 7 ans d’ancienneté sur tout le matériel électronique, électrique et de sport
B14: POINTS FORTS | G14: POINTS FAIBLES
B16: Modularité des échéances Modularité gratuite Possibilité d'augmentation jusqu'à 20% de l'échéance précédente Pour la diminution de l'échéance, il ne faut pas que la durée du prêt se rallonge de plus de 2 ans | G16: Modularité des échéances Possible uniquement à partir de la 3ème année et limitée à 20%. Modularité possible uniquement à chaque date anniversaire du prêt. Le client garde sa mensualité modulée sur 12 mois minimum. La modularité n'est pas possible sur les prêts de 25 ans (ou négociable au cas par cas).
G20: Report des échéances Impossible.
G22: Transfert de prêt Impossible.
G25: Pénalités en cas de remboursement anticipé Négociation possible à 1,5%, 3% si rachat à la concurrence.
B27: Garantie SOCAMI, restitution intégrale du fond mutuel.
B29: Assurances de prêt Délégation possible pour PREMIUM. | G29: Assurances de prêt Frais de délégation de 320€.
B30: Divers Banque de proximité et bien implantée en région Alpes, notamment en altitude. Avantages pour les primo accédants ou investisseurs car produit mixte sur 25 ans avec période fixe de 5, 7 ou 10 ans. VEFA : Franchise partielle et totale possible sur les intérêts intercalaires. | G30: Divers Pas de prêt sur 30 ans. Pas d'amortissement immédiat du capital.
B33: * Réservé à un usage strictement interne ** Informations données à titre indicatif, sans engagement contractuel et susceptibles de modifications ***Toute information contraire doit immédiatement être communiqué au département Animation et Formation

Sheet Banque Populaire du Nord (hidden)
B6: Banque Populaire du Nord
B11: 163 agences de proximité en région. L'un des principaux réseaux bancaires de France, le groupe Banques Populaires est composé de 18 Banques Populaires régionales, comptant plus de 7.000.000 de clients dont 3.200.000 socétaires 2.878 agences en France et présent dans 68 pays Solution Packagée : '' Convention Equipage Classique '' tarif 91,44 euros Le pack comprend : La carte bancaire internationale : Visa Classic / Visa Premier / Visa Infinite suivant la convention choisie, l’assurance de vos moyens de paiement : protection contre les conséquences d’une perte ou d’un vol de vos moyens de paiement, clés, papiers et même contre le vol de votre mobile, l’autorisation de découvert pour prévenir les aléas de trésorerie assortie d'une assurance dècès toutes causes, la franchise d’agios de 7 €, le service d’informations juridiques pour des réponses personnalisées, les accès à la banque à distance. Coût de la carte Visa ou MasterCard sans pack : 43 euros par an Solution Assurance habitation : '' Assur Bp Habitat '' : - En cas de sinistre, l'habitation est garantie en valeur de reconstruction à neuf à vie - En cas de sinistre ou de vol, le mobilier est garanti en valeur de remplacement à vie, - Remboursement à neuf jusqu'à 7 ans d’ancienneté sur tout le matériel électronique, électrique et de sport
B14: POINTS FORTS | G14: POINTS FAIBLES
B16: Modularité des échéances Possible 3 fois sans frais. Possibilité d'augmentation en restant dans les normes. Pour la diminution de l'échéance, il ne faut pas que la durée du prêt se rallonge de plus de 2 ans. | G16: Modularité des échéances Possible uniquement à partir de la 3ème année et limitée à 20%
B19: Report des échéances Possible de suspendre 24 échéances en une ou plusieurs fois.
G20: Transferabilité du prêt Impossible.
G21: Pénalités en cas de remboursement anticipé Très difficile à obtenir
B22: Garantie Avec SOCAMI, restitution intégrale du fond mutuel. Possibilité de prendre CASDEN, SACCEF.
B25: Assurances de prêt Délégation MGEN possible. | G25: Assurances de prêt Majoration des conditions si délégation.
B28: Divers Financement à 110% possible. | G28: Divers Pas de prêt sur 30 ans. Franchise partielle uniquement pour la VEFA.
B31: * Réservé à un usage strictement interne ** Informations données à titre indicatif, sans engagement contractuel et susceptibles de modifications ***Toute information contraire doit immédiatement être communiqué au département Animation et Formation

Sheet Crédit du Nord (hidden)
B6: Crédit du Nord
B11: Le groupe Crédit du Nord est une filiale à 80% du groupe Société Générale, et à 20% du groupe Dexia. Le groupe Crédit du Nord est aujourd'hui une fédération de 7 banques régionales : le Crédit du Nord, la Banque Courtois dans le Sud Ouest, la banque Kolb dans l'Est, la banque Laydernier en Haute Savoie, Savoie, Ain et Isère, la banque Muger dans le Centre, la banque Rhône Alpes, la banque Tarneaud dans le Centre Ouest Atlantique. Banque jeune et dynamique qui cible une clientèle de jeunes cadres au profils évolutifs. Banque élitiste (3000€ pour un celibataire et 5000€ pour un couple) en contre partie les conseillers du CDN sont très compétents et disponibles pour répondre éfficacement au besoin de cette clientèle exigente. Assurance compétitive à environ 0,20% pour les jeunes. Tarification assez performante si apport minimum 20% Produits phare comme : "Crédit Global immobilier" incluant le prêt relai et le prêt principal "Libertimmo Cape -1" qui ne peut que baisser dans la limite de -1% Forte modularité des échéances et très rapide (dès 6 mois) Acceptation possible d'Assurances De Prêts externes. Solution Packagée : '' Convention Norplus Option Visa '' tarif 92 euros Le pack comprend : Norplus Visa Comprend : une carte Visa à débit immédiat (ou différé) avec garantie achat, une assurance perte et vol des moyens de paiement ainsi que les frais d'opposition et le renouvellement de la carte, une facilité de caisse avec 8 euros d'exonération d'agios, une carte de crédit revolving (avec ou sans package) et des chèques de banque gratuits. En option, le titulaire accède à divers services avec 20% de remises : service Internet, assurances diverses, crédit, etc…). Coût de la carte Visa sans pack : 37 euros par an Solution Assurance habitation : Partenaire Eurofil
B14: POINTS FORTS | G14: POINTS FAIBLES
B16: Modularité des échéances Modularité possible et gratuite Dès la 6ème échéance et non limitée Hausse : +100% du montant de l'échéance précédente Baisse : aucun plancher tant que la durée initiale du crédit est respectée
B17: Report des échéances Report possible et gratuit | G17: Report des échéances Seulement une échéance par an avec interval de 12 mois minimum
B18: Transférabilité du prêt
B19: Transfert de prêt possible sans frais
G20: Pénalités en cas de remboursement anticipé Exonération d'indemnités en cas de remboursement anticipé difficile à négocier
B22: Assurances de prêt Délégation d'assurance possible (Premium)
G23: Tarification des services Le magazine Capital Octobre 2007 révèle que le forfait CDN est médiocre et contient des services superflus (assurance, coffre fort…) et ne propose pas un accès internet Elle fait partie selon ce même magazine des banques les plus chères (carte bancaire onéreuse et frais élevés pour gérer ses comptes via internet)
B24: Divers Offre de services haut de gamme 20% de réduction sur certaines opérations si souscription du pack Norplus | G24: Divers Trop élitiste, pas de financement à 110%, 20% d'apport minimum. Proximité des points de vente limitée par rapport à d'autres établissements Internet non inclus dans le pack Norplus Pas de mixte et pas de 30 ans
B26: * Réservé à un usage strictement interne ** Informations données à titre indicatif, sans engagement contractuel et susceptibles de modifications ***Toute information contraire doit immédiatement être communiqué au département Animation et Formation

Sheet Crédit Mutuel IDF (hidden)
B6: Crédit Mutuel Ile de France
B11: Deuxième banque de détail en France, 1er bancassureur de France, 2ème banque dans le financement de l'habitat Le groupe Crédit Mutuel comprend le réseau du Crédit Mutuel et l’ensemble de ses filiales, dont le CIC Tarification avantageuse pour les enseignants et professions médicales Caution Crédit Mutuel Habitat (une des moins chère du marché) Solution Packagée : '' Convention Eurocompte Confort '' tarif 108 euros Le pack comprend : Carte Visa à débit immédiat avec garantie achat, assurance perte et vol des moyens de paiement, exonération des frais de tenue de compte et d'opposition (sur carte et chèques), facilité de caisse, services de banque à distance (service Internet, réduction sur le service d'alertes sur compte), franchise de 4 virements externes gratuits par mois via Internet, franchise de 6 retraits gratuits, assurance décès, service d'épargne automatique, prime d'épargne sur le livret Fidélité, 3 chèques de banque gratuits, envoi des chéquiers en pli simple, carte révolving et Payweb Card incluses. En option : découvert Souplesse, réduction sur les frais de dossier des crédits auto ou consommation. Coût de la carte Visa ou MasterCard sans pack : 33,33 euros Solution Assurance Habitation : "Assurance Habitation du Crédit Mutuel" Vous choisissez parmi quatre offres celle qui correspond le mieux à vos exigences pour couvrir votre domicile et vos biens. Selon les caractéristiques de votre habitation et de votre budget, vous fixez votre niveau de garantie et de franchise. Vous disposez aussi d'un large choix d'options pour renforcer votre protection. En plus, dès que vous avez accumulé 2 années d'assurance sans sinistre, vous bénéficiez d'un bonus de franchise. Il s'agit d'une prise en charge partielle de votre franchise. Ce bonus augmente tous les ans et peut, à terme, couvrir intégralement votre franchise, vous garantissant ainsi une meilleure indemnisation en cas de sinistre.
B14: POINTS FORTS | G14: POINTS FAIBLES
B16: Modularité des échéances Modularité gratuite. A la hausse: 5% minimum de l'échéance précédente, pas de maximum (soumis à étude). A la baisse: il ne faut pas que la durée du prêt dépasse de plus de 3 ans la durée initiale. | G16: Modularité des échéances Frais à la discrétion de l'agence gérant la relation avec le client.
G21: Report des échéances Impossible
B22: Transférabilité du prêt Possible sans frais | G22: Transférabilité du prêt Conditions contraignantes : soumis à accord de la caisse de CM et de l'organisme de caution.
B25: Pénalités de Remboursement Anticipé Exonération d'Indemnités de Remboursement Anticipé négociables
B27: Garantie de prêt Caution CMH la moins chère du marché
B28: Assurances de Prêt Assurance De Prêt compétitive avec l'offre ACM. L'offre ACE (tarification agressive pour les jeunes) permet la distinction fumeur/non fumeur et offre les mêmes garanties que le contrat groupe ACM. Délégation possible avec Télévie. | G28: Assurances de Prêt Pas de liberté donnée au client pour choisir son Assurance De Prêt. L'ADP groupe (ACM) ne propose pas de protection famille, ne fait pas de distinction fumeur/non fumeur, n' a pour base de remboursement que la seule perte de revenu de l'assuré. Elle n'exonère pas l'assuré du paiement des cotisations lors des prises en charge. Le contrat ACM et ACE (jeunes) ne prennent en compte qu'une invalidité totale (66% minimum), la perte de salaire est prise en charge.
B29: Tarification des services Exemple de tarification :Eurocompte Duo confort --> 10,64€ / mois. | G29: Tarification des services Le magazine Capital Octobre 2007 révèle que le forfait du Crédit Mutuel est un des 2 plus chers à l'achat. Ce forfait augmente dans tous les cas, l'accès internet est cher (38 euros par an)
B30: Divers Offre souple, avec une spécificité pour les enseignants et certaines professions médicales. Offre crédit large avec possibilité de financement jusqu'à 30 ans avec une offre à taux mixte (taux fixe 10 ans et variable) Assurance MRH compétitive avec Assurance Crédit Mutuel (protection vol avec système d'alarme garanti 4ans, à prix réduit avec 1 an de télésurveillance 24h sur 24h offert) ImmoSouple 1 : taux fixe 10 ans sur emprunt de 11 à 30 ans. Taux fixe 5 ans sur emprunt à 30 ans. VEFA : Report possible du paiement du capital et des intérêts, dans le cadre du financement de la construction/acquisition d'un logement neuf/ancien/travaux d'aménagement pour Résidence Principale/Secondaire/Locative. Durée maxi = 24 mois. | G30: Divers Rigidité dans la gestion des comptes courants. Peu de remboursement de la côtisation à la Garantie CMH (maxi 152€).
B33: * Réservé à un usage strictement interne ** Informations données à titre indicatif, sans engagement contractuel et susceptibles de modifications ***Toute information contraire doit immédiatement être communiqué au département Animation et Formation

Sheet Crédit Mutuel Océan (hidden)
B6: Crédit Mutuel Océan
B11: Deuxième banque de détail en France, 1er bancassureur de France, 2ème banque dans le financement de l'habitat Le groupe Crédit Mutuel comprend le réseau du Crédit Mutuel et l’ensemble de ses filiales, dont le CIC. Tarification avantageuse pour les enseignants. Solution Packagée : '' Convention Eurocompte Confort '' Le pack comprend : Carte Visa à débit immédiat avec garantie achat, assurance perte et vol des moyens de paiement, exonération des frais de tenue de compte et d'opposition (sur carte et chèques), facilité de caisse, franchise de 6 retraits gratuits, assurance décès, service d'épargne automatique, prime d'épargne sur le livret Fidélité, 3 chèques de banque gratuits, envoi des chéquiers en pli simple, carte révolving et Payweb Card incluses. En option : découvert Souplesse, réduction sur les frais de dossier des crédits auto ou consommation. (L'accès internet facturé hors package) Coût de la carte MasterCard sans pack : 33 euros par an Solution Assurance Habitation : "Assurance Habitation du Crédit Mutuel" Vous choisissez parmi quatre offres celle qui correspond le mieux à vos exigences pour couvrir votre domicile et vos biens. Selon les caractéristiques de votre habitation et de votre budget, vous fixez votre niveau de garantie et de franchise. Vous disposez aussi d'un large choix d'options pour renforcer votre protection. En plus, dès que vous avez accumulé 2 années d'assurance sans sinistre, vous bénéficiez d'un bonus de franchise. Il s'agit d'une prise en charge partielle de votre franchise. Ce bonus augmente tous les ans et peut, à terme, couvrir intégralement votre franchise, vous garantissant ainsi une meilleure indemnisation en cas de sinistre.
B14: POINTS FORTS | G14: POINTS FAIBLES
B16: Modularité des échéances Gratuite. A la hausse, 5% minimum de l'échéance précédente, pas de maximum (soumis à étude). A la baisse, il ne faut pas que la durée du prêt dépasse de plus de 3 ans la durée initiale. | G16: Modularité des échéances Frais à la discrétion de l'agence gérant la relation avec le client.
B21: Report d'échéance Gratuit, faisable jusqu'à 6 mois, uniquement différé du capital, utilisable dés le départ, une seule fois en solution de dépannage. | G21: Report d'échéance Non contractuel dans l'offre mais techniquement possible, au cas par cas.
G22: Transférabilité du prêt Non
B23: Pénalité de Remboursement Anticipé Exonération des Indemnité de Remboursement Anticipé automatique : fait partie de l'offre CM Océan.
B24: Garantie de prêt Garantie Crédit Mutuel Habitat, la caution la moins chère en coût initial.
B25: Assurances de Prêt Assurance De Prêt compétitive avec ACM. ACE (Tarification agressive pour les jeunes) permet la distinction fumeur/non fumeur et offre les mêmes garanties que le contrat groupe ACM. Possible uniquement de proposer Télévie en délégation. | G25: Assurances de Prêt Frais de délégation à prendre en compte de 78,66€ Pas de liberté donnée au client pour choisir son Assurance De Prêt L'ADP groupe (ACM) ne propose pas de protection famille, ne fait pas de distinction fumeur/non fumeur, n' a pour base de remboursement que la seule perte de revenu de l'assuré. Elle n'exonère pas l'assuré du paiement des cotisations lors des prises en charge Le contrat ACM et ACE (jeunes) ne prennent en compte qu'une invalidité totale (66% minimum), la perte de salaire est prise en charge
B27: Tarification des services Exemple de tarification :Eurocompte --> 6,08€ / mois. Amortissement immédiat possible sur le prêts en VEFA. | G27: Tarification des services Le magazine Capital Octobre 2007 révèle que le forfait du Crédit Mutuel est un des 2 plus chers à l'achat. Ce forfait augmente dans tous les cas la facture
B29: Divers Le Crédit Mutuel est largement implanté sur le territoire français. Offre souple, avec une spécificité pour les enseignants et certaines professions médicales. | G29: Divers Rigidité dans la gestion des comptes courants Peu de remboursement de la côtisation à la Garantie CMH (maxi 152€)
B35: * Réservé à un usage strictement interne ** Informations données à titre indicatif, sans engagement contractuel et susceptibles de modifications ***Toute information contraire doit immédiatement être communiqué au département Animation et Formation

Sheet Crédit Mutuel Sud Est (hidden)
B6: Crédit Mutuel Sud Est
B11: Deuxième banque de détail en France, 1er bancassureur de France, 2ème banque dans le financement de l'habitat Le groupe Crédit Mutuel comprend le réseau du Crédit Mutuel et l’ensemble de ses filiales, dont le CIC Tarification avantageuse pour les enseignants Solution Packagée : '' Convention Eurocompte Confort '' Le pack comprend : Carte Visa à débit immédiat avec garantie achat, assurance perte et vol des moyens de paiement, exonération des frais de tenue de compte et d'opposition (sur carte et chèques), facilité de caisse, services de banque à distance (service Internet, réduction sur le service d'alertes sur compte), franchise de 4 virements externes gratuits par mois via Internet, franchise de 6 retraits gratuits, assurance décès, service d'épargne automatique, prime d'épargne sur le livret Fidélité, 3 chèques de banque gratuits, envoi des chéquiers en pli simple, carte révolving et Payweb Card incluses. En option : découvert Souplesse, réduction sur les frais de dossier des crédits auto ou consommation. Coût de la carte Visa ou MasterCard sans pack : 33,33 euros Solution Assurance Habitation : "Assurance Habitation du Crédit Mutuel" Vous choisissez parmi quatre offres celle qui correspond le mieux à vos exigences pour couvrir votre domicile et vos biens. Selon les caractéristiques de votre habitation et de votre budget, vous fixez votre niveau de garantie et de franchise. Vous disposez aussi d'un large choix d'options pour renforcer votre protection. En plus, dès que vous avez accumulé 2 années d'assurance sans sinistre, vous bénéficiez d'un bonus de franchise. Il s'agit d'une prise en charge partielle de votre franchise. Ce bonus augmente tous les ans et peut, à terme, couvrir intégralement votre franchise, vous garantissant ainsi une meilleure indemnisation en cas de sinistre.
B14: POINTS FORTS | G14: POINTS FAIBLES
B16: Modularité des échéances Gratuite. A la hausse, 5% minimum de l'échéance précédente, pas de maximum (soumis à étude). A la baisse, il ne faut pas que la durée du prêt dépasse de plus de 3 ans la durée initiale. | G16: Modularité des échéances Obligation de réétudier le dossier à chaque modulation
G20: Report d'échéance Impossible
B21: Transfert de prêt Possible uniquement si garantie caution CMH
B22: Pénalités de Remboursement Anticipé Exonération des Indemnités de Remboursement Anticipé à justifier | G22: Pénalités de Remboursement Anticipé L'exonération des Indemnités de Remboursement Anticipé doit être systématiquement justifiée.
B23: Garantie de prêt Garantie CMH, la caution la moins chère en coût initial
B24: Assurances de Prêt L'Assurance De Prêt est compétitive avec ACM. L'offre ACE a une tarification agressive pour les jeunes : permet la distinction fumeur/non fumeur et offre les mêmes garanties que le contrat groupe ACM. Possibilité Premium, Télévie et autres contrats externes | G24: Assurances de Prêt Liberté limitée donnée au client pour choisir son Assurance De Prêt. L'ADP groupe (ACM) ne propose pas de protection famille, ne fait pas de distinction fumeur/non fumeur, n' a pour base de remboursement que la seule perte de revenu de l'assuré. Elle n'exonère pas l'assuré du paiement des cotisations lors des prises en charge
B26: Tarification des services Exemple de tarification : Eurocompte --> 6,25€ / mois | G26: Tarification des services Le magazine Capital Octobre 2007 révèle que le forfait du Crédit Mutuel est un des 2 plus chers à l'achat. Ce forfait augmente dans tous les cas la facture
B28: Divers Le Crédit Mutuel est largement implanté sur le territoire français. Offre souple, avec une spécificité pour les enseignants et certaines professions médicales, professions de armées et juridiques Produit fixe 5 ans sur 30 ans | G28: Divers Peu de remboursement de la côtisation à la Garantie CMH (maxi 152€) Rigidité dans la gestion des comptes courants Pas de produits mixtes
B30: * Réservé à un usage strictement interne ** Informations données à titre indicatif, sans engagement contractuel et susceptibles de modifications ***Toute information contraire doit immédiatement être communiqué au département Animation et Formation

Sheet HSBC (hidden)
B7: HSBC
B12: Banque patrimoniale apportant un service spécialisé et très professionnel pour une clientèle ''Haut de gamme'' Présente dans 82 pays du monde sur plus de 10 000 points de vente HSBC se revendique établissement haut de gamme à vocation internationale Service client étroit et de bonne qualité. Les chargés de clientèle gèrent des portefeuilles moins lourds Solution Packagée : '' Convention HSBC Dynamique '' tarif 90 euros Le pack comprend : HSBC Dynamique inclut : une carte Visa Internationale, les frais de banque au quotidien, tels que les frais de tenue de compte, les frais liés aux virements, les frais de retraits déplacés, un service de virements automatiques vers un compte épargne. Des produits d'assurance, pour les moyens de paiement (frais d'opposition inclus), assurance bonne livraison Internet, assurance décès accidentel. Concernant la banque à distance : gestion des comptes via Internet, minitel, mobile et téléphone. Sur le volet découvert : facilité de trésorerie dont le plafond est fixé à 3 000 euros, exonération d’agios à hauteur de 7.50 EUR par trimestre. Possibilité de souscrire à l’option internationale, HSBC Passeport. Coût de la carte Visa sans pack : 33 euros par an. Solution Assurance habitation : '' HSBC Habitation '' permet d’assurer votre logement que vous soyez propriétaire ou locataire grâce aux formules Compact et Confort, ou bien propriétaire non occupant grâce à la formule PNO. • La formule COMPACT permet d’assurer les petites surfaces de 1 à 2 pièces en bénéficiant des garanties complètes à un prix spécialement adapté pour les étudiants. • La formule CONFORT permet d’adapter les garanties aux spécificités de votre habitation grâce à un large choix d’options et d’extensions de garanties. • Le contrat "Propriétaire Non Occupants" (PNO) permet d'assurer les propriétaires de maisons ou d'appartements qu'ils n'occupent pas ou qu'ils louent à des tiers.
B15: POINTS FORTS | G15: POINTS FAIBLES
B17: Modularité des échéances Modularité gratuite Modularité puissante: doublement de la mensualité initiale | G17: Modularité des échéances Modularités limitées à 5 pendant la vie du prêt
B18: Possible dès la 12 ème échéance, 5 fois sur toute la durée du prêt, 12 mois minimum entre chaque modulation Hausse : doublement de la mensualité initiale Baisse : la durée du crédit ne peut être rallongée de plus de 2 ans
G19: Report d'échéance Impossible
G20: Transfert de prêt Impossibilité de transférer son prêt sur une nouvelle acquisition
B21: Pénalités de Remboursement Anticipé Exonération d'Indemnité de Remboursement Anticipé au cas par cas
B23: Assurances de Prêt Assurance groupe ERISA calculée sur le Capital Restant Du. Délégations possibles au cas par cas. | G23: Assurances de Prêt Assurance groupe ERISA élevée (0,33% en moyenne) L'ADP groupe ne propose pas de protection famille, ne fait de distinction fumeur/non fumeur. Elle n'exonère pas l'assuré du paiement des cotisations pendant la prise en charge par l'assureur
B24: Tarification des services Le magazine Capital Octobre 2007 révèle que ce forfait ne contient aucune mauvaise surprise et est bien conçu Pour Capital la tarification n'est pas chère avec un bon point pour les retraits à l'étranger Offre "HSBC Dynamique" . Exemple de tarification : HSBC Dynamique --> 7,5€ / mois | G24: Tarification des services Le magazine Capital Octobre 2007 révèle que le prix de ce forfait est élevé
B25: Divers VEFA : La franchise totale des intérêts intercalaires est possible.
B29: * Réservé à un usage strictement interne ** Informations données à titre indicatif, sans engagement contractuel et susceptibles de modifications ***Toute information contraire doit immédiatement être communiqué au département Animation et Formation

Sheet L.C.L (hidden)
B7: LCL Le Crédit Lyonnais
B12: " Avec LCL demandez plus à votre argent " LCL s'est engagé à en donner plus à ses clients pour les conquérir et les fidéliser, filiale du Groupe CASA (Crédit Agricole) L'offre packagée la moins chère du marché Conditions compétitives pour les jeunes Banque généraliste et '' Tous publics '' avec un vaste réseau d'agences Solution Packagée : '' Convention Formule Zen '' tarif 55 euros Le pack comprend : A partir d'un socle de services obligatoires, le client choisit ensuite les produits à la carte. Le socle commun comprend : la mise en place et le renouvellement de la facilité de caisse (exonération jusqu'à 8,00 EUR par trimestre), une assurance décès accidentel, une assurance des moyens de paiement, la synthèse annuelle des avoirs. La consultation des comptes par Internet étant gratuite hors package. Ensuite, les services de banque au quotidien bénéficient d'une réduction de 20% sur le tarif de base (carte, LCL Avertis, Sécurimobile standard, e-sécurillon, frais bancaires, Icomme Info, Lcl Interactif) Coût de la carte Visa sans pack : 37 euros Solution Assurance habitation : Assurance Habitation Jeunes Actifs Pour les 18-35 ans locataires d'un studio ou d'un 2 pièces. Assurance Habitation Standing Pour une garantie optimale : Indemnisation au prix du neuf, franchise supprimée...
B15: POINTS FORTS | G15: POINTS FAIBLES
B17: Modularité des échéances Modularité gratuite A partir de la 3ème année Hausse : +10% de l’échéance précédente Baisse : allongement de la durée initiale + 2 ans. Entre chaque modulation un délai de 12 mois mini est requis | G17: Modularité des échéances Possible uniquement à partir de la 3ème année et limitée à 10% 12 mois minimum entre chaque modulation
B21: Report des échéances Report des échéances gratuit 2 échéances mensuelles consécutives maximum par an. | G21: Report des échéances Possible uniquement à partir de la 25ème échéance. Limité à 9 échéances au total sur toute la durée du prêt
G24: Transférabilité du prêt Impossible
B25: Pénalités de Remboursement Anticipé Exonération d'indemnités de remboursement anticipé possible
B28: Assurances de prêt Délégation négociable au cas par cas | G28: Assurances de prêt Assurance De Prêt groupe (AVF 500) chère (entre 0,33% et 0,49%) et limitée en garantie L'ADP groupe ne couvre que l'invalidité totale à partir de 66% Elle ne propose pas de protection famille et ne fait pas de distinction fumeur/non fumeur. Elle rembourse l'assuré si et seulement si il y a une perte de revenu Elle n'exonère pas l'assuré du paiement des cotisations lors des prises en charge par l'assureur
B29: Tarification des services Offre "ZEN" complète et adaptée selon les profils clients. Exemple de tarification : ZEN avec Carte Visa Classic --> 6,93€ / mois | G29: Tarification des services Le magazine Capital ne conseille pas ce forfait et préconise de s'en tenir à la facturation à la carte des services qui fait économiser de 26€ à 29€ / an. Beaucoup de services sont plus chers que la moyenne nationale : alors que la moyenne pour un rejet d'un chèque est de 59 euros elle est de 89 euros au LCL , un prélèvement sans provision est de 25,50 euros trop cher pour le magazine Capital
B30: Divers Pas de frais de dossier pour les prêts immobiliers. Possibilité de financement jusqu'à 30 ans fixe 5 ans. RIB invariant lors de changement d’agence. VEFA : Franchise partielle ou totale admise pour le paiement des intérêts intercalaires. | G30: Divers Pas de financement 110%. Lourdeurs administratives et manque de réactivité. Pas de formule de financement mixte (fixe et révisable) intéressant notamment pour les jeunes. VEFA : Commission d'engagement prélevée par le LCL dans le cadre de construction et de VEFA sur les montants non encore débloqués par le client. Représente environ 1,30% des sommes non encore utilisées Ne pas oublier de la négocier
B32: * Réservé à un usage strictement interne ** Informations données à titre indicatif, sans engagement contractuel et susceptibles de modifications ***Toute information contraire doit immédiatement être communiqué au département Animation et Formation

Sheet Société Générale (hidden)
B6: Société Générale
B11: 3ème banque de financement et d'investissement de la zone euro Banque internationale et constituée de près de 3 000 points de vente en France Un des services bancaires sur Internet les plus complet et gratuit Solution Packagée : ''Convention Jazz' tarif 89 euros Le pack comprend : Carte Visa à débit immédiat ou différé, réduction sur la deuxième carte de paiement et les suivantes, assurance perte et vol des moyens de paiement, frais d'opposition sur chèques, cartes et prélèvements, service opposition toutes cartes, 3 chèques de banque, relevé multicomptes annuel, facilité de caisse de 500 EUR, franchise de 8 retraits déplacés gratuits par mois. Service de banque à distance (gratuit hors package). Le titulaire bénéficie en outre d'une assurance garantie prix et du programme de fidélité Filigrane. En option à tarifs préférentiels : réduction de 25% sur le service d'alertes (Messalia), carte de crédit renouvelable. Coût de la carte Visa sans pack : 34 euros par an Solution Assurance habitation : '' Assurance habitation Société Générale '' (SOGESSUR) Formule INDISPENSABLE est conçue pour les locataires d'un appartement de 1 à 2 pièces en résidence principale. Les formules BIEN ETRE et A NEUF sont destinées aux locataires ou propriétaires de résidences principales ou secondaires jusqu'à 12 pièces
B14: POINTS FORTS | G14: POINTS FAIBLES
G16: Modularité des échéances Modulation payante Modularité accessible qu'à partir de la 3ème année Modularité limitée à 30% de l'échéance précédente(sur toute la vie du prêt) Modularité excessivement chère (0,50% du capital emprunté mini 300€ maxi 900€ ) Modularité limitée car un délai minimum de 12 mois est imposé entre 2 modulations
B17: Report des échéances Possibilité de reporter une ou plusieurs échéances | G17: Report des échéances Le report d'échéance est payant à la Société Générale en cas de report, paiement des intérêts obligatoire plus Assurance
G18: Pénalités de Remboursement Anticipé Exonération d'indemnités de remboursement anticipé difficile à négocier
B19: Transférabilité du prêt Transfert de prêt possible, l'emprunteur a la possibilité de transférer son prêt sur une autre acquisition, il garde ainsi le bénéfice des conditions obtenues dans un marché actuel de hausse de taux
B21: Assurances de prêt Possibilité de délégation d'assurance | G21: Assurances de prêt L'Assurance De Prêt groupe (Fédération Continentale) ne couvre que l'invalidité totale à 66%, ne propose pas de protection famille et ne fait pas de distinction fumeur/non fumeur. L'assuré ne bénéficie pas de l'exonération des cotisation lors des prises en charge par l'assureur.
B22: Tarification des services Le magazine Capital Octobre 2007 révèle que SG est une des banques à guichets les plus compétitives. | G22: Tarification des services Le magazine Capital Octobre 2007 révèle que le forfait de la SG contient trop de services inutiles comme par exemple 3 chèques de banque gratuits, elle facture également 5 euros par trimestre au moindre découvert.
B23: Divers Accords particuliers avec les mutuelles de la fonction publique pour les garanties de prêt Bon service de banque à distance Fixe à 30 ans disponible Banque très compétente sur les montages de prêt en paliers et/ou lissage afin de trouver la meilleure solution Prêts souples car possibilité de moduler ses échéances de 30% VEFA : Franchise partielle et totale possible sur les intérêts intercalaires L' Amortissement immédiat du capital est également possible | G23: Divers Assurance groupe "Fédération continentale": chère (0,40% quelque soit l'âge) et offrant des garanties limitées Pas de produits mixtes Turn-over important (un directeur d'agence reste généralement 2 ans) Banque élitiste qui fera peu d'effort sur du client "Tous publics"
B26: * Réservé à un usage strictement interne ** Informations données à titre indicatif, sans engagement contractuel et susceptibles de modifications ***Toute information contraire doit immédiatement être communiqué au département Animation et Formation

Sheet Crédit Foncier (hidden)
B6: Crédit Foncier
B11: Filiale du groupe Caisse d’Épargne Acteur de référence du crédit immobilier issu de la fusion entre Enténial et Crédit Foncier en juin 2005 Banque spécialisée dans les prêts immobiliers 200 agences en France, 4000 collaborateurs pour 1,2 M de clients 1er émetteur après l’État et premier émetteur d’obligations foncières en France
B14: POINTS FORTS | G14: POINTS FAIBLES
B16: Modularité des échéances Modularité possible à partir de la 13ème échéance A la hausse: +30% maximum A la baisse: -20% à la baisse | G16: Modularité des échéances Modularité gratuite sur la 1ère échéance et ensuite 46€ par modulation Modularité accessible une fois par an
G17: Assurances de prêt L'Assurance De Prêt groupe ne propose qu'une prise en charge de l'invalidité totale à 66%, ne propose pas de protection famille et ne fait pas de distinction fumeur/non fumeur. Elle n'intervient en remboursement des échéances que si et seulement si l'assuré subit une perte de revenu, elle n'exonère pas l'assuré du paiement des cotisations lors des prises en charge
B19: Transférabilité du prêt Possible au cas par cas
B20: Pénalités en cas de remboursement anticipé Indemnité de Remboursement Anticipé au cas par cas
B21: Divers Pas de domiciliation des salaires. Prélèvements sur comptes externes pas d’ouverture de compte et pas de domiciliation des revenus Solutions d’épargne/placements, Retraite Offres complètes pour les investisseurs (Multi Risques Habitation, Garantie de loyers impayés, Garantie revente) Produits sur 40 ans Produit "Tendance J3 et J5" (fixe 3 ans et 5 ans) | G21: Divers Souplesse des offres crédit, très limitée et principalement du taux révisable.
B25: * Réservé à un usage strictement interne ** Informations données à titre indicatif, sans engagement contractuel et susceptibles de modifications ***Toute information contraire doit immédiatement être communiqué au département Animation et Formation

Sheet Limites de l'argument taux (hidden)

Sheet 1 L'argument offre assurance (hidden)

Sheet Argument modularité4 (hidden)
F3: Argument Modularité

Sheet 2 L'argument crédit réactif (hidden)

Sheet Exemple 1 Vente accord avec mod (hidden)

Sheet Argument modularité7 (hidden)
F3: Argument Modularité

Sheet Exemple 2 Vente accord avec mod (hidden)

Sheet Exemple Vente Transfert de prêt (hidden)

Sheet Argument PREMIUM (hidden)
A15: Un exemple:

Sheet Assurance individuelle3 (hidden)
F3: Assurance individuelle

Sheet Exemple 1 Avantages INV (hidden)

Sheet Exemple 2 Avantages Garantie (hidden)

Sheet Report d'échéances (hidden)

Sheet Seul, le taux ne suffit pas (hidden)

Sheet Un gain sur ass de prêt (hidden)

Sheet Exo IRA (hidden)

Sheet Argument Exo IRA (hidden)

Sheet Crédit du Nord Région Nord (hidden)
B6: Crédit du Nord Région Nord
B11: Le groupe Crédit du Nord est une filiale à 80% du groupe Société Générale, et à 20% du groupe Dexia. Le groupe Crédit du Nord est aujourd'hui une fédération de 7 banques régionales : le Crédit du Nord, la Banque Courtois dans le Sud Ouest, la banque Kolb dans l'Est, la banque Laydernier en Haute Savoie, Savoie, Ain et Isère, la banque Muger dans le Centre, la banque Rhône Alpes, la banque Tarneaud dans le Centre Ouest Atlantique. Banque jeune et dynamique qui cible une clientèle de jeunes cadres au profils évolutifs. Banque élitiste (3000€ pour un celibataire et 5000€ pour un couple) en contre partie les conseillers du CDN sont très compétents et disponibles pour répondre éfficacement au besoin de cette clientèle exigente. Assurance compétitive à environ 0,20% pour les jeunes. Tarification assez performante si apport minimum 20% Produits phare comme : "Crédit Global immobilier" incluant le prêt relai et le prêt principal "Libertimmo Cape -1" qui ne peut que baisser dans la limite de -1% Forte modularité des échéances et très rapide (dès 6 mois) Acceptation possible d'ADP externes. Solution Packagée :'' Convention Norplus Option Visa '' tarif 92 euros Le pack comprend : Norplus Visa Comprend : une carte Visa à débit immédiat (ou différé) avec garantie achat, une assurance perte et vol des moyens de paiement ainsi que les frais d'opposition et le renouvellement de la carte, une facilité de caisse avec 8 euros d'exonération d'agios, une carte de crédit revolving (avec ou sans package) et des chèques de banque gratuits. En option, le titulaire accède à divers services avec 20% de remises : service Internet, assurances diverses, crédit, etc…). Coût de la carte Visa sans pack : 37 euros par an Solution Assurance habitation : Partenaire Eurofil
B14: POINTS FORTS | G14: POINTS FAIBLES
B16: Modularité des échéances Modularité très forte, la plus large du marché (doublement de l'échéance précédente) Modularité possible dès le 6ème mois et gratuite Nombre de modularités non limité pendant la vie du prêt | G16: Modularité des échéances Délai de 12 mois entre chaque modulation obligatoire
B17: Report des échéances Gratuit à partir de 6 mois à raison d'une échéance par an. | G17: Report des échéances Seulement une échéance par an avec intervalle de 12 mois minimum entre chaque report
B18: Transférabilité du prêt Possible et gratuit même avec une garantie réelle
G19: Pénalités en cas de remboursement anticipé Exonération des Indemnités de Remboursement Anticipé difficile à négocier sur les produits à taux fixes
B21: Assurances de prêt Délégation d'assurance possible (Premium) | G21: Assurances de prêt Contrat AON calculé sur le capital initial avec une couverture peu protectrice
B22: Tarification des services Tarification intéressante | G22: Tarification des services Le magazine Capital Octobre 2007 révèle que le forfait CDN est médiocre et contient des services superflus (assurance, coffre fort…) et ne propose pas un accès internet Elle fait partie selon ce même magazine des banques les plus chères : carte bancaire onéreuse et frais élevés pour gérer ses comptes via internet.
B23: Divers VEFA : franchise totale sur les intérets intercalaires et amortissement immédiat du capital possibles. Financements à 100% maxi (financement des frais de négociation) Banque dynamique pour les jeunes cadres évolutifs. Banque élitiste (+42 000 € par an pour un couple). Service client haut niveau (portefeuilles clients moins large). 20% de réduction sur certaines opérations si souscription du pack Norplus | G23: Divers Trop élitiste, pas de financement à 110% : obligation de disposer d'apports pour financer les frais de notaire et les frais de garantie. Proximité des points de vente limitée par rapport à d'autres établissements. Internet non inclus dans le pack Norplus. Pas de mixte et pas de 30 ans. Banque à exigence de critères de revenus. Si le couple a moins de 42 000€ annuels, il doit disposer de 20% minimum d'apport en plus des frais annexes (notaire et garantie).
B25: * Réservé à un usage strictement interne ** Informations données à titre indicatif, sans engagement contractuel et susceptibles de modifications ***Toute information contraire doit immédiatement être communiqué au département Animation et Formation

Sheet Crédit Mutuel Nord Europe (hidden)
B6: Crédit Mutuel Nord Europe
B11: Deuxième banque de détail en France, 1er bancassureur de France, 2ème banque dans le financement de l'habitat Le groupe Crédit Mutuel comprend le réseau du Crédit Mutuel et l’ensemble de ses filiales, dont le CIC Tarification avantageuse pour les enseignants et professions médicales Caution CMH (une des moins chère du marché) Solution Packagée : '' Convention Eurocompte Confort '' tarif à partir de 78 euros Le pack comprend : Carte Visa à débit immédiat avec garantie achat, assurance perte et vol des moyens de paiement, exonération des frais de tenue de compte et d'opposition (sur carte et chèques), facilité de caisse, services de banque à distance (service Internet, réduction sur le service d'alertes sur compte), franchise de 4 virements externes gratuits par mois via Internet, franchise de 6 retraits gratuits, assurance décès, service d'épargne automatique, prime d'épargne sur le livret Fidélité, 3 chèques de banque gratuits, envoi des chéquiers en pli simple, carte révolving et Payweb Card incluses. En option : découvert Souplesse, réduction sur les frais de dossier des crédits auto ou consommation. Coût de la carte Visa ou MasterCard sans pack : 17,25 euros Solution Assurance Habitation : "Assurance Habitation du Crédit Mutuel" Vous choisissez parmi quatre offres celle qui correspond le mieux à vos exigences pour couvrir votre domicile et vos biens. Selon les caractéristiques de votre habitation et de votre budget, vous fixez votre niveau de garantie et de franchise. Vous disposez aussi d'un large choix d'options pour renforcer votre protection. En plus, dès que vous avez accumulé 2 années d'assurance sans sinistre, vous bénéficiez d'un bonus de franchise. Il s'agit d'une prise en charge partielle de votre franchise. Ce bonus augmente tous les ans et peut, à terme, couvrir intégralement votre franchise, vous garantissant ainsi une meilleure indemnisation en cas de sinistre.
B14: POINTS FORTS | G14: POINTS FAIBLES
B16: Modularité des échéances Gratuite, à partir de la 13ème échéances A la hausse ou à la baisse, les limites sont de ne pas faire évoluer de plus ou moins de 5 ans sa durée de crédit initiale en modulant à la hausse ou à la baisse Possible pour les prêts à taux variables. | G16: Modularité des échéances Delai de 12 mois entre 2 modularités. Sur toute la durée du prêt, l'emprunteur ne peut pas gagner plus de 5 ans sur le remboursement de son crédit, modularité très limitée.
B21: Report des échéances Report gratuit, de 3 à 24 mois en une ou plusieurs fois. Pas de délai entre chaque report. | G21: Report des échéances Pendant la période de report, l'emprunteur doit tout de même payer les intérêts de son prêt, le report porte uniquement sur le capital
B22: Transférabilité du prêt A voir, mais non stipulé dans les Conditions Générales de Vente. | G22: Transférabilité du prêt La transférabilité n'est pas acquise dès le départ et doit être un élément de négociation
B23: Pénalités de Remboursement Anticipé Exonération d'Indemnité de Remboursement Anticipé négociable
B24: Garantie de prêt Crédit Logement et mutuelles professionnelles | G24: Garantie de prêt Ne travaille pas avec CMH et MGEN
B25: Assurances de Prêt Plusieurs tarifications possibles en fonction de l'âge, sur le capital emprunté ou sur le Capital Restant Du. ACE (Tarification agressive pour les jeunes) permet la distinction fumeur/non fumeur et offre les mêmes garanties que le contrat groupe ACM. | G25: Assurances de prêt Pas de liberté donnée au client pour choisir son Assurance De Prêt. L'ADP groupe (ACM) ne propose pas de protection famille, ne fait pas de distinction fumeur/non fumeur, n' a pour base de remboursement que la seule perte de revenu de l'assuré. Elle n'exonère pas l'assuré du paiement des cotisations lors des prises en charge Le contrat ACM et ACE (jeunes) ne prennent en compte qu'une invalidité totale (66% minimum), la perte de salaire est prise en charge Frais de délégation de 105,5€
G26: Tarification des services Le magazine Capital Octobre 2007 révèle que le forfait du Crédit Mutuel Nord Europe est cher, tout est facturé : la tenue de compte (30 euros), l'accès à internet (36 euros),,,
B27: Divers Le Crédit Mutuel est largement implanté sur le territoire français. Offre crédit large avec possibilité de financement jusqu'à 30 ans avec une offre à taux mixte (taux fixe 10 ans et variable) Financements à 110% possibles. Assurance Multi Risques Habitation compétitive avec Assurance Crédit Mutuel (protection vol avec système d'alarme garanti 4ans, à prix réduit) VEFA : franchise partielle uniquement sur les intérets intercalaires. Pas d'amortissement immédiat du capital. | G27: Divers Rigidité dans la gestion des comptes courants VEFA : il n'est pas possible de différer les intérêts intercalaires (franchise totale), impossibilité d'amortissement immédiat du capital
B36: * Réservé à un usage strictement interne ** Informations données à titre indicatif, sans engagement contractuel et susceptibles de modifications ***Toute information contraire doit immédiatement être communiqué au département Animation et Formation

Sheet La Banque Postale (hidden)
B6: La Banque Postale
B11: Coût de la carte Eurocard Mastercard ou Visa sans pack : 34 euros par an
B14: POINTS FAIBLES
B16: Modularité des échéances Les prêts lissés ne sont pas modulables (modulables uniquement sur le dernier palier) Modularité limitée : >> +30% maximum de l'échéance initiale à la hausse >> -10% maximum de l'échéance initiale à la baisse >> 12 mois minimum entre chaque modulation
B20: Solution Assurance de prêt Assurances de prêt CNP très chère Indémnisation sur la seule Perte de Revenus (et non remboursement de la mensualité) Tarification sur le capital initial, donc moins interessante notamment en cas de modulation Absence d'exonération du paiement des cotisations pendant la prise en charge par l'assureur Prise en charge à partir de 66% d'invalidité (et non 33% comme sur PREMIUM) Exclusion des maladies psychologiques et psychiatriques ainsi que des maladies dorsales
B22: Pénalités de Remboursement Anticipé Difficile à négocier et généralement n'est acceptée que passé le délai de 7 ans
B23: Report d'échéance
B24: Transfert de prêt
B25: Garantie Garantie impossible par les mutuelles professionnelles pour le PTZ
B26: Prêt Relais Frais de dossier de 0,5% du capital emprunté (mini 100€ et maxi 1000€) La Banque Postale ne propose pas la possibilité d'une franchise totale, l'emprunteur doit rembourser les intérêts intercalaires durant les différents déblocages de fonds
B28: * Réservé à un usage strictement interne ** Informations données à titre indicatif, sans engagement contractuel et susceptibles de modifications ***Toute information contraire doit immédiatement être communiqué au département Animation et Formation

Sheet Arguments transfert de prêt (hidden)

Sheet Le marché de la modularité (hidden)

Sheet Exemple 3 Vente PREMIUM (hidden)

Sheet Exemple Report d'échéances (hidden)

Sheet Avantages Garantie forfaitaire (hidden)

Sheet Crédit Immobilier de France IDF (hidden)
B6: Crédit Immobilier de France Ile de France
B11: Issu historiquement du mouvement HLM, le Crédit Immobilier de France possède une très forte expertise reconnue permettant aux ménages à revenus modestes d’accéder à la propriété. L’activité de crédit immobilier est désormais exercée uniquement par les 17 filiales, établissements de crédit. 300 points de vente et un très important tissu de prescripteurs. Le Groupe Crédit Immobilier de France est le seul acteur spécialisé non lié à un groupe bancaire et se consacre exclusivement au prêt immobilier résidentiel aux particuliers. Il est ainsi devenu le premier producteur spécialisé de prêts résidentiels en France.
B14: POINTS FORTS | G14: POINTS FAIBLES
B16: Modularité des échéances 1ère modularité gratuite Possible à n'importe quel moment à partir de la 13ème échéance A la hausse +20% maxi à la baisse -20% Rallongement possible de la durée sur 5 ans maximum | G16: Modularité des échéances 30€ par modulation après la première variation
B17: Report d'échéances Sans frais à partir de la 13ème échéance | G17: Report d'échéance Seulement 3 échéances sur toute la durée du prêt en une ou plusieurs fois.
B18: Transférabilité du prêt Possible et peut être facturé par l'établissement
B19: Pénalités en cas de remboursement anticipé Exonération d'Indemnité de Remboursement Anticipé après 9 ans | G19: Pénalités en cas de remboursement anticipé 3% maxi pendant les 9 premières années. Minimum de 10% du capital emprunté pour un remboursement anticipé partiel.
G21: Assurances de prêt L'ADP groupe ne propose qu'une prise en charge de l'invalidité totale à 66%, ne propose pas de protection famille et ne fait pas de distinction fumeur/non fumeur. Elle n'intervient en remboursement des échéances que si et seulement si l'assuré subit une perte de revenu, elle n'exonère pas l'assuré du paiement des cotisation lors des prises en charge
B23: Divers Pas de domiciliation des salaires Le CIF peut financer des projets comportant des risques plus élevés que des banques classiques refuseraient. Prélèvements sur comptes externes, pas d’ouverture de compte et pas de domiciliation des revenus Solutions d’épargne/placements, Retraite. Offres complètes pour les investisseurs (Multi Risques Habitation, Garantie de loyers impayés, Garantie revente) Offre spéciale pour les intérimaires justifiant 600H d'activité sur les 12 derniers mois (environ 5 mois sur l'année) Prêt jusqu'à 40 ans mixtes fixe 3, 5, 7, 10 VEFA : Franchise partielle et totale (36 mois maxi) sur les intérets intercalaires. | G23: Divers Souplesse des offres crédit très limitée et principalement des solutions en taux révisables. Pas d'amortissement immédiat du capital.
B28: * Réservé à un usage strictement interne ** Informations données à titre indicatif, sans engagement contractuel et susceptibles de modifications ***Toute information contraire doit immédiatement être communiqué au département Animation et Formation

Sheet Crédit Agricole PACA (hidden)
B6: Crédit Agricole Provence Côte d'Azur
B11: "Une relation durable, ça change la vie" 1er Groupe Bancaire Français, 1ère banque europénne, 5ème banque mondiale. Le Crédit Agricole rajeunit et dynamise son image grâce à sa communication. 1er réseau de proximité bancaire de France Solution Packagée : '' Compte Service Equilibre '' tarif 40,32 euros Le pack comprend : une assurance des moyens de paiement, les frais d'opposition, la mise en place de virements permanents. Pour les imprévus, une facilité de caisse assortie d'une assurance décès invalidité et une exonération d'agios sontintégrées. Le service de banque à distance permet de gérer ses comptes courants et comptes titres via Internet.(attention le forfait ne contient pas la carte bancaire) Coût de la carte MasterCard sans pack : 33,60 euros par an Solution Assurance habitation : "Assurance Multirisques Habitation PACIFICA" Formule Eco : 1 à 4 pièces Formule Equilibre : 1 à 10 pièces Formule Rééquipement à Neuf : 1 à 20 pièces
B14: POINTS FORTS | G14: POINTS FAIBLES
B16: Modularité des échéances Modularité possible et gratuite. A la hausse: jusqu'à 30% de l'échéance précédente. A la baisse: il ne faut pas que la durée du prêt se rallonge de plus de 3 ans pour un taux fixe. | G16: Modularité des échéances Possible uniquement à partir de la 13ème échéance et limitée à 30%. Modularité possible uniquement à chaque date anniversaire du prêt Le client garde sa mensualité modulée sur 12 mois minimum.
B20: Report des échéances Report possible et gratuit. Le client a le choix d'impacter son report sur la mensualité ou sur la durée de son prêt. Possibilité de geler 6 mois d'échéances consécutives. Nombre d'échéances non limité sous réserve d'un rallongement de durée inférieur à 3 ans. | G20: Report des échéances Possible uniquement à partir de la 13ème échéance. Limité à 1 échéance à la fois, le client ne peut suspendre 2 échéances consécutives.
B24: Transférabilité du prêt Transfert de prêt possible au cas par cas. Transfert gratuit. Conditions si caution CAMCA ou Crédit Logement sur le prêt et emprunt au CA sur nouvelle acquisition.
B26: Pénalités de remboursement anticipé Exonération si souscription de l'assurance Multi Risques Habitation. | G26: Pénalités en cas de remboursement anticipé Soumise à la vente de la Multi Risques Habitation du Crédit Agricole.
G28: Assurances de prêt Délégations très peu négociables. Assurance Groupe CNP chère et garantie limitée (180j de carence en ITT) Peu de liberté de choix d'Assurance De Prêt pour le client.
B30: Divers Banque de proximité, généraliste, "Tous publics" Investissement locatif, non domiciliation des revenus négociable. Fixe jusqu'à 30 ans VEFA : Franchise partielle et totale sur les intérets intercalaires. Amortissement immédiat possible. | G30: Divers Pas de crédit mixte.
B34: * Réservé à un usage strictement interne ** Informations données à titre indicatif, sans engagement contractuel et susceptibles de modifications ***Toute information contraire doit immédiatement être communiqué au département Animation et Formation

Sheet Synthèse (hidden)
D1: Synthèse sur les banques
B7: Banque | C7: Offre de services | D7: Modularité | E7: Report | F7: Transfert de prêt | G7: IRA / ADP | H7: Divers + | I7: Divers -
C8: Offre diversifiée et complète. Tarification très bien positionnée (5ème / 140 d'après l'observatoire de la concurrence). Internet Gratuit | D8: Possible dès la 24ème mens. De 2 à 10% de la dernière éch. à la hausse sans études, au-delà étude du dossier. 2% de la dernière éch. à la baisse, sans dépasser un allongement de 2 ans du prêt | E8: Possible de 3 à 12 mois en 1 ou plusieurs fois. Maximum 12 mois de report sur toute la durée du prêt. | F8: Transfert possible sous conditions : ne pas avoir modulé ou reporté le prêt, ni aucun remboursement anticipé. Coût: 2% du CRD (mini 600€, maxi 2000€) | G8: Suppression des IRA possible. Délégation Cardif / Meilleurtaux Emprunteur possible. Contrat ADP Groupe très cher (0,41 à 0,60%) | H8: Financement 110% ; pas de frais de dossier ; fixe sur 30 ans | I8: Pack Esprit Libre Reference onéreux.
C9: Groupe BNP Paribas Pas de solution Assurance habitation. | D9: Modularité à partir du 24 ème mois et 1 fois par an. | E9: IMPOSSIBLE | F9: IMPOSSIBLE | G9: Exonération d'Indemnité de Remboursement Anticipé négociable. | H9: VEFA : Franchise partielle et totale possible sur les intérêts intercalaires. | I9: Pas de prêt sur 30 ans et faible réseau d'agences.
C10: Offre haut de gamme du groupe Crédit Mutuel. | D10: Modularité dès la 2ème année, | E10: 12 échéances (suspension des échéances pendant 3 mois et ce 4 fois durant la vie du prêt) | F10: Possible, avec frais. | G10: Délégation ADP Télévie/Premium; ADP compétitive avec Ass Crédit Mutuel | H10: Prêt jusqu'à 30 ans à taux mixte VEFA : Amortissement immédiat Offre avantageuse pour les jeunes et les primo accédants | I10: Frais de dossier 200 Euro Franchise partielle seult en VEFA Franchise totale seult sur prêt relais
C11: Tarification assez performante | D11: Possible dès la 24ème mens. + / - 10% | E11: Jusqu'à 10 000 euros. | F11: IMPOSSIBLE | G11: Suppression des IRA possible. Délégation possible. | H11: Sans frais de dossier prêt immo; jusqu'à 30 ans / fixe 5 ans ; VEFA franchise totale admise. | I11: Image de marque écornée. Frais de dossier très cher (500€ en moy). Commission d'engagement sur VEFA (1,25%)
C12: Un des services bancaires sur Internet les plus complets et gratuit | D12: Possible dès la 2ème année. + / - 30%, avec un coût pour la mise en place : 0,50% du prêt initial (mini : 300€, maxi 900€). | E12: Possible | F12: Transfert possible si pas d'incidents sur le prêt principal | G12: Suppression des IRA et acceptation délégation ADP au cas par cas. Assurance Groupe chère | H12: Très souple sur le lissage et les palier pour proposer des taux bas. Accords spécifiques Mutuelles fonctionnaires (BFM) | I12: Assurance groupe "Fédération continental" onéreuse ; pas de produits mixtes.
B13: IDF Paris | C13: Offre diversifiée tout plublic. Politique tarifaire élevée | D13: Modularité dès la 13ème échéance, gratuite, jusqu'à 30% à la hausse et à la baisse limitée à 3 ans d'allongement de la durée initiale. | E13: Possible à partir de la 13ème éch. 1 éch. par an | F13: Transfert possible si pas d'incidents sur le prêt principal | G13: Suppression IRA impossible. Acceptation délégation ADP exceptionnelle si justifiée. | H13: N'exige pas la domiciliation des revenus locatifs | I13: Grosses lourdeurs administratives
C14: Tarification performante, offre de service haut de gamme | D14: Possible dès la 6ème éch. jusqu'à 100% de l'éch. Initiale. | E14: Gratuit à partir de 6 mois à raison d'une mensualité par an. | F14: Possible sans frais si pas d'incidents. | G14: Délégation ADP possible. Assurance groupe bon marché (0,20%) | H14: Conseillers compétents et efficaces, banque jeune et dynamique ciblant les jeunes cadres dynamiques | I14: Banque élitiste (3000€ de rev./mois). Pas de 110%, pas de marge de négociation.
B15: IDF Paris | C15: Souplesse de son offre. Offre adaptée aux enseignants. | D15: Modularité gratuite négociable. A la hausse de 5% de l'échéance précédente sans maxi et à la baisse limité à 3 ans de + que la durée initiale. | E15: IMPOSSIBLE | F15: Transfert possible. Soumis à accord du comité de direction et de la garantie si CMH. Si autre garantie, transfert impossible. Frais de dossiers à prévoir (pas plus de précision à ce sujet) | G15: Suppression IRA possible. Délégation Télévie acceptée. Pour autre délégation ADP au cas par cas. Assurance groupe ACM (chère) et ACE (tarif allégé) | H15: 1er bancassureur et 2ème dans le financement immo. Assurance MRH complète et performante. Réseau étendu et de proximité. | I15: Rigidité sur la gestion des comptes courants, pas de remboursement pour la caution CMH
B16: IDF Paris | C16: Offre diversifiée tout plublic. Politique tarifaire basse. | D16: Possible dès la 13ème échéance. Modularité pro-active (courrier d'information) jusqu'à 10% de l'échéance initiale sans réétude du dossier. Au-delà des 10%, étude du dossier. | E16: Possible dès la 18ème éch. 1 fois par an. Report de 1 à 12 éch en 1 ou plusieurs fois. | F16: Transfert possible. Soumis à accord de l'agence CE gérant la relation et de l'accord de la SACCEF. Délai de réalisation de la nouvelle opération obligatoirement de moins de 2 mois. Frais de dossiers à la discrétion de l'agence CE. | G16: Suppression possible si prévente de l'assurance Multi Risques Habitation. | H16: Avantage pour les primo accédants taux fixe sur 30 ans et produit mixte ; compte chèque rémunéré. | I16: Barème non dérogeable, impossible de décôte par / à la grille CEIDF Pas de décôte sur profil haut de gamme.
C17: Banque spécialisée prêt immo. 1er émetteur après l’État et premier émetteur d’obligations foncières en France. | D17: 1ère modularité gratuite puis 46 E Dès 13ème échéance. +30% max -20% max | E17: IMPOSSIBLE | F17: Tranférabilité possible au cas par cas | G17: Suppression possible au cas par cas | H17: Produits sur 40 ans ; Offre complète pour les investisseurs ; Pas de domiciliation des revenus. | I17: Souplesse des offres crédit très limitée et principalement du taux révisable.
C18: Haut de gamme, A l'international Très bon service client. | D18: Modularité gratuite . A la hausse, doublement de la mensualité initiale. A la baisse, rallongement 2 ans max. 5 modularités maxi. | E18: IMPOSSIBLE | F18: IMPOSSIBLE | G18: Exonération au cas par cas | H18: VEFA : franchise totale des intérets inetrcalaires possible | I18: Tarification élevée des services.
C19: * Réservé à un usage strictement interne ** Informations données à titre indicatif, sans engagement contractuel et susceptibles de modifications ***Toute information contraire doit immédiatement être communiqué au département Animation et Formation

Sheet calculs (hidden)
C6: =IRR(B7:B607,0.1%)*12 ->  | D6: =IRR(D7:D607,0.1%)*12 ->  | H6: =IRR(G7:G607,0.1%)*12 ->  | I6: =IRR(I7:I607,0.1%)*12 ->  | L6: Mensualité moyenne 1 | P6: =IRR(O7:O607,0.1%)*12 ->  | Q6: =IRR(Q7:Q607,0.1%)*12 ->  | T6: Mensualité moyenne 2 | X6: =IRR(W7:W607,0.1%)*12 ->  | Y6: =IRR(Y7:Y607,0.1%)*12 -> 
B7: =#REF!*-1 ->  | D7: =B7 ->  | G7: =-#REF! ->  | I7: =G7 ->  | L7: =(#REF!+#REF!)/#REF! ->  | O7: =#REF!*-1 ->  | Q7: =O7 ->  | T7: =(#REF!+#REF!)/#REF! ->  | W7: =#REF!*-1 ->  | Y7: =W7 -> 
A8: 1 | B8: =IF(A8>=#REF!,"",IF(A8<=#REF!,#REF!,#REF!)) ->  | C8: =IF(A8>=#REF!,"",IF(A8<=#REF!,#REF!,#REF!)) ->  | D8: =IF(A8>#REF!,"",#REF!) ->  | F8: 1 | G8: =IF(F8>=#REF!,"",IF(F8<=#REF!,#REF!,#REF!)) ->  | H8: =IF(F8>=#REF!,"",IF(F8<=#REF!,#REF!,#REF!)) ->  | I8: =IF(F8>#REF!,"",PMT(#REF!/12,#REF!,-#REF!)) ->  | N8: 1 | O8: =IF(N8>#REF!,"",$L$7) ->  | P8: =IF(N8>=#REF!,"",IF(N8<=#REF!,#REF!,#REF!)) ->  | Q8: =IF(N8>#REF!,"",#REF!) ->  | V8: 1 | W8: =IF(V8>#REF!,"",$T$7) ->  | X8: =IF(V8>=#REF!,"",IF(V8<=#REF!,#REF!,#REF!)) ->  | Y8: =IF(V8>#REF!,"",#REF!) ->  | AG8: 1
A9: 2 | B9: =IF(A9>=#REF!,"",IF(A9<=#REF!,#REF!,#REF!)) ->  | C9: =IF(A9>=#REF!,"",IF(A9<=#REF!,#REF!,#REF!)) ->  | D9: =IF(A9>#REF!,"",#REF!) ->  | F9: 2 | G9: =IF(F9>=#REF!,"",IF(F9<=#REF!,#REF!,#REF!)) ->  | H9: =IF(F9>=#REF!,"",IF(F9<=#REF!,#REF!,#REF!)) ->  | I9: =IF(F9>#REF!,"",PMT(#REF!/12,#REF!,-#REF!)) ->  | N9: 2 | O9: =IF(N9>#REF!,"",$L$7) ->  | P9: =IF(N9>=#REF!,"",IF(N9<=#REF!,#REF!,#REF!)) ->  | Q9: =IF(N9>#REF!,"",#REF!) ->  | V9: 2 | W9: =IF(V9>#REF!,"",$T$7) ->  | X9: =IF(V9>=#REF!,"",IF(V9<=#REF!,#REF!,#REF!)) ->  | Y9: =IF(V9>#REF!,"",#REF!) ->  | AG9: 2
A10: 3 | B10: =IF(A10>=#REF!,"",IF(A10<=#REF!,#REF!,#REF!)) ->  | C10: =IF(A10>=#REF!,"",IF(A10<=#REF!,#REF!,#REF!)) ->  | D10: =IF(A10>#REF!,"",#REF!) ->  | F10: 3 | G10: =IF(F10>=#REF!,"",IF(F10<=#REF!,#REF!,#REF!)) ->  | H10: =IF(F10>=#REF!,"",IF(F10<=#REF!,#REF!,#REF!)) ->  | I10: =IF(F10>#REF!,"",PMT(#REF!/12,#REF!,-#REF!)) ->  | N10: 3 | O10: =IF(N10>#REF!,"",$L$7) ->  | P10: =IF(N10>=#REF!,"",IF(N10<=#REF!,#REF!,#REF!)) ->  | Q10: =IF(N10>#REF!,"",#REF!) ->  | V10: 3 | W10: =IF(V10>#REF!,"",$T$7) ->  | X10: =IF(V10>=#REF!,"",IF(V10<=#REF!,#REF!,#REF!)) ->  | Y10: =IF(V10>#REF!,"",#REF!) ->  | AG10: 3
A11: 4 | B11: =IF(A11>=#REF!,"",IF(A11<=#REF!,#REF!,#REF!)) ->  | C11: =IF(A11>=#REF!,"",IF(A11<=#REF!,#REF!,#REF!)) ->  | D11: =IF(A11>#REF!,"",#REF!) ->  | F11: 4 | G11: =IF(F11>=#REF!,"",IF(F11<=#REF!,#REF!,#REF!)) ->  | H11: =IF(F11>=#REF!,"",IF(F11<=#REF!,#REF!,#REF!)) ->  | I11: =IF(F11>#REF!,"",PMT(#REF!/12,#REF!,-#REF!)) ->  | N11: 4 | O11: =IF(N11>#REF!,"",$L$7) ->  | P11: =IF(N11>=#REF!,"",IF(N11<=#REF!,#REF!,#REF!)) ->  | Q11: =IF(N11>#REF!,"",#REF!) ->  | V11: 4 | W11: =IF(V11>#REF!,"",$T$7) ->  | X11: =IF(V11>=#REF!,"",IF(V11<=#REF!,#REF!,#REF!)) ->  | Y11: =IF(V11>#REF!,"",#REF!) ->  | AG11: 4
A12: 5 | B12: =IF(A12>=#REF!,"",IF(A12<=#REF!,#REF!,#REF!)) ->  | C12: =IF(A12>=#REF!,"",IF(A12<=#REF!,#REF!,#REF!)) ->  | D12: =IF(A12>#REF!,"",#REF!) ->  | F12: 5 | G12: =IF(F12>=#REF!,"",IF(F12<=#REF!,#REF!,#REF!)) ->  | H12: =IF(F12>=#REF!,"",IF(F12<=#REF!,#REF!,#REF!)) ->  | I12: =IF(F12>#REF!,"",PMT(#REF!/12,#REF!,-#REF!)) ->  | N12: 5 | O12: =IF(N12>#REF!,"",$L$7) ->  | P12: =IF(N12>=#REF!,"",IF(N12<=#REF!,#REF!,#REF!)) ->  | Q12: =IF(N12>#REF!,"",#REF!) ->  | V12: 5 | W12: =IF(V12>#REF!,"",$T$7) ->  | X12: =IF(V12>=#REF!,"",IF(V12<=#REF!,#REF!,#REF!)) ->  | Y12: =IF(V12>#REF!,"",#REF!) ->  | AG12: 5
A13: 6 | B13: =IF(A13>=#REF!,"",IF(A13<=#REF!,#REF!,#REF!)) ->  | C13: =IF(A13>=#REF!,"",IF(A13<=#REF!,#REF!,#REF!)) ->  | D13: =IF(A13>#REF!,"",#REF!) ->  | F13: 6 | G13: =IF(F13>=#REF!,"",IF(F13<=#REF!,#REF!,#REF!)) ->  | H13: =IF(F13>=#REF!,"",IF(F13<=#REF!,#REF!,#REF!)) ->  | I13: =IF(F13>#REF!,"",PMT(#REF!/12,#REF!,-#REF!)) ->  | N13: 6 | O13: =IF(N13>#REF!,"",$L$7) ->  | P13: =IF(N13>=#REF!,"",IF(N13<=#REF!,#REF!,#REF!)) ->  | Q13: =IF(N13>#REF!,"",#REF!) ->  | V13: 6 | W13: =IF(V13>#REF!,"",$T$7) ->  | X13: =IF(V13>=#REF!,"",IF(V13<=#REF!,#REF!,#REF!)) ->  | Y13: =IF(V13>#REF!,"",#REF!) ->  | AG13: 6
A14: 7 | B14: =IF(A14>=#REF!,"",IF(A14<=#REF!,#REF!,#REF!)) ->  | C14: =IF(A14>=#REF!,"",IF(A14<=#REF!,#REF!,#REF!)) ->  | D14: =IF(A14>#REF!,"",#REF!) ->  | F14: 7 | G14: =IF(F14>=#REF!,"",IF(F14<=#REF!,#REF!,#REF!)) ->  | H14: =IF(F14>=#REF!,"",IF(F14<=#REF!,#REF!,#REF!)) ->  | I14: =IF(F14>#REF!,"",PMT(#REF!/12,#REF!,-#REF!)) ->  | N14: 7 | O14: =IF(N14>#REF!,"",$L$7) ->  | P14: =IF(N14>=#REF!,"",IF(N14<=#REF!,#REF!,#REF!)) ->  | Q14: =IF(N14>#REF!,"",#REF!) ->  | V14: 7 | W14: =IF(V14>#REF!,"",$T$7) ->  | X14: =IF(V14>=#REF!,"",IF(V14<=#REF!,#REF!,#REF!)) ->  | Y14: =IF(V14>#REF!,"",#REF!) ->  | AG14: 7
A15: 8 | B15: =IF(A15>=#REF!,"",IF(A15<=#REF!,#REF!,#REF!)) ->  | C15: =IF(A15>=#REF!,"",IF(A15<=#REF!,#REF!,#REF!)) ->  | D15: =IF(A15>#REF!,"",#REF!) ->  | F15: 8 | G15: =IF(F15>=#REF!,"",IF(F15<=#REF!,#REF!,#REF!)) ->  | H15: =IF(F15>=#REF!,"",IF(F15<=#REF!,#REF!,#REF!)) ->  | I15: =IF(F15>#REF!,"",PMT(#REF!/12,#REF!,-#REF!)) ->  | N15: 8 | O15: =IF(N15>#REF!,"",$L$7) ->  | P15: =IF(N15>=#REF!,"",IF(N15<=#REF!,#REF!,#REF!)) ->  | Q15: =IF(N15>#REF!,"",#REF!) ->  | V15: 8 | W15: =IF(V15>#REF!,"",$T$7) ->  | X15: =IF(V15>=#REF!,"",IF(V15<=#REF!,#REF!,#REF!)) ->  | Y15: =IF(V15>#REF!,"",#REF!) ->  | AG15: 8
A16: 9 | B16: =IF(A16>=#REF!,"",IF(A16<=#REF!,#REF!,#REF!)) ->  | C16: =IF(A16>=#REF!,"",IF(A16<=#REF!,#REF!,#REF!)) ->  | D16: =IF(A16>#REF!,"",#REF!) ->  | F16: 9 | G16: =IF(F16>=#REF!,"",IF(F16<=#REF!,#REF!,#REF!)) ->  | H16: =IF(F16>=#REF!,"",IF(F16<=#REF!,#REF!,#REF!)) ->  | I16: =IF(F16>#REF!,"",PMT(#REF!/12,#REF!,-#REF!)) ->  | N16: 9 | O16: =IF(N16>#REF!,"",$L$7) ->  | P16: =IF(N16>=#REF!,"",IF(N16<=#REF!,#REF!,#REF!)) ->  | Q16: =IF(N16>#REF!,"",#REF!) ->  | V16: 9 | W16: =IF(V16>#REF!,"",$T$7) ->  | X16: =IF(V16>=#REF!,"",IF(V16<=#REF!,#REF!,#REF!)) ->  | Y16: =IF(V16>#REF!,"",#REF!) ->  | AG16: 9
A17: 10 | B17: =IF(A17>=#REF!,"",IF(A17<=#REF!,#REF!,#REF!)) ->  | C17: =IF(A17>=#REF!,"",IF(A17<=#REF!,#REF!,#REF!)) ->  | D17: =IF(A17>#REF!,"",#REF!) ->  | F17: 10 | G17: =IF(F17>=#REF!,"",IF(F17<=#REF!,#REF!,#REF!)) ->  | H17: =IF(F17>=#REF!,"",IF(F17<=#REF!,#REF!,#REF!)) ->  | I17: =IF(F17>#REF!,"",PMT(#REF!/12,#REF!,-#REF!)) ->  | N17: 10 | O17: =IF(N17>#REF!,"",$L$7) ->  | P17: =IF(N17>=#REF!,"",IF(N17<=#REF!,#REF!,#REF!)) ->  | Q17: =IF(N17>#REF!,"",#REF!) ->  | V17: 10 | W17: =IF(V17>#REF!,"",$T$7) ->  | X17: =IF(V17>=#REF!,"",IF(V17<=#REF!,#REF!,#REF!)) ->  | Y17: =IF(V17>#REF!,"",#REF!) ->  | AG17: 10
A18: 11 | B18: =IF(A18>=#REF!,"",IF(A18<=#REF!,#REF!,#REF!)) ->  | C18: =IF(A18>=#REF!,"",IF(A18<=#REF!,#REF!,#REF!)) ->  | D18: =IF(A18>#REF!,"",#REF!) ->  | F18: 11 | G18: =IF(F18>=#REF!,"",IF(F18<=#REF!,#REF!,#REF!)) ->  | H18: =IF(F18>=#REF!,"",IF(F18<=#REF!,#REF!,#REF!)) ->  | I18: =IF(F18>#REF!,"",PMT(#REF!/12,#REF!,-#REF!)) ->  | N18: 11 | O18: =IF(N18>#REF!,"",$L$7) ->  | P18: =IF(N18>=#REF!,"",IF(N18<=#REF!,#REF!,#REF!)) ->  | Q18: =IF(N18>#REF!,"",#REF!) ->  | V18: 11 | W18: =IF(V18>#REF!,"",$T$7) ->  | X18: =IF(V18>=#REF!,"",IF(V18<=#REF!,#REF!,#REF!)) ->  | Y18: =IF(V18>#REF!,"",#REF!) ->  | AG18: 11
A19: 12 | B19: =IF(A19>=#REF!,"",IF(A19<=#REF!,#REF!,#REF!)) ->  | C19: =IF(A19>=#REF!,"",IF(A19<=#REF!,#REF!,#REF!)) ->  | D19: =IF(A19>#REF!,"",#REF!) ->  | F19: 12 | G19: =IF(F19>=#REF!,"",IF(F19<=#REF!,#REF!,#REF!)) ->  | H19: =IF(F19>=#REF!,"",IF(F19<=#REF!,#REF!,#REF!)) ->  | I19: =IF(F19>#REF!,"",PMT(#REF!/12,#REF!,-#REF!)) ->  | N19: 12 | O19: =IF(N19>#REF!,"",$L$7) ->  | P19: =IF(N19>=#REF!,"",IF(N19<=#REF!,#REF!,#REF!)) ->  | Q19: =IF(N19>#REF!,"",#REF!) ->  | V19: 12 | W19: =IF(V19>#REF!,"",$T$7) ->  | X19: =IF(V19>=#REF!,"",IF(V19<=#REF!,#REF!,#REF!)) ->  | Y19: =IF(V19>#REF!,"",#REF!) ->  | AG19: 12
A20: 13 | B20: =IF(A20>=#REF!,"",IF(A20<=#REF!,#REF!,#REF!)) ->  | C20: =IF(A20>=#REF!,"",IF(A20<=#REF!,#REF!,#REF!)) ->  | D20: =IF(A20>#REF!,"",#REF!) ->  | F20: 13 | G20: =IF(F20>=#REF!,"",IF(F20<=#REF!,#REF!,#REF!)) ->  | H20: =IF(F20>=#REF!,"",IF(F20<=#REF!,#REF!,#REF!)) ->  | I20: =IF(F20>#REF!,"",PMT(#REF!/12,#REF!,-#REF!)) ->  | N20: 13 | O20: =IF(N20>#REF!,"",$L$7) ->  | P20: =IF(N20>=#REF!,"",IF(N20<=#REF!,#REF!,#REF!)) ->  | Q20: =IF(N20>#REF!,"",#REF!) ->  | V20: 13 | W20: =IF(V20>#REF!,"",$T$7) ->  | X20: =IF(V20>=#REF!,"",IF(V20<=#REF!,#REF!,#REF!)) ->  | Y20: =IF(V20>#REF!,"",#REF!) ->  | AG20: 13
A21: 14 | B21: =IF(A21>=#REF!,"",IF(A21<=#REF!,#REF!,#REF!)) ->  | C21: =IF(A21>=#REF!,"",IF(A21<=#REF!,#REF!,#REF!)) ->  | D21: =IF(A21>#REF!,"",#REF!) ->  | F21: 14 | G21: =IF(F21>=#REF!,"",IF(F21<=#REF!,#REF!,#REF!)) ->  | H21: =IF(F21>=#REF!,"",IF(F21<=#REF!,#REF!,#REF!)) ->  | I21: =IF(F21>#REF!,"",PMT(#REF!/12,#REF!,-#REF!)) ->  | N21: 14 | O21: =IF(N21>#REF!,"",$L$7) ->  | P21: =IF(N21>=#REF!,"",IF(N21<=#REF!,#REF!,#REF!)) ->  | Q21: =IF(N21>#REF!,"",#REF!) ->  | V21: 14 | W21: =IF(V21>#REF!,"",$T$7) ->  | X21: =IF(V21>=#REF!,"",IF(V21<=#REF!,#REF!,#REF!)) ->  | Y21: =IF(V21>#REF!,"",#REF!) ->  | AG21: 14
A22: 15 | B22: =IF(A22>=#REF!,"",IF(A22<=#REF!,#REF!,#REF!)) ->  | C22: =IF(A22>=#REF!,"",IF(A22<=#REF!,#REF!,#REF!)) ->  | D22: =IF(A22>#REF!,"",#REF!) ->  | F22: 15 | G22: =IF(F22>=#REF!,"",IF(F22<=#REF!,#REF!,#REF!)) ->  | H22: =IF(F22>=#REF!,"",IF(F22<=#REF!,#REF!,#REF!)) ->  | I22: =IF(F22>#REF!,"",PMT(#REF!/12,#REF!,-#REF!)) ->  | N22: 15 | O22: =IF(N22>#REF!,"",$L$7) ->  | P22: =IF(N22>=#REF!,"",IF(N22<=#REF!,#REF!,#REF!)) ->  | Q22: =IF(N22>#REF!,"",#REF!) ->  | V22: 15 | W22: =IF(V22>#REF!,"",$T$7) ->  | X22: =IF(V22>=#REF!,"",IF(V22<=#REF!,#REF!,#REF!)) ->  | Y22: =IF(V22>#REF!,"",#REF!) ->  | AG22: 15
A23: 16 | B23: =IF(A23>=#REF!,"",IF(A23<=#REF!,#REF!,#REF!)) ->  | C23: =IF(A23>=#REF!,"",IF(A23<=#REF!,#REF!,#REF!)) ->  | D23: =IF(A23>#REF!,"",#REF!) ->  | F23: 16 | G23: =IF(F23>=#REF!,"",IF(F23<=#REF!,#REF!,#REF!)) ->  | H23: =IF(F23>=#REF!,"",IF(F23<=#REF!,#REF!,#REF!)) ->  | I23: =IF(F23>#REF!,"",PMT(#REF!/12,#REF!,-#REF!)) ->  | N23: 16 | O23: =IF(N23>#REF!,"",$L$7) ->  | P23: =IF(N23>=#REF!,"",IF(N23<=#REF!,#REF!,#REF!)) ->  | Q23: =IF(N23>#REF!,"",#REF!) ->  | V23: 16 | W23: =IF(V23>#REF!,"",$T$7) ->  | X23: =IF(V23>=#REF!,"",IF(V23<=#REF!,#REF!,#REF!)) ->  | Y23: =IF(V23>#REF!,"",#REF!) ->  | AG23: 16
A24: 17 | B24: =IF(A24>=#REF!,"",IF(A24<=#REF!,#REF!,#REF!)) ->  | C24: =IF(A24>=#REF!,"",IF(A24<=#REF!,#REF!,#REF!)) ->  | D24: =IF(A24>#REF!,"",#REF!) ->  | F24: 17 | G24: =IF(F24>=#REF!,"",IF(F24<=#REF!,#REF!,#REF!)) ->  | H24: =IF(F24>=#REF!,"",IF(F24<=#REF!,#REF!,#REF!)) ->  | I24: =IF(F24>#REF!,"",PMT(#REF!/12,#REF!,-#REF!)) ->  | N24: 17 | O24: =IF(N24>#REF!,"",$L$7) ->  | P24: =IF(N24>=#REF!,"",IF(N24<=#REF!,#REF!,#REF!)) ->  | Q24: =IF(N24>#REF!,"",#REF!) ->  | V24: 17 | W24: =IF(V24>#REF!,"",$T$7) ->  | X24: =IF(V24>=#REF!,"",IF(V24<=#REF!,#REF!,#REF!)) ->  | Y24: =IF(V24>#REF!,"",#REF!) ->  | AG24: 17
A25: 18 | B25: =IF(A25>=#REF!,"",IF(A25<=#REF!,#REF!,#REF!)) ->  | C25: =IF(A25>=#REF!,"",IF(A25<=#REF!,#REF!,#REF!)) ->  | D25: =IF(A25>#REF!,"",#REF!) ->  | F25: 18 | G25: =IF(F25>=#REF!,"",IF(F25<=#REF!,#REF!,#REF!)) ->  | H25: =IF(F25>=#REF!,"",IF(F25<=#REF!,#REF!,#REF!)) ->  | I25: =IF(F25>#REF!,"",PMT(#REF!/12,#REF!,-#REF!)) ->  | N25: 18 | O25: =IF(N25>#REF!,"",$L$7) ->  | P25: =IF(N25>=#REF!,"",IF(N25<=#REF!,#REF!,#REF!)) ->  | Q25: =IF(N25>#REF!,"",#REF!) ->  | V25: 18 | W25: =IF(V25>#REF!,"",$T$7) ->  | X25: =IF(V25>=#REF!,"",IF(V25<=#REF!,#REF!,#REF!)) ->  | Y25: =IF(V25>#REF!,"",#REF!) ->  | AG25: 18
A26: 19 | B26: =IF(A26>=#REF!,"",IF(A26<=#REF!,#REF!,#REF!)) ->  | C26: =IF(A26>=#REF!,"",IF(A26<=#REF!,#REF!,#REF!)) ->  | D26: =IF(A26>#REF!,"",#REF!) ->  | F26: 19 | G26: =IF(F26>=#REF!,"",IF(F26<=#REF!,#REF!,#REF!)) ->  | H26: =IF(F26>=#REF!,"",IF(F26<=#REF!,#REF!,#REF!)) ->  | I26: =IF(F26>#REF!,"",PMT(#REF!/12,#REF!,-#REF!)) ->  | N26: 19 | O26: =IF(N26>#REF!,"",$L$7) ->  | P26: =IF(N26>=#REF!,"",IF(N26<=#REF!,#REF!,#REF!)) ->  | Q26: =IF(N26>#REF!,"",#REF!) ->  | V26: 19 | W26: =IF(V26>#REF!,"",$T$7) ->  | X26: =IF(V26>=#REF!,"",IF(V26<=#REF!,#REF!,#REF!)) ->  | Y26: =IF(V26>#REF!,"",#REF!) ->  | AG26: 19
A27: 20 | B27: =IF(A27>=#REF!,"",IF(A27<=#REF!,#REF!,#REF!)) ->  | C27: =IF(A27>=#REF!,"",IF(A27<=#REF!,#REF!,#REF!)) ->  | D27: =IF(A27>#REF!,"",#REF!) ->  | F27: 20 | G27: =IF(F27>=#REF!,"",IF(F27<=#REF!,#REF!,#REF!)) ->  | H27: =IF(F27>=#REF!,"",IF(F27<=#REF!,#REF!,#REF!)) ->  | I27: =IF(F27>#REF!,"",PMT(#REF!/12,#REF!,-#REF!)) ->  | N27: 20 | O27: =IF(N27>#REF!,"",$L$7) ->  | P27: =IF(N27>=#REF!,"",IF(N27<=#REF!,#REF!,#REF!)) ->  | Q27: =IF(N27>#REF!,"",#REF!) ->  | V27: 20 | W27: =IF(V27>#REF!,"",$T$7) ->  | X27: =IF(V27>=#REF!,"",IF(V27<=#REF!,#REF!,#REF!)) ->  | Y27: =IF(V27>#REF!,"",#REF!) ->  | AG27: 20
A28: 21 | B28: =IF(A28>=#REF!,"",IF(A28<=#REF!,#REF!,#REF!)) ->  | C28: =IF(A28>=#REF!,"",IF(A28<=#REF!,#REF!,#REF!)) ->  | D28: =IF(A28>#REF!,"",#REF!) ->  | F28: 21 | G28: =IF(F28>=#REF!,"",IF(F28<=#REF!,#REF!,#REF!)) ->  | H28: =IF(F28>=#REF!,"",IF(F28<=#REF!,#REF!,#REF!)) ->  | I28: =IF(F28>#REF!,"",PMT(#REF!/12,#REF!,-#REF!)) ->  | N28: 21 | O28: =IF(N28>#REF!,"",$L$7) ->  | P28: =IF(N28>=#REF!,"",IF(N28<=#REF!,#REF!,#REF!)) ->  | Q28: =IF(N28>#REF!,"",#REF!) ->  | V28: 21 | W28: =IF(V28>#REF!,"",$T$7) ->  | X28: =IF(V28>=#REF!,"",IF(V28<=#REF!,#REF!,#REF!)) ->  | Y28: =IF(V28>#REF!,"",#REF!) ->  | AG28: 21
A29: 22 | B29: =IF(A29>=#REF!,"",IF(A29<=#REF!,#REF!,#REF!)) ->  | C29: =IF(A29>=#REF!,"",IF(A29<=#REF!,#REF!,#REF!)) ->  | D29: =IF(A29>#REF!,"",#REF!) ->  | F29: 22 | G29: =IF(F29>=#REF!,"",IF(F29<=#REF!,#REF!,#REF!)) ->  | H29: =IF(F29>=#REF!,"",IF(F29<=#REF!,#REF!,#REF!)) ->  | I29: =IF(F29>#REF!,"",PMT(#REF!/12,#REF!,-#REF!)) ->  | N29: 22 | O29: =IF(N29>#REF!,"",$L$7) ->  | P29: =IF(N29>=#REF!,"",IF(N29<=#REF!,#REF!,#REF!)) ->  | Q29: =IF(N29>#REF!,"",#REF!) ->  | V29: 22 | W29: =IF(V29>#REF!,"",$T$7) ->  | X29: =IF(V29>=#REF!,"",IF(V29<=#REF!,#REF!,#REF!)) ->  | Y29: =IF(V29>#REF!,"",#REF!) ->  | AG29: 22
A30: 23 | B30: =IF(A30>=#REF!,"",IF(A30<=#REF!,#REF!,#REF!)) ->  | C30: =IF(A30>=#REF!,"",IF(A30<=#REF!,#REF!,#REF!)) ->  | D30: =IF(A30>#REF!,"",#REF!) ->  | F30: 23 | G30: =IF(F30>=#REF!,"",IF(F30<=#REF!,#REF!,#REF!)) ->  | H30: =IF(F30>=#REF!,"",IF(F30<=#REF!,#REF!,#REF!)) ->  | I30: =IF(F30>#REF!,"",PMT(#REF!/12,#REF!,-#REF!)) ->  | N30: 23 | O30: =IF(N30>#REF!,"",$L$7) ->  | P30: =IF(N30>=#REF!,"",IF(N30<=#REF!,#REF!,#REF!)) ->  | Q30: =IF(N30>#REF!,"",#REF!) ->  | V30: 23 | W30: =IF(V30>#REF!,"",$T$7) ->  | X30: =IF(V30>=#REF!,"",IF(V30<=#REF!,#REF!,#REF!)) ->  | Y30: =IF(V30>#REF!,"",#REF!) ->  | AG30: 23
A31: 24 | B31: =IF(A31>=#REF!,"",IF(A31<=#REF!,#REF!,#REF!)) ->  | C31: =IF(A31>=#REF!,"",IF(A31<=#REF!,#REF!,#REF!)) ->  | D31: =IF(A31>#REF!,"",#REF!) ->  | F31: 24 | G31: =IF(F31>=#REF!,"",IF(F31<=#REF!,#REF!,#REF!)) ->  | H31: =IF(F31>=#REF!,"",IF(F31<=#REF!,#REF!,#REF!)) ->  | I31: =IF(F31>#REF!,"",PMT(#REF!/12,#REF!,-#REF!)) ->  | N31: 24 | O31: =IF(N31>#REF!,"",$L$7) ->  | P31: =IF(N31>=#REF!,"",IF(N31<=#REF!,#REF!,#REF!)) ->  | Q31: =IF(N31>#REF!,"",#REF!) ->  | V31: 24 | W31: =IF(V31>#REF!,"",$T$7) ->  | X31: =IF(V31>=#REF!,"",IF(V31<=#REF!,#REF!,#REF!)) ->  | Y31: =IF(V31>#REF!,"",#REF!) ->  | AG31: 24
A32: 25 | B32: =IF(A32>=#REF!,"",IF(A32<=#REF!,#REF!,#REF!)) ->  | C32: =IF(A32>=#REF!,"",IF(A32<=#REF!,#REF!,#REF!)) ->  | D32: =IF(A32>#REF!,"",#REF!) ->  | F32: 25 | G32: =IF(F32>=#REF!,"",IF(F32<=#REF!,#REF!,#REF!)) ->  | H32: =IF(F32>=#REF!,"",IF(F32<=#REF!,#REF!,#REF!)) ->  | I32: =IF(F32>#REF!,"",PMT(#REF!/12,#REF!,-#REF!)) ->  | N32: 25 | O32: =IF(N32>#REF!,"",$L$7) ->  | P32: =IF(N32>=#REF!,"",IF(N32<=#REF!,#REF!,#REF!)) ->  | Q32: =IF(N32>#REF!,"",#REF!) ->  | V32: 25 | W32: =IF(V32>#REF!,"",$T$7) ->  | X32: =IF(V32>=#REF!,"",IF(V32<=#REF!,#REF!,#REF!)) ->  | Y32: =IF(V32>#REF!,"",#REF!) ->  | AG32: 25
A33: 26 | B33: =IF(A33>=#REF!,"",IF(A33<=#REF!,#REF!,#REF!)) ->  | C33: =IF(A33>=#REF!,"",IF(A33<=#REF!,#REF!,#REF!)) ->  | D33: =IF(A33>#REF!,"",#REF!) ->  | F33: 26 | G33: =IF(F33>=#REF!,"",IF(F33<=#REF!,#REF!,#REF!)) ->  | H33: =IF(F33>=#REF!,"",IF(F33<=#REF!,#REF!,#REF!)) ->  | I33: =IF(F33>#REF!,"",PMT(#REF!/12,#REF!,-#REF!)) ->  | N33: 26 | O33: =IF(N33>#REF!,"",$L$7) ->  | P33: =IF(N33>=#REF!,"",IF(N33<=#REF!,#REF!,#REF!)) ->  | Q33: =IF(N33>#REF!,"",#REF!) ->  | V33: 26 | W33: =IF(V33>#REF!,"",$T$7) ->  | X33: =IF(V33>=#REF!,"",IF(V33<=#REF!,#REF!,#REF!)) ->  | Y33: =IF(V33>#REF!,"",#REF!) ->  | AG33: 26
A34: 27 | B34: =IF(A34>=#REF!,"",IF(A34<=#REF!,#REF!,#REF!)) ->  | C34: =IF(A34>=#REF!,"",IF(A34<=#REF!,#REF!,#REF!)) ->  | D34: =IF(A34>#REF!,"",#REF!) ->  | F34: 27 | G34: =IF(F34>=#REF!,"",IF(F34<=#REF!,#REF!,#REF!)) ->  | H34: =IF(F34>=#REF!,"",IF(F34<=#REF!,#REF!,#REF!)) ->  | I34: =IF(F34>#REF!,"",PMT(#REF!/12,#REF!,-#REF!)) ->  | N34: 27 | O34: =IF(N34>#REF!,"",$L$7) ->  | P34: =IF(N34>=#REF!,"",IF(N34<=#REF!,#REF!,#REF!)) ->  | Q34: =IF(N34>#REF!,"",#REF!) ->  | V34: 27 | W34: =IF(V34>#REF!,"",$T$7) ->  | X34: =IF(V34>=#REF!,"",IF(V34<=#REF!,#REF!,#REF!)) ->  | Y34: =IF(V34>#REF!,"",#REF!) ->  | AG34: 27
A35: 28 | B35: =IF(A35>=#REF!,"",IF(A35<=#REF!,#REF!,#REF!)) ->  | C35: =IF(A35>=#REF!,"",IF(A35<=#REF!,#REF!,#REF!)) ->  | D35: =IF(A35>#REF!,"",#REF!) ->  | F35: 28 | G35: =IF(F35>=#REF!,"",IF(F35<=#REF!,#REF!,#REF!)) ->  | H35: =IF(F35>=#REF!,"",IF(F35<=#REF!,#REF!,#REF!)) ->  | I35: =IF(F35>#REF!,"",PMT(#REF!/12,#REF!,-#REF!)) ->  | N35: 28 | O35: =IF(N35>#REF!,"",$L$7) ->  | P35: =IF(N35>=#REF!,"",IF(N35<=#REF!,#REF!,#REF!)) ->  | Q35: =IF(N35>#REF!,"",#REF!) ->  | V35: 28 | W35: =IF(V35>#REF!,"",$T$7) ->  | X35: =IF(V35>=#REF!,"",IF(V35<=#REF!,#REF!,#REF!)) ->  | Y35: =IF(V35>#REF!,"",#REF!) ->  | AG35: 28
A36: 29 | B36: =IF(A36>=#REF!,"",IF(A36<=#REF!,#REF!,#REF!)) ->  | C36: =IF(A36>=#REF!,"",IF(A36<=#REF!,#REF!,#REF!)) ->  | D36: =IF(A36>#REF!,"",#REF!) ->  | F36: 29 | G36: =IF(F36>=#REF!,"",IF(F36<=#REF!,#REF!,#REF!)) ->  | H36: =IF(F36>=#REF!,"",IF(F36<=#REF!,#REF!,#REF!)) ->  | I36: =IF(F36>#REF!,"",PMT(#REF!/12,#REF!,-#REF!)) ->  | N36: 29 | O36: =IF(N36>#REF!,"",$L$7) ->  | P36: =IF(N36>=#REF!,"",IF(N36<=#REF!,#REF!,#REF!)) ->  | Q36: =IF(N36>#REF!,"",#REF!) ->  | V36: 29 | W36: =IF(V36>#REF!,"",$T$7) ->  | X36: =IF(V36>=#REF!,"",IF(V36<=#REF!,#REF!,#REF!)) ->  | Y36: =IF(V36>#REF!,"",#REF!) ->  | AG36: 29
A37: 30 | B37: =IF(A37>=#REF!,"",IF(A37<=#REF!,#REF!,#REF!)) ->  | C37: =IF(A37>=#REF!,"",IF(A37<=#REF!,#REF!,#REF!)) ->  | D37: =IF(A37>#REF!,"",#REF!) ->  | F37: 30 | G37: =IF(F37>=#REF!,"",IF(F37<=#REF!,#REF!,#REF!)) ->  | H37: =IF(F37>=#REF!,"",IF(F37<=#REF!,#REF!,#REF!)) ->  | I37: =IF(F37>#REF!,"",PMT(#REF!/12,#REF!,-#REF!)) ->  | N37: 30 | O37: =IF(N37>#REF!,"",$L$7) ->  | P37: =IF(N37>=#REF!,"",IF(N37<=#REF!,#REF!,#REF!)) ->  | Q37: =IF(N37>#REF!,"",#REF!) ->  | V37: 30 | W37: =IF(V37>#REF!,"",$T$7) ->  | X37: =IF(V37>=#REF!,"",IF(V37<=#REF!,#REF!,#REF!)) ->  | Y37: =IF(V37>#REF!,"",#REF!) ->  | AG37: 30
A38: 31 | B38: =IF(A38>=#REF!,"",IF(A38<=#REF!,#REF!,#REF!)) ->  | C38: =IF(A38>=#REF!,"",IF(A38<=#REF!,#REF!,#REF!)) ->  | D38: =IF(A38>#REF!,"",#REF!) ->  | F38: 31 | G38: =IF(F38>=#REF!,"",IF(F38<=#REF!,#REF!,#REF!)) ->  | H38: =IF(F38>=#REF!,"",IF(F38<=#REF!,#REF!,#REF!)) ->  | I38: =IF(F38>#REF!,"",PMT(#REF!/12,#REF!,-#REF!)) ->  | N38: 31 | O38: =IF(N38>#REF!,"",$L$7) ->  | P38: =IF(N38>=#REF!,"",IF(N38<=#REF!,#REF!,#REF!)) ->  | Q38: =IF(N38>#REF!,"",#REF!) ->  | V38: 31 | W38: =IF(V38>#REF!,"",$T$7) ->  | X38: =IF(V38>=#REF!,"",IF(V38<=#REF!,#REF!,#REF!)) ->  | Y38: =IF(V38>#REF!,"",#REF!) ->  | AG38: 31
A39: 32 | B39: =IF(A39>=#REF!,"",IF(A39<=#REF!,#REF!,#REF!)) ->  | C39: =IF(A39>=#REF!,"",IF(A39<=#REF!,#REF!,#REF!)) ->  | D39: =IF(A39>#REF!,"",#REF!) ->  | F39: 32 | G39: =IF(F39>=#REF!,"",IF(F39<=#REF!,#REF!,#REF!)) ->  | H39: =IF(F39>=#REF!,"",IF(F39<=#REF!,#REF!,#REF!)) ->  | I39: =IF(F39>#REF!,"",PMT(#REF!/12,#REF!,-#REF!)) ->  | N39: 32 | O39: =IF(N39>#REF!,"",$L$7) ->  | P39: =IF(N39>=#REF!,"",IF(N39<=#REF!,#REF!,#REF!)) ->  | Q39: =IF(N39>#REF!,"",#REF!) ->  | V39: 32 | W39: =IF(V39>#REF!,"",$T$7) ->  | X39: =IF(V39>=#REF!,"",IF(V39<=#REF!,#REF!,#REF!)) ->  | Y39: =IF(V39>#REF!,"",#REF!) ->  | AG39: 32
A40: 33 | B40: =IF(A40>=#REF!,"",IF(A40<=#REF!,#REF!,#REF!)) ->  | C40: =IF(A40>=#REF!,"",IF(A40<=#REF!,#REF!,#REF!)) ->  | D40: =IF(A40>#REF!,"",#REF!) ->  | F40: 33 | G40: =IF(F40>=#REF!,"",IF(F40<=#REF!,#REF!,#REF!)) ->  | H40: =IF(F40>=#REF!,"",IF(F40<=#REF!,#REF!,#REF!)) ->  | I40: =IF(F40>#REF!,"",PMT(#REF!/12,#REF!,-#REF!)) ->  | N40: 33 | O40: =IF(N40>#REF!,"",$L$7) ->  | P40: =IF(N40>=#REF!,"",IF(N40<=#REF!,#REF!,#REF!)) ->  | Q40: =IF(N40>#REF!,"",#REF!) ->  | V40: 33 | W40: =IF(V40>#REF!,"",$T$7) ->  | X40: =IF(V40>=#REF!,"",IF(V40<=#REF!,#REF!,#REF!)) ->  | Y40: =IF(V40>#REF!,"",#REF!) ->  | AG40: 33
A41: 34 | B41: =IF(A41>=#REF!,"",IF(A41<=#REF!,#REF!,#REF!)) ->  | C41: =IF(A41>=#REF!,"",IF(A41<=#REF!,#REF!,#REF!)) ->  | D41: =IF(A41>#REF!,"",#REF!) ->  | F41: 34 | G41: =IF(F41>=#REF!,"",IF(F41<=#REF!,#REF!,#REF!)) ->  | H41: =IF(F41>=#REF!,"",IF(F41<=#REF!,#REF!,#REF!)) ->  | I41: =IF(F41>#REF!,"",PMT(#REF!/12,#REF!,-#REF!)) ->  | N41: 34 | O41: =IF(N41>#REF!,"",$L$7) ->  | P41: =IF(N41>=#REF!,"",IF(N41<=#REF!,#REF!,#REF!)) ->  | Q41: =IF(N41>#REF!,"",#REF!) ->  | V41: 34 | W41: =IF(V41>#REF!,"",$T$7) ->  | X41: =IF(V41>=#REF!,"",IF(V41<=#REF!,#REF!,#REF!)) ->  | Y41: =IF(V41>#REF!,"",#REF!) ->  | AG41: 34
A42: 35 | B42: =IF(A42>=#REF!,"",IF(A42<=#REF!,#REF!,#REF!)) ->  | C42: =IF(A42>=#REF!,"",IF(A42<=#REF!,#REF!,#REF!)) ->  | D42: =IF(A42>#REF!,"",#REF!) ->  | F42: 35 | G42: =IF(F42>=#REF!,"",IF(F42<=#REF!,#REF!,#REF!)) ->  | H42: =IF(F42>=#REF!,"",IF(F42<=#REF!,#REF!,#REF!)) ->  | I42: =IF(F42>#REF!,"",PMT(#REF!/12,#REF!,-#REF!)) ->  | N42: 35 | O42: =IF(N42>#REF!,"",$L$7) ->  | P42: =IF(N42>=#REF!,"",IF(N42<=#REF!,#REF!,#REF!)) ->  | Q42: =IF(N42>#REF!,"",#REF!) ->  | V42: 35 | W42: =IF(V42>#REF!,"",$T$7) ->  | X42: =IF(V42>=#REF!,"",IF(V42<=#REF!,#REF!,#REF!)) ->  | Y42: =IF(V42>#REF!,"",#REF!) ->  | AG42: 35
A43: 36 | B43: =IF(A43>=#REF!,"",IF(A43<=#REF!,#REF!,#REF!)) ->  | C43: =IF(A43>=#REF!,"",IF(A43<=#REF!,#REF!,#REF!)) ->  | D43: =IF(A43>#REF!,"",#REF!) ->  | F43: 36 | G43: =IF(F43>=#REF!,"",IF(F43<=#REF!,#REF!,#REF!)) ->  | H43: =IF(F43>=#REF!,"",IF(F43<=#REF!,#REF!,#REF!)) ->  | I43: =IF(F43>#REF!,"",PMT(#REF!/12,#REF!,-#REF!)) ->  | N43: 36 | O43: =IF(N43>#REF!,"",$L$7) ->  | P43: =IF(N43>=#REF!,"",IF(N43<=#REF!,#REF!,#REF!)) ->  | Q43: =IF(N43>#REF!,"",#REF!) ->  | V43: 36 | W43: =IF(V43>#REF!,"",$T$7) ->  | X43: =IF(V43>=#REF!,"",IF(V43<=#REF!,#REF!,#REF!)) ->  | Y43: =IF(V43>#REF!,"",#REF!) ->  | AG43: 36
A44: 37 | B44: =IF(A44>=#REF!,"",IF(A44<=#REF!,#REF!,#REF!)) ->  | C44: =IF(A44>=#REF!,"",IF(A44<=#REF!,#REF!,#REF!)) ->  | D44: =IF(A44>#REF!,"",#REF!) ->  | F44: 37 | G44: =IF(F44>=#REF!,"",IF(F44<=#REF!,#REF!,#REF!)) ->  | H44: =IF(F44>=#REF!,"",IF(F44<=#REF!,#REF!,#REF!)) ->  | I44: =IF(F44>#REF!,"",PMT(#REF!/12,#REF!,-#REF!)) ->  | N44: 37 | O44: =IF(N44>#REF!,"",$L$7) ->  | P44: =IF(N44>=#REF!,"",IF(N44<=#REF!,#REF!,#REF!)) ->  | Q44: =IF(N44>#REF!,"",#REF!) ->  | V44: 37 | W44: =IF(V44>#REF!,"",$T$7) ->  | X44: =IF(V44>=#REF!,"",IF(V44<=#REF!,#REF!,#REF!)) ->  | Y44: =IF(V44>#REF!,"",#REF!) ->  | AG44: 37
A45: 38 | B45: =IF(A45>=#REF!,"",IF(A45<=#REF!,#REF!,#REF!)) ->  | C45: =IF(A45>=#REF!,"",IF(A45<=#REF!,#REF!,#REF!)) ->  | D45: =IF(A45>#REF!,"",#REF!) ->  | F45: 38 | G45: =IF(F45>=#REF!,"",IF(F45<=#REF!,#REF!,#REF!)) ->  | H45: =IF(F45>=#REF!,"",IF(F45<=#REF!,#REF!,#REF!)) ->  | I45: =IF(F45>#REF!,"",PMT(#REF!/12,#REF!,-#REF!)) ->  | N45: 38 | O45: =IF(N45>#REF!,"",$L$7) ->  | P45: =IF(N45>=#REF!,"",IF(N45<=#REF!,#REF!,#REF!)) ->  | Q45: =IF(N45>#REF!,"",#REF!) ->  | V45: 38 | W45: =IF(V45>#REF!,"",$T$7) ->  | X45: =IF(V45>=#REF!,"",IF(V45<=#REF!,#REF!,#REF!)) ->  | Y45: =IF(V45>#REF!,"",#REF!) ->  | AG45: 38
A46: 39 | B46: =IF(A46>=#REF!,"",IF(A46<=#REF!,#REF!,#REF!)) ->  | C46: =IF(A46>=#REF!,"",IF(A46<=#REF!,#REF!,#REF!)) ->  | D46: =IF(A46>#REF!,"",#REF!) ->  | F46: 39 | G46: =IF(F46>=#REF!,"",IF(F46<=#REF!,#REF!,#REF!)) ->  | H46: =IF(F46>=#REF!,"",IF(F46<=#REF!,#REF!,#REF!)) ->  | I46: =IF(F46>#REF!,"",PMT(#REF!/12,#REF!,-#REF!)) ->  | N46: 39 | O46: =IF(N46>#REF!,"",$L$7) ->  | P46: =IF(N46>=#REF!,"",IF(N46<=#REF!,#REF!,#REF!)) ->  | Q46: =IF(N46>#REF!,"",#REF!) ->  | V46: 39 | W46: =IF(V46>#REF!,"",$T$7) ->  | X46: =IF(V46>=#REF!,"",IF(V46<=#REF!,#REF!,#REF!)) ->  | Y46: =IF(V46>#REF!,"",#REF!) ->  | AG46: 39
A47: 40 | B47: =IF(A47>=#REF!,"",IF(A47<=#REF!,#REF!,#REF!)) ->  | C47: =IF(A47>=#REF!,"",IF(A47<=#REF!,#REF!,#REF!)) ->  | D47: =IF(A47>#REF!,"",#REF!) ->  | F47: 40 | G47: =IF(F47>=#REF!,"",IF(F47<=#REF!,#REF!,#REF!)) ->  | H47: =IF(F47>=#REF!,"",IF(F47<=#REF!,#REF!,#REF!)) ->  | I47: =IF(F47>#REF!,"",PMT(#REF!/12,#REF!,-#REF!)) ->  | N47: 40 | O47: =IF(N47>#REF!,"",$L$7) ->  | P47: =IF(N47>=#REF!,"",IF(N47<=#REF!,#REF!,#REF!)) ->  | Q47: =IF(N47>#REF!,"",#REF!) ->  | V47: 40 | W47: =IF(V47>#REF!,"",$T$7) ->  | X47: =IF(V47>=#REF!,"",IF(V47<=#REF!,#REF!,#REF!)) ->  | Y47: =IF(V47>#REF!,"",#REF!) ->  | AG47: 40
A48: 41 | B48: =IF(A48>=#REF!,"",IF(A48<=#REF!,#REF!,#REF!)) ->  | C48: =IF(A48>=#REF!,"",IF(A48<=#REF!,#REF!,#REF!)) ->  | D48: =IF(A48>#REF!,"",#REF!) ->  | F48: 41 | G48: =IF(F48>=#REF!,"",IF(F48<=#REF!,#REF!,#REF!)) ->  | H48: =IF(F48>=#REF!,"",IF(F48<=#REF!,#REF!,#REF!)) ->  | I48: =IF(F48>#REF!,"",PMT(#REF!/12,#REF!,-#REF!)) ->  | N48: 41 | O48: =IF(N48>#REF!,"",$L$7) ->  | P48: =IF(N48>=#REF!,"",IF(N48<=#REF!,#REF!,#REF!)) ->  | Q48: =IF(N48>#REF!,"",#REF!) ->  | V48: 41 | W48: =IF(V48>#REF!,"",$T$7) ->  | X48: =IF(V48>=#REF!,"",IF(V48<=#REF!,#REF!,#REF!)) ->  | Y48: =IF(V48>#REF!,"",#REF!) ->  | AG48: 41
A49: 42 | B49: =IF(A49>=#REF!,"",IF(A49<=#REF!,#REF!,#REF!)) ->  | C49: =IF(A49>=#REF!,"",IF(A49<=#REF!,#REF!,#REF!)) ->  | D49: =IF(A49>#REF!,"",#REF!) ->  | F49: 42 | G49: =IF(F49>=#REF!,"",IF(F49<=#REF!,#REF!,#REF!)) ->  | H49: =IF(F49>=#REF!,"",IF(F49<=#REF!,#REF!,#REF!)) ->  | I49: =IF(F49>#REF!,"",PMT(#REF!/12,#REF!,-#REF!)) ->  | N49: 42 | O49: =IF(N49>#REF!,"",$L$7) ->  | P49: =IF(N49>=#REF!,"",IF(N49<=#REF!,#REF!,#REF!)) ->  | Q49: =IF(N49>#REF!,"",#REF!) ->  | V49: 42 | W49: =IF(V49>#REF!,"",$T$7) ->  | X49: =IF(V49>=#REF!,"",IF(V49<=#REF!,#REF!,#REF!)) ->  | Y49: =IF(V49>#REF!,"",#REF!) ->  | AG49: 42
A50: 43 | B50: =IF(A50>=#REF!,"",IF(A50<=#REF!,#REF!,#REF!)) ->  | C50: =IF(A50>=#REF!,"",IF(A50<=#REF!,#REF!,#REF!)) ->  | D50: =IF(A50>#REF!,"",#REF!) ->  | F50: 43 | G50: =IF(F50>=#REF!,"",IF(F50<=#REF!,#REF!,#REF!)) ->  | H50: =IF(F50>=#REF!,"",IF(F50<=#REF!,#REF!,#REF!)) ->  | I50: =IF(F50>#REF!,"",PMT(#REF!/12,#REF!,-#REF!)) ->  | N50: 43 | O50: =IF(N50>#REF!,"",$L$7) ->  | P50: =IF(N50>=#REF!,"",IF(N50<=#REF!,#REF!,#REF!)) ->  | Q50: =IF(N50>#REF!,"",#REF!) ->  | V50: 43 | W50: =IF(V50>#REF!,"",$T$7) ->  | X50: =IF(V50>=#REF!,"",IF(V50<=#REF!,#REF!,#REF!)) ->  | Y50: =IF(V50>#REF!,"",#REF!) ->  | AG50: 43
A51: 44 | B51: =IF(A51>=#REF!,"",IF(A51<=#REF!,#REF!,#REF!)) ->  | C51: =IF(A51>=#REF!,"",IF(A51<=#REF!,#REF!,#REF!)) ->  | D51: =IF(A51>#REF!,"",#REF!) ->  | F51: 44 | G51: =IF(F51>=#REF!,"",IF(F51<=#REF!,#REF!,#REF!)) ->  | H51: =IF(F51>=#REF!,"",IF(F51<=#REF!,#REF!,#REF!)) ->  | I51: =IF(F51>#REF!,"",PMT(#REF!/12,#REF!,-#REF!)) ->  | N51: 44 | O51: =IF(N51>#REF!,"",$L$7) ->  | P51: =IF(N51>=#REF!,"",IF(N51<=#REF!,#REF!,#REF!)) ->  | Q51: =IF(N51>#REF!,"",#REF!) ->  | V51: 44 | W51: =IF(V51>#REF!,"",$T$7) ->  | X51: =IF(V51>=#REF!,"",IF(V51<=#REF!,#REF!,#REF!)) ->  | Y51: =IF(V51>#REF!,"",#REF!) ->  | AG51: 44
A52: 45 | B52: =IF(A52>=#REF!,"",IF(A52<=#REF!,#REF!,#REF!)) ->  | C52: =IF(A52>=#REF!,"",IF(A52<=#REF!,#REF!,#REF!)) ->  | D52: =IF(A52>#REF!,"",#REF!) ->  | F52: 45 | G52: =IF(F52>=#REF!,"",IF(F52<=#REF!,#REF!,#REF!)) ->  | H52: =IF(F52>=#REF!,"",IF(F52<=#REF!,#REF!,#REF!)) ->  | I52: =IF(F52>#REF!,"",PMT(#REF!/12,#REF!,-#REF!)) ->  | N52: 45 | O52: =IF(N52>#REF!,"",$L$7) ->  | P52: =IF(N52>=#REF!,"",IF(N52<=#REF!,#REF!,#REF!)) ->  | Q52: =IF(N52>#REF!,"",#REF!) ->  | V52: 45 | W52: =IF(V52>#REF!,"",$T$7) ->  | X52: =IF(V52>=#REF!,"",IF(V52<=#REF!,#REF!,#REF!)) ->  | Y52: =IF(V52>#REF!,"",#REF!) ->  | AG52: 45
A53: 46 | B53: =IF(A53>=#REF!,"",IF(A53<=#REF!,#REF!,#REF!)) ->  | C53: =IF(A53>=#REF!,"",IF(A53<=#REF!,#REF!,#REF!)) ->  | D53: =IF(A53>#REF!,"",#REF!) ->  | F53: 46 | G53: =IF(F53>=#REF!,"",IF(F53<=#REF!,#REF!,#REF!)) ->  | H53: =IF(F53>=#REF!,"",IF(F53<=#REF!,#REF!,#REF!)) ->  | I53: =IF(F53>#REF!,"",PMT(#REF!/12,#REF!,-#REF!)) ->  | N53: 46 | O53: =IF(N53>#REF!,"",$L$7) ->  | P53: =IF(N53>=#REF!,"",IF(N53<=#REF!,#REF!,#REF!)) ->  | Q53: =IF(N53>#REF!,"",#REF!) ->  | V53: 46 | W53: =IF(V53>#REF!,"",$T$7) ->  | X53: =IF(V53>=#REF!,"",IF(V53<=#REF!,#REF!,#REF!)) ->  | Y53: =IF(V53>#REF!,"",#REF!) ->  | AG53: 46
A54: 47 | B54: =IF(A54>=#REF!,"",IF(A54<=#REF!,#REF!,#REF!)) ->  | C54: =IF(A54>=#REF!,"",IF(A54<=#REF!,#REF!,#REF!)) ->  | D54: =IF(A54>#REF!,"",#REF!) ->  | F54: 47 | G54: =IF(F54>=#REF!,"",IF(F54<=#REF!,#REF!,#REF!)) ->  | H54: =IF(F54>=#REF!,"",IF(F54<=#REF!,#REF!,#REF!)) ->  | I54: =IF(F54>#REF!,"",PMT(#REF!/12,#REF!,-#REF!)) ->  | N54: 47 | O54: =IF(N54>#REF!,"",$L$7) ->  | P54: =IF(N54>=#REF!,"",IF(N54<=#REF!,#REF!,#REF!)) ->  | Q54: =IF(N54>#REF!,"",#REF!) ->  | V54: 47 | W54: =IF(V54>#REF!,"",$T$7) ->  | X54: =IF(V54>=#REF!,"",IF(V54<=#REF!,#REF!,#REF!)) ->  | Y54: =IF(V54>#REF!,"",#REF!) ->  | AG54: 47
A55: 48 | B55: =IF(A55>=#REF!,"",IF(A55<=#REF!,#REF!,#REF!)) ->  | C55: =IF(A55>=#REF!,"",IF(A55<=#REF!,#REF!,#REF!)) ->  | D55: =IF(A55>#REF!,"",#REF!) ->  | F55: 48 | G55: =IF(F55>=#REF!,"",IF(F55<=#REF!,#REF!,#REF!)) ->  | H55: =IF(F55>=#REF!,"",IF(F55<=#REF!,#REF!,#REF!)) ->  | I55: =IF(F55>#REF!,"",PMT(#REF!/12,#REF!,-#REF!)) ->  | N55: 48 | O55: =IF(N55>#REF!,"",$L$7) ->  | P55: =IF(N55>=#REF!,"",IF(N55<=#REF!,#REF!,#REF!)) ->  | Q55: =IF(N55>#REF!,"",#REF!) ->  | V55: 48 | W55: =IF(V55>#REF!,"",$T$7) ->  | X55: =IF(V55>=#REF!,"",IF(V55<=#REF!,#REF!,#REF!)) ->  | Y55: =IF(V55>#REF!,"",#REF!) ->  | AG55: 48
A56: 49 | B56: =IF(A56>=#REF!,"",IF(A56<=#REF!,#REF!,#REF!)) ->  | C56: =IF(A56>=#REF!,"",IF(A56<=#REF!,#REF!,#REF!)) ->  | D56: =IF(A56>#REF!,"",#REF!) ->  | F56: 49 | G56: =IF(F56>=#REF!,"",IF(F56<=#REF!,#REF!,#REF!)) ->  | H56: =IF(F56>=#REF!,"",IF(F56<=#REF!,#REF!,#REF!)) ->  | I56: =IF(F56>#REF!,"",PMT(#REF!/12,#REF!,-#REF!)) ->  | N56: 49 | O56: =IF(N56>#REF!,"",$L$7) ->  | P56: =IF(N56>=#REF!,"",IF(N56<=#REF!,#REF!,#REF!)) ->  | Q56: =IF(N56>#REF!,"",#REF!) ->  | V56: 49 | W56: =IF(V56>#REF!,"",$T$7) ->  | X56: =IF(V56>=#REF!,"",IF(V56<=#REF!,#REF!,#REF!)) ->  | Y56: =IF(V56>#REF!,"",#REF!) ->  | AG56: 49
A57: 50 | B57: =IF(A57>=#REF!,"",IF(A57<=#REF!,#REF!,#REF!)) ->  | C57: =IF(A57>=#REF!,"",IF(A57<=#REF!,#REF!,#REF!)) ->  | D57: =IF(A57>#REF!,"",#REF!) ->  | F57: 50 | G57: =IF(F57>=#REF!,"",IF(F57<=#REF!,#REF!,#REF!)) ->  | H57: =IF(F57>=#REF!,"",IF(F57<=#REF!,#REF!,#REF!)) ->  | I57: =IF(F57>#REF!,"",PMT(#REF!/12,#REF!,-#REF!)) ->  | N57: 50 | O57: =IF(N57>#REF!,"",$L$7) ->  | P57: =IF(N57>=#REF!,"",IF(N57<=#REF!,#REF!,#REF!)) ->  | Q57: =IF(N57>#REF!,"",#REF!) ->  | V57: 50 | W57: =IF(V57>#REF!,"",$T$7) ->  | X57: =IF(V57>=#REF!,"",IF(V57<=#REF!,#REF!,#REF!)) ->  | Y57: =IF(V57>#REF!,"",#REF!) ->  | AG57: 50
A58: 51 | B58: =IF(A58>=#REF!,"",IF(A58<=#REF!,#REF!,#REF!)) ->  | C58: =IF(A58>=#REF!,"",IF(A58<=#REF!,#REF!,#REF!)) ->  | D58: =IF(A58>#REF!,"",#REF!) ->  | F58: 51 | G58: =IF(F58>=#REF!,"",IF(F58<=#REF!,#REF!,#REF!)) ->  | H58: =IF(F58>=#REF!,"",IF(F58<=#REF!,#REF!,#REF!)) ->  | I58: =IF(F58>#REF!,"",PMT(#REF!/12,#REF!,-#REF!)) ->  | N58: 51 | O58: =IF(N58>#REF!,"",$L$7) ->  | P58: =IF(N58>=#REF!,"",IF(N58<=#REF!,#REF!,#REF!)) ->  | Q58: =IF(N58>#REF!,"",#REF!) ->  | V58: 51 | W58: =IF(V58>#REF!,"",$T$7) ->  | X58: =IF(V58>=#REF!,"",IF(V58<=#REF!,#REF!,#REF!)) ->  | Y58: =IF(V58>#REF!,"",#REF!) ->  | AG58: 51
A59: 52 | B59: =IF(A59>=#REF!,"",IF(A59<=#REF!,#REF!,#REF!)) ->  | C59: =IF(A59>=#REF!,"",IF(A59<=#REF!,#REF!,#REF!)) ->  | D59: =IF(A59>#REF!,"",#REF!) ->  | F59: 52 | G59: =IF(F59>=#REF!,"",IF(F59<=#REF!,#REF!,#REF!)) ->  | H59: =IF(F59>=#REF!,"",IF(F59<=#REF!,#REF!,#REF!)) ->  | I59: =IF(F59>#REF!,"",PMT(#REF!/12,#REF!,-#REF!)) ->  | N59: 52 | O59: =IF(N59>#REF!,"",$L$7) ->  | P59: =IF(N59>=#REF!,"",IF(N59<=#REF!,#REF!,#REF!)) ->  | Q59: =IF(N59>#REF!,"",#REF!) ->  | V59: 52 | W59: =IF(V59>#REF!,"",$T$7) ->  | X59: =IF(V59>=#REF!,"",IF(V59<=#REF!,#REF!,#REF!)) ->  | Y59: =IF(V59>#REF!,"",#REF!) ->  | AG59: 52
A60: 53 | B60: =IF(A60>=#REF!,"",IF(A60<=#REF!,#REF!,#REF!)) ->  | C60: =IF(A60>=#REF!,"",IF(A60<=#REF!,#REF!,#REF!)) ->  | D60: =IF(A60>#REF!,"",#REF!) ->  | F60: 53 | G60: =IF(F60>=#REF!,"",IF(F60<=#REF!,#REF!,#REF!)) ->  | H60: =IF(F60>=#REF!,"",IF(F60<=#REF!,#REF!,#REF!)) ->  | I60: =IF(F60>#REF!,"",PMT(#REF!/12,#REF!,-#REF!)) ->  | N60: 53 | O60: =IF(N60>#REF!,"",$L$7) ->  | P60: =IF(N60>=#REF!,"",IF(N60<=#REF!,#REF!,#REF!)) ->  | Q60: =IF(N60>#REF!,"",#REF!) ->  | V60: 53 | W60: =IF(V60>#REF!,"",$T$7) ->  | X60: =IF(V60>=#REF!,"",IF(V60<=#REF!,#REF!,#REF!)) ->  | Y60: =IF(V60>#REF!,"",#REF!) ->  | AG60: 53
A61: 54 | B61: =IF(A61>=#REF!,"",IF(A61<=#REF!,#REF!,#REF!)) ->  | C61: =IF(A61>=#REF!,"",IF(A61<=#REF!,#REF!,#REF!)) ->  | D61: =IF(A61>#REF!,"",#REF!) ->  | F61: 54 | G61: =IF(F61>=#REF!,"",IF(F61<=#REF!,#REF!,#REF!)) ->  | H61: =IF(F61>=#REF!,"",IF(F61<=#REF!,#REF!,#REF!)) ->  | I61: =IF(F61>#REF!,"",PMT(#REF!/12,#REF!,-#REF!)) ->  | N61: 54 | O61: =IF(N61>#REF!,"",$L$7) ->  | P61: =IF(N61>=#REF!,"",IF(N61<=#REF!,#REF!,#REF!)) ->  | Q61: =IF(N61>#REF!,"",#REF!) ->  | V61: 54 | W61: =IF(V61>#REF!,"",$T$7) ->  | X61: =IF(V61>=#REF!,"",IF(V61<=#REF!,#REF!,#REF!)) ->  | Y61: =IF(V61>#REF!,"",#REF!) ->  | AG61: 54
A62: 55 | B62: =IF(A62>=#REF!,"",IF(A62<=#REF!,#REF!,#REF!)) ->  | C62: =IF(A62>=#REF!,"",IF(A62<=#REF!,#REF!,#REF!)) ->  | D62: =IF(A62>#REF!,"",#REF!) ->  | F62: 55 | G62: =IF(F62>=#REF!,"",IF(F62<=#REF!,#REF!,#REF!)) ->  | H62: =IF(F62>=#REF!,"",IF(F62<=#REF!,#REF!,#REF!)) ->  | I62: =IF(F62>#REF!,"",PMT(#REF!/12,#REF!,-#REF!)) ->  | N62: 55 | O62: =IF(N62>#REF!,"",$L$7) ->  | P62: =IF(N62>=#REF!,"",IF(N62<=#REF!,#REF!,#REF!)) ->  | Q62: =IF(N62>#REF!,"",#REF!) ->  | V62: 55 | W62: =IF(V62>#REF!,"",$T$7) ->  | X62: =IF(V62>=#REF!,"",IF(V62<=#REF!,#REF!,#REF!)) ->  | Y62: =IF(V62>#REF!,"",#REF!) ->  | AG62: 55
A63: 56 | B63: =IF(A63>=#REF!,"",IF(A63<=#REF!,#REF!,#REF!)) ->  | C63: =IF(A63>=#REF!,"",IF(A63<=#REF!,#REF!,#REF!)) ->  | D63: =IF(A63>#REF!,"",#REF!) ->  | F63: 56 | G63: =IF(F63>=#REF!,"",IF(F63<=#REF!,#REF!,#REF!)) ->  | H63: =IF(F63>=#REF!,"",IF(F63<=#REF!,#REF!,#REF!)) ->  | I63: =IF(F63>#REF!,"",PMT(#REF!/12,#REF!,-#REF!)) ->  | N63: 56 | O63: =IF(N63>#REF!,"",$L$7) ->  | P63: =IF(N63>=#REF!,"",IF(N63<=#REF!,#REF!,#REF!)) ->  | Q63: =IF(N63>#REF!,"",#REF!) ->  | V63: 56 | W63: =IF(V63>#REF!,"",$T$7) ->  | X63: =IF(V63>=#REF!,"",IF(V63<=#REF!,#REF!,#REF!)) ->  | Y63: =IF(V63>#REF!,"",#REF!) ->  | AG63: 56
A64: 57 | B64: =IF(A64>=#REF!,"",IF(A64<=#REF!,#REF!,#REF!)) ->  | C64: =IF(A64>=#REF!,"",IF(A64<=#REF!,#REF!,#REF!)) ->  | D64: =IF(A64>#REF!,"",#REF!) ->  | F64: 57 | G64: =IF(F64>=#REF!,"",IF(F64<=#REF!,#REF!,#REF!)) ->  | H64: =IF(F64>=#REF!,"",IF(F64<=#REF!,#REF!,#REF!)) ->  | I64: =IF(F64>#REF!,"",PMT(#REF!/12,#REF!,-#REF!)) ->  | N64: 57 | O64: =IF(N64>#REF!,"",$L$7) ->  | P64: =IF(N64>=#REF!,"",IF(N64<=#REF!,#REF!,#REF!)) ->  | Q64: =IF(N64>#REF!,"",#REF!) ->  | V64: 57 | W64: =IF(V64>#REF!,"",$T$7) ->  | X64: =IF(V64>=#REF!,"",IF(V64<=#REF!,#REF!,#REF!)) ->  | Y64: =IF(V64>#REF!,"",#REF!) ->  | AG64: 57
A65: 58 | B65: =IF(A65>=#REF!,"",IF(A65<=#REF!,#REF!,#REF!)) ->  | C65: =IF(A65>=#REF!,"",IF(A65<=#REF!,#REF!,#REF!)) ->  | D65: =IF(A65>#REF!,"",#REF!) ->  | F65: 58 | G65: =IF(F65>=#REF!,"",IF(F65<=#REF!,#REF!,#REF!)) ->  | H65: =IF(F65>=#REF!,"",IF(F65<=#REF!,#REF!,#REF!)) ->  | I65: =IF(F65>#REF!,"",PMT(#REF!/12,#REF!,-#REF!)) ->  | N65: 58 | O65: =IF(N65>#REF!,"",$L$7) ->  | P65: =IF(N65>=#REF!,"",IF(N65<=#REF!,#REF!,#REF!)) ->  | Q65: =IF(N65>#REF!,"",#REF!) ->  | V65: 58 | W65: =IF(V65>#REF!,"",$T$7) ->  | X65: =IF(V65>=#REF!,"",IF(V65<=#REF!,#REF!,#REF!)) ->  | Y65: =IF(V65>#REF!,"",#REF!) ->  | AG65: 58
A66: 59 | B66: =IF(A66>=#REF!,"",IF(A66<=#REF!,#REF!,#REF!)) ->  | C66: =IF(A66>=#REF!,"",IF(A66<=#REF!,#REF!,#REF!)) ->  | D66: =IF(A66>#REF!,"",#REF!) ->  | F66: 59 | G66: =IF(F66>=#REF!,"",IF(F66<=#REF!,#REF!,#REF!)) ->  | H66: =IF(F66>=#REF!,"",IF(F66<=#REF!,#REF!,#REF!)) ->  | I66: =IF(F66>#REF!,"",PMT(#REF!/12,#REF!,-#REF!)) ->  | N66: 59 | O66: =IF(N66>#REF!,"",$L$7) ->  | P66: =IF(N66>=#REF!,"",IF(N66<=#REF!,#REF!,#REF!)) ->  | Q66: =IF(N66>#REF!,"",#REF!) ->  | V66: 59 | W66: =IF(V66>#REF!,"",$T$7) ->  | X66: =IF(V66>=#REF!,"",IF(V66<=#REF!,#REF!,#REF!)) ->  | Y66: =IF(V66>#REF!,"",#REF!) ->  | AG66: 59
A67: 60 | B67: =IF(A67>=#REF!,"",IF(A67<=#REF!,#REF!,#REF!)) ->  | C67: =IF(A67>=#REF!,"",IF(A67<=#REF!,#REF!,#REF!)) ->  | D67: =IF(A67>#REF!,"",#REF!) ->  | F67: 60 | G67: =IF(F67>=#REF!,"",IF(F67<=#REF!,#REF!,#REF!)) ->  | H67: =IF(F67>=#REF!,"",IF(F67<=#REF!,#REF!,#REF!)) ->  | I67: =IF(F67>#REF!,"",PMT(#REF!/12,#REF!,-#REF!)) ->  | N67: 60 | O67: =IF(N67>#REF!,"",$L$7) ->  | P67: =IF(N67>=#REF!,"",IF(N67<=#REF!,#REF!,#REF!)) ->  | Q67: =IF(N67>#REF!,"",#REF!) ->  | V67: 60 | W67: =IF(V67>#REF!,"",$T$7) ->  | X67: =IF(V67>=#REF!,"",IF(V67<=#REF!,#REF!,#REF!)) ->  | Y67: =IF(V67>#REF!,"",#REF!) ->  | AG67: 60
A68: 61 | B68: =IF(A68>=#REF!,"",IF(A68<=#REF!,#REF!,#REF!)) ->  | C68: =IF(A68>=#REF!,"",IF(A68<=#REF!,#REF!,#REF!)) ->  | D68: =IF(A68>#REF!,"",#REF!) ->  | F68: 61 | G68: =IF(F68>=#REF!,"",IF(F68<=#REF!,#REF!,#REF!)) ->  | H68: =IF(F68>=#REF!,"",IF(F68<=#REF!,#REF!,#REF!)) ->  | I68: =IF(F68>#REF!,"",PMT(#REF!/12,#REF!,-#REF!)) ->  | N68: 61 | O68: =IF(N68>#REF!,"",$L$7) ->  | P68: =IF(N68>=#REF!,"",IF(N68<=#REF!,#REF!,#REF!)) ->  | Q68: =IF(N68>#REF!,"",#REF!) ->  | V68: 61 | W68: =IF(V68>#REF!,"",$T$7) ->  | X68: =IF(V68>=#REF!,"",IF(V68<=#REF!,#REF!,#REF!)) ->  | Y68: =IF(V68>#REF!,"",#REF!) ->  | AG68: 61
A69: 62 | B69: =IF(A69>=#REF!,"",IF(A69<=#REF!,#REF!,#REF!)) ->  | C69: =IF(A69>=#REF!,"",IF(A69<=#REF!,#REF!,#REF!)) ->  | D69: =IF(A69>#REF!,"",#REF!) ->  | F69: 62 | G69: =IF(F69>=#REF!,"",IF(F69<=#REF!,#REF!,#REF!)) ->  | H69: =IF(F69>=#REF!,"",IF(F69<=#REF!,#REF!,#REF!)) ->  | I69: =IF(F69>#REF!,"",PMT(#REF!/12,#REF!,-#REF!)) ->  | N69: 62 | O69: =IF(N69>#REF!,"",$L$7) ->  | P69: =IF(N69>=#REF!,"",IF(N69<=#REF!,#REF!,#REF!)) ->  | Q69: =IF(N69>#REF!,"",#REF!) ->  | V69: 62 | W69: =IF(V69>#REF!,"",$T$7) ->  | X69: =IF(V69>=#REF!,"",IF(V69<=#REF!,#REF!,#REF!)) ->  | Y69: =IF(V69>#REF!,"",#REF!) ->  | AG69: 62
A70: 63 | B70: =IF(A70>=#REF!,"",IF(A70<=#REF!,#REF!,#REF!)) ->  | C70: =IF(A70>=#REF!,"",IF(A70<=#REF!,#REF!,#REF!)) ->  | D70: =IF(A70>#REF!,"",#REF!) ->  | F70: 63 | G70: =IF(F70>=#REF!,"",IF(F70<=#REF!,#REF!,#REF!)) ->  | H70: =IF(F70>=#REF!,"",IF(F70<=#REF!,#REF!,#REF!)) ->  | I70: =IF(F70>#REF!,"",PMT(#REF!/12,#REF!,-#REF!)) ->  | N70: 63 | O70: =IF(N70>#REF!,"",$L$7) ->  | P70: =IF(N70>=#REF!,"",IF(N70<=#REF!,#REF!,#REF!)) ->  | Q70: =IF(N70>#REF!,"",#REF!) ->  | V70: 63 | W70: =IF(V70>#REF!,"",$T$7) ->  | X70: =IF(V70>=#REF!,"",IF(V70<=#REF!,#REF!,#REF!)) ->  | Y70: =IF(V70>#REF!,"",#REF!) ->  | AG70: 63
A71: 64 | B71: =IF(A71>=#REF!,"",IF(A71<=#REF!,#REF!,#REF!)) ->  | C71: =IF(A71>=#REF!,"",IF(A71<=#REF!,#REF!,#REF!)) ->  | D71: =IF(A71>#REF!,"",#REF!) ->  | F71: 64 | G71: =IF(F71>=#REF!,"",IF(F71<=#REF!,#REF!,#REF!)) ->  | H71: =IF(F71>=#REF!,"",IF(F71<=#REF!,#REF!,#REF!)) ->  | I71: =IF(F71>#REF!,"",PMT(#REF!/12,#REF!,-#REF!)) ->  | N71: 64 | O71: =IF(N71>#REF!,"",$L$7) ->  | P71: =IF(N71>=#REF!,"",IF(N71<=#REF!,#REF!,#REF!)) ->  | Q71: =IF(N71>#REF!,"",#REF!) ->  | V71: 64 | W71: =IF(V71>#REF!,"",$T$7) ->  | X71: =IF(V71>=#REF!,"",IF(V71<=#REF!,#REF!,#REF!)) ->  | Y71: =IF(V71>#REF!,"",#REF!) ->  | AG71: 64
A72: 65 | B72: =IF(A72>=#REF!,"",IF(A72<=#REF!,#REF!,#REF!)) ->  | C72: =IF(A72>=#REF!,"",IF(A72<=#REF!,#REF!,#REF!)) ->  | D72: =IF(A72>#REF!,"",#REF!) ->  | F72: 65 | G72: =IF(F72>=#REF!,"",IF(F72<=#REF!,#REF!,#REF!)) ->  | H72: =IF(F72>=#REF!,"",IF(F72<=#REF!,#REF!,#REF!)) ->  | I72: =IF(F72>#REF!,"",PMT(#REF!/12,#REF!,-#REF!)) ->  | N72: 65 | O72: =IF(N72>#REF!,"",$L$7) ->  | P72: =IF(N72>=#REF!,"",IF(N72<=#REF!,#REF!,#REF!)) ->  | Q72: =IF(N72>#REF!,"",#REF!) ->  | V72: 65 | W72: =IF(V72>#REF!,"",$T$7) ->  | X72: =IF(V72>=#REF!,"",IF(V72<=#REF!,#REF!,#REF!)) ->  | Y72: =IF(V72>#REF!,"",#REF!) ->  | AG72: 65
A73: 66 | B73: =IF(A73>=#REF!,"",IF(A73<=#REF!,#REF!,#REF!)) ->  | C73: =IF(A73>=#REF!,"",IF(A73<=#REF!,#REF!,#REF!)) ->  | D73: =IF(A73>#REF!,"",#REF!) ->  | F73: 66 | G73: =IF(F73>=#REF!,"",IF(F73<=#REF!,#REF!,#REF!)) ->  | H73: =IF(F73>=#REF!,"",IF(F73<=#REF!,#REF!,#REF!)) ->  | I73: =IF(F73>#REF!,"",PMT(#REF!/12,#REF!,-#REF!)) ->  | N73: 66 | O73: =IF(N73>#REF!,"",$L$7) ->  | P73: =IF(N73>=#REF!,"",IF(N73<=#REF!,#REF!,#REF!)) ->  | Q73: =IF(N73>#REF!,"",#REF!) ->  | V73: 66 | W73: =IF(V73>#REF!,"",$T$7) ->  | X73: =IF(V73>=#REF!,"",IF(V73<=#REF!,#REF!,#REF!)) ->  | Y73: =IF(V73>#REF!,"",#REF!) ->  | AG73: 66
A74: 67 | B74: =IF(A74>=#REF!,"",IF(A74<=#REF!,#REF!,#REF!)) ->  | C74: =IF(A74>=#REF!,"",IF(A74<=#REF!,#REF!,#REF!)) ->  | D74: =IF(A74>#REF!,"",#REF!) ->  | F74: 67 | G74: =IF(F74>=#REF!,"",IF(F74<=#REF!,#REF!,#REF!)) ->  | H74: =IF(F74>=#REF!,"",IF(F74<=#REF!,#REF!,#REF!)) ->  | I74: =IF(F74>#REF!,"",PMT(#REF!/12,#REF!,-#REF!)) ->  | N74: 67 | O74: =IF(N74>#REF!,"",$L$7) ->  | P74: =IF(N74>=#REF!,"",IF(N74<=#REF!,#REF!,#REF!)) ->  | Q74: =IF(N74>#REF!,"",#REF!) ->  | V74: 67 | W74: =IF(V74>#REF!,"",$T$7) ->  | X74: =IF(V74>=#REF!,"",IF(V74<=#REF!,#REF!,#REF!)) ->  | Y74: =IF(V74>#REF!,"",#REF!) ->  | AG74: 67
A75: 68 | B75: =IF(A75>=#REF!,"",IF(A75<=#REF!,#REF!,#REF!)) ->  | C75: =IF(A75>=#REF!,"",IF(A75<=#REF!,#REF!,#REF!)) ->  | D75: =IF(A75>#REF!,"",#REF!) ->  | F75: 68 | G75: =IF(F75>=#REF!,"",IF(F75<=#REF!,#REF!,#REF!)) ->  | H75: =IF(F75>=#REF!,"",IF(F75<=#REF!,#REF!,#REF!)) ->  | I75: =IF(F75>#REF!,"",PMT(#REF!/12,#REF!,-#REF!)) ->  | N75: 68 | O75: =IF(N75>#REF!,"",$L$7) ->  | P75: =IF(N75>=#REF!,"",IF(N75<=#REF!,#REF!,#REF!)) ->  | Q75: =IF(N75>#REF!,"",#REF!) ->  | V75: 68 | W75: =IF(V75>#REF!,"",$T$7) ->  | X75: =IF(V75>=#REF!,"",IF(V75<=#REF!,#REF!,#REF!)) ->  | Y75: =IF(V75>#REF!,"",#REF!) ->  | AG75: 68
A76: 69 | B76: =IF(A76>=#REF!,"",IF(A76<=#REF!,#REF!,#REF!)) ->  | C76: =IF(A76>=#REF!,"",IF(A76<=#REF!,#REF!,#REF!)) ->  | D76: =IF(A76>#REF!,"",#REF!) ->  | F76: 69 | G76: =IF(F76>=#REF!,"",IF(F76<=#REF!,#REF!,#REF!)) ->  | H76: =IF(F76>=#REF!,"",IF(F76<=#REF!,#REF!,#REF!)) ->  | I76: =IF(F76>#REF!,"",PMT(#REF!/12,#REF!,-#REF!)) ->  | N76: 69 | O76: =IF(N76>#REF!,"",$L$7) ->  | P76: =IF(N76>=#REF!,"",IF(N76<=#REF!,#REF!,#REF!)) ->  | Q76: =IF(N76>#REF!,"",#REF!) ->  | V76: 69 | W76: =IF(V76>#REF!,"",$T$7) ->  | X76: =IF(V76>=#REF!,"",IF(V76<=#REF!,#REF!,#REF!)) ->  | Y76: =IF(V76>#REF!,"",#REF!) ->  | AG76: 69
A77: 70 | B77: =IF(A77>=#REF!,"",IF(A77<=#REF!,#REF!,#REF!)) ->  | C77: =IF(A77>=#REF!,"",IF(A77<=#REF!,#REF!,#REF!)) ->  | D77: =IF(A77>#REF!,"",#REF!) ->  | F77: 70 | G77: =IF(F77>=#REF!,"",IF(F77<=#REF!,#REF!,#REF!)) ->  | H77: =IF(F77>=#REF!,"",IF(F77<=#REF!,#REF!,#REF!)) ->  | I77: =IF(F77>#REF!,"",PMT(#REF!/12,#REF!,-#REF!)) ->  | N77: 70 | O77: =IF(N77>#REF!,"",$L$7) ->  | P77: =IF(N77>=#REF!,"",IF(N77<=#REF!,#REF!,#REF!)) ->  | Q77: =IF(N77>#REF!,"",#REF!) ->  | V77: 70 | W77: =IF(V77>#REF!,"",$T$7) ->  | X77: =IF(V77>=#REF!,"",IF(V77<=#REF!,#REF!,#REF!)) ->  | Y77: =IF(V77>#REF!,"",#REF!) ->  | AG77: 70
A78: 71 | B78: =IF(A78>=#REF!,"",IF(A78<=#REF!,#REF!,#REF!)) ->  | C78: =IF(A78>=#REF!,"",IF(A78<=#REF!,#REF!,#REF!)) ->  | D78: =IF(A78>#REF!,"",#REF!) ->  | F78: 71 | G78: =IF(F78>=#REF!,"",IF(F78<=#REF!,#REF!,#REF!)) ->  | H78: =IF(F78>=#REF!,"",IF(F78<=#REF!,#REF!,#REF!)) ->  | I78: =IF(F78>#REF!,"",PMT(#REF!/12,#REF!,-#REF!)) ->  | N78: 71 | O78: =IF(N78>#REF!,"",$L$7) ->  | P78: =IF(N78>=#REF!,"",IF(N78<=#REF!,#REF!,#REF!)) ->  | Q78: =IF(N78>#REF!,"",#REF!) ->  | V78: 71 | W78: =IF(V78>#REF!,"",$T$7) ->  | X78: =IF(V78>=#REF!,"",IF(V78<=#REF!,#REF!,#REF!)) ->  | Y78: =IF(V78>#REF!,"",#REF!) ->  | AG78: 71
A79: 72 | B79: =IF(A79>=#REF!,"",IF(A79<=#REF!,#REF!,#REF!)) ->  | C79: =IF(A79>=#REF!,"",IF(A79<=#REF!,#REF!,#REF!)) ->  | D79: =IF(A79>#REF!,"",#REF!) ->  | F79: 72 | G79: =IF(F79>=#REF!,"",IF(F79<=#REF!,#REF!,#REF!)) ->  | H79: =IF(F79>=#REF!,"",IF(F79<=#REF!,#REF!,#REF!)) ->  | I79: =IF(F79>#REF!,"",PMT(#REF!/12,#REF!,-#REF!)) ->  | N79: 72 | O79: =IF(N79>#REF!,"",$L$7) ->  | P79: =IF(N79>=#REF!,"",IF(N79<=#REF!,#REF!,#REF!)) ->  | Q79: =IF(N79>#REF!,"",#REF!) ->  | V79: 72 | W79: =IF(V79>#REF!,"",$T$7) ->  | X79: =IF(V79>=#REF!,"",IF(V79<=#REF!,#REF!,#REF!)) ->  | Y79: =IF(V79>#REF!,"",#REF!) ->  | AG79: 72
A80: 73 | B80: =IF(A80>=#REF!,"",IF(A80<=#REF!,#REF!,#REF!)) ->  | C80: =IF(A80>=#REF!,"",IF(A80<=#REF!,#REF!,#REF!)) ->  | D80: =IF(A80>#REF!,"",#REF!) ->  | F80: 73 | G80: =IF(F80>=#REF!,"",IF(F80<=#REF!,#REF!,#REF!)) ->  | H80: =IF(F80>=#REF!,"",IF(F80<=#REF!,#REF!,#REF!)) ->  | I80: =IF(F80>#REF!,"",PMT(#REF!/12,#REF!,-#REF!)) ->  | N80: 73 | O80: =IF(N80>#REF!,"",$L$7) ->  | P80: =IF(N80>=#REF!,"",IF(N80<=#REF!,#REF!,#REF!)) ->  | Q80: =IF(N80>#REF!,"",#REF!) ->  | V80: 73 | W80: =IF(V80>#REF!,"",$T$7) ->  | X80: =IF(V80>=#REF!,"",IF(V80<=#REF!,#REF!,#REF!)) ->  | Y80: =IF(V80>#REF!,"",#REF!) ->  | AG80: 73
A81: 74 | B81: =IF(A81>=#REF!,"",IF(A81<=#REF!,#REF!,#REF!)) ->  | C81: =IF(A81>=#REF!,"",IF(A81<=#REF!,#REF!,#REF!)) ->  | D81: =IF(A81>#REF!,"",#REF!) ->  | F81: 74 | G81: =IF(F81>=#REF!,"",IF(F81<=#REF!,#REF!,#REF!)) ->  | H81: =IF(F81>=#REF!,"",IF(F81<=#REF!,#REF!,#REF!)) ->  | I81: =IF(F81>#REF!,"",PMT(#REF!/12,#REF!,-#REF!)) ->  | N81: 74 | O81: =IF(N81>#REF!,"",$L$7) ->  | P81: =IF(N81>=#REF!,"",IF(N81<=#REF!,#REF!,#REF!)) ->  | Q81: =IF(N81>#REF!,"",#REF!) ->  | V81: 74 | W81: =IF(V81>#REF!,"",$T$7) ->  | X81: =IF(V81>=#REF!,"",IF(V81<=#REF!,#REF!,#REF!)) ->  | Y81: =IF(V81>#REF!,"",#REF!) ->  | AG81: 74
A82: 75 | B82: =IF(A82>=#REF!,"",IF(A82<=#REF!,#REF!,#REF!)) ->  | C82: =IF(A82>=#REF!,"",IF(A82<=#REF!,#REF!,#REF!)) ->  | D82: =IF(A82>#REF!,"",#REF!) ->  | F82: 75 | G82: =IF(F82>=#REF!,"",IF(F82<=#REF!,#REF!,#REF!)) ->  | H82: =IF(F82>=#REF!,"",IF(F82<=#REF!,#REF!,#REF!)) ->  | I82: =IF(F82>#REF!,"",PMT(#REF!/12,#REF!,-#REF!)) ->  | N82: 75 | O82: =IF(N82>#REF!,"",$L$7) ->  | P82: =IF(N82>=#REF!,"",IF(N82<=#REF!,#REF!,#REF!)) ->  | Q82: =IF(N82>#REF!,"",#REF!) ->  | V82: 75 | W82: =IF(V82>#REF!,"",$T$7) ->  | X82: =IF(V82>=#REF!,"",IF(V82<=#REF!,#REF!,#REF!)) ->  | Y82: =IF(V82>#REF!,"",#REF!) ->  | AG82: 75
A83: 76 | B83: =IF(A83>=#REF!,"",IF(A83<=#REF!,#REF!,#REF!)) ->  | C83: =IF(A83>=#REF!,"",IF(A83<=#REF!,#REF!,#REF!)) ->  | D83: =IF(A83>#REF!,"",#REF!) ->  | F83: 76 | G83: =IF(F83>=#REF!,"",IF(F83<=#REF!,#REF!,#REF!)) ->  | H83: =IF(F83>=#REF!,"",IF(F83<=#REF!,#REF!,#REF!)) ->  | I83: =IF(F83>#REF!,"",PMT(#REF!/12,#REF!,-#REF!)) ->  | N83: 76 | O83: =IF(N83>#REF!,"",$L$7) ->  | P83: =IF(N83>=#REF!,"",IF(N83<=#REF!,#REF!,#REF!)) ->  | Q83: =IF(N83>#REF!,"",#REF!) ->  | V83: 76 | W83: =IF(V83>#REF!,"",$T$7) ->  | X83: =IF(V83>=#REF!,"",IF(V83<=#REF!,#REF!,#REF!)) ->  | Y83: =IF(V83>#REF!,"",#REF!) ->  | AG83: 76
A84: 77 | B84: =IF(A84>=#REF!,"",IF(A84<=#REF!,#REF!,#REF!)) ->  | C84: =IF(A84>=#REF!,"",IF(A84<=#REF!,#REF!,#REF!)) ->  | D84: =IF(A84>#REF!,"",#REF!) ->  | F84: 77 | G84: =IF(F84>=#REF!,"",IF(F84<=#REF!,#REF!,#REF!)) ->  | H84: =IF(F84>=#REF!,"",IF(F84<=#REF!,#REF!,#REF!)) ->  | I84: =IF(F84>#REF!,"",PMT(#REF!/12,#REF!,-#REF!)) ->  | N84: 77 | O84: =IF(N84>#REF!,"",$L$7) ->  | P84: =IF(N84>=#REF!,"",IF(N84<=#REF!,#REF!,#REF!)) ->  | Q84: =IF(N84>#REF!,"",#REF!) ->  | V84: 77 | W84: =IF(V84>#REF!,"",$T$7) ->  | X84: =IF(V84>=#REF!,"",IF(V84<=#REF!,#REF!,#REF!)) ->  | Y84: =IF(V84>#REF!,"",#REF!) ->  | AG84: 77
A85: 78 | B85: =IF(A85>=#REF!,"",IF(A85<=#REF!,#REF!,#REF!)) ->  | C85: =IF(A85>=#REF!,"",IF(A85<=#REF!,#REF!,#REF!)) ->  | D85: =IF(A85>#REF!,"",#REF!) ->  | F85: 78 | G85: =IF(F85>=#REF!,"",IF(F85<=#REF!,#REF!,#REF!)) ->  | H85: =IF(F85>=#REF!,"",IF(F85<=#REF!,#REF!,#REF!)) ->  | I85: =IF(F85>#REF!,"",PMT(#REF!/12,#REF!,-#REF!)) ->  | N85: 78 | O85: =IF(N85>#REF!,"",$L$7) ->  | P85: =IF(N85>=#REF!,"",IF(N85<=#REF!,#REF!,#REF!)) ->  | Q85: =IF(N85>#REF!,"",#REF!) ->  | V85: 78 | W85: =IF(V85>#REF!,"",$T$7) ->  | X85: =IF(V85>=#REF!,"",IF(V85<=#REF!,#REF!,#REF!)) ->  | Y85: =IF(V85>#REF!,"",#REF!) ->  | AG85: 78
A86: 79 | B86: =IF(A86>=#REF!,"",IF(A86<=#REF!,#REF!,#REF!)) ->  | C86: =IF(A86>=#REF!,"",IF(A86<=#REF!,#REF!,#REF!)) ->  | D86: =IF(A86>#REF!,"",#REF!) ->  | F86: 79 | G86: =IF(F86>=#REF!,"",IF(F86<=#REF!,#REF!,#REF!)) ->  | H86: =IF(F86>=#REF!,"",IF(F86<=#REF!,#REF!,#REF!)) ->  | I86: =IF(F86>#REF!,"",PMT(#REF!/12,#REF!,-#REF!)) ->  | N86: 79 | O86: =IF(N86>#REF!,"",$L$7) ->  | P86: =IF(N86>=#REF!,"",IF(N86<=#REF!,#REF!,#REF!)) ->  | Q86: =IF(N86>#REF!,"",#REF!) ->  | V86: 79 | W86: =IF(V86>#REF!,"",$T$7) ->  | X86: =IF(V86>=#REF!,"",IF(V86<=#REF!,#REF!,#REF!)) ->  | Y86: =IF(V86>#REF!,"",#REF!) ->  | AG86: 79
A87: 80 | B87: =IF(A87>=#REF!,"",IF(A87<=#REF!,#REF!,#REF!)) ->  | C87: =IF(A87>=#REF!,"",IF(A87<=#REF!,#REF!,#REF!)) ->  | D87: =IF(A87>#REF!,"",#REF!) ->  | F87: 80 | G87: =IF(F87>=#REF!,"",IF(F87<=#REF!,#REF!,#REF!)) ->  | H87: =IF(F87>=#REF!,"",IF(F87<=#REF!,#REF!,#REF!)) ->  | I87: =IF(F87>#REF!,"",PMT(#REF!/12,#REF!,-#REF!)) ->  | N87: 80 | O87: =IF(N87>#REF!,"",$L$7) ->  | P87: =IF(N87>=#REF!,"",IF(N87<=#REF!,#REF!,#REF!)) ->  | Q87: =IF(N87>#REF!,"",#REF!) ->  | V87: 80 | W87: =IF(V87>#REF!,"",$T$7) ->  | X87: =IF(V87>=#REF!,"",IF(V87<=#REF!,#REF!,#REF!)) ->  | Y87: =IF(V87>#REF!,"",#REF!) ->  | AG87: 80
A88: 81 | B88: =IF(A88>=#REF!,"",IF(A88<=#REF!,#REF!,#REF!)) ->  | C88: =IF(A88>=#REF!,"",IF(A88<=#REF!,#REF!,#REF!)) ->  | D88: =IF(A88>#REF!,"",#REF!) ->  | F88: 81 | G88: =IF(F88>=#REF!,"",IF(F88<=#REF!,#REF!,#REF!)) ->  | H88: =IF(F88>=#REF!,"",IF(F88<=#REF!,#REF!,#REF!)) ->  | I88: =IF(F88>#REF!,"",PMT(#REF!/12,#REF!,-#REF!)) ->  | N88: 81 | O88: =IF(N88>#REF!,"",$L$7) ->  | P88: =IF(N88>=#REF!,"",IF(N88<=#REF!,#REF!,#REF!)) ->  | Q88: =IF(N88>#REF!,"",#REF!) ->  | V88: 81 | W88: =IF(V88>#REF!,"",$T$7) ->  | X88: =IF(V88>=#REF!,"",IF(V88<=#REF!,#REF!,#REF!)) ->  | Y88: =IF(V88>#REF!,"",#REF!) ->  | AG88: 81
A89: 82 | B89: =IF(A89>=#REF!,"",IF(A89<=#REF!,#REF!,#REF!)) ->  | C89: =IF(A89>=#REF!,"",IF(A89<=#REF!,#REF!,#REF!)) ->  | D89: =IF(A89>#REF!,"",#REF!) ->  | F89: 82 | G89: =IF(F89>=#REF!,"",IF(F89<=#REF!,#REF!,#REF!)) ->  | H89: =IF(F89>=#REF!,"",IF(F89<=#REF!,#REF!,#REF!)) ->  | I89: =IF(F89>#REF!,"",PMT(#REF!/12,#REF!,-#REF!)) ->  | N89: 82 | O89: =IF(N89>#REF!,"",$L$7) ->  | P89: =IF(N89>=#REF!,"",IF(N89<=#REF!,#REF!,#REF!)) ->  | Q89: =IF(N89>#REF!,"",#REF!) ->  | V89: 82 | W89: =IF(V89>#REF!,"",$T$7) ->  | X89: =IF(V89>=#REF!,"",IF(V89<=#REF!,#REF!,#REF!)) ->  | Y89: =IF(V89>#REF!,"",#REF!) ->  | AG89: 82
A90: 83 | B90: =IF(A90>=#REF!,"",IF(A90<=#REF!,#REF!,#REF!)) ->  | C90: =IF(A90>=#REF!,"",IF(A90<=#REF!,#REF!,#REF!)) ->  | D90: =IF(A90>#REF!,"",#REF!) ->  | F90: 83 | G90: =IF(F90>=#REF!,"",IF(F90<=#REF!,#REF!,#REF!)) ->  | H90: =IF(F90>=#REF!,"",IF(F90<=#REF!,#REF!,#REF!)) ->  | I90: =IF(F90>#REF!,"",PMT(#REF!/12,#REF!,-#REF!)) ->  | N90: 83 | O90: =IF(N90>#REF!,"",$L$7) ->  | P90: =IF(N90>=#REF!,"",IF(N90<=#REF!,#REF!,#REF!)) ->  | Q90: =IF(N90>#REF!,"",#REF!) ->  | V90: 83 | W90: =IF(V90>#REF!,"",$T$7) ->  | X90: =IF(V90>=#REF!,"",IF(V90<=#REF!,#REF!,#REF!)) ->  | Y90: =IF(V90>#REF!,"",#REF!) ->  | AG90: 83
A91: 84 | B91: =IF(A91>=#REF!,"",IF(A91<=#REF!,#REF!,#REF!)) ->  | C91: =IF(A91>=#REF!,"",IF(A91<=#REF!,#REF!,#REF!)) ->  | D91: =IF(A91>#REF!,"",#REF!) ->  | F91: 84 | G91: =IF(F91>=#REF!,"",IF(F91<=#REF!,#REF!,#REF!)) ->  | H91: =IF(F91>=#REF!,"",IF(F91<=#REF!,#REF!,#REF!)) ->  | I91: =IF(F91>#REF!,"",PMT(#REF!/12,#REF!,-#REF!)) ->  | N91: 84 | O91: =IF(N91>#REF!,"",$L$7) ->  | P91: =IF(N91>=#REF!,"",IF(N91<=#REF!,#REF!,#REF!)) ->  | Q91: =IF(N91>#REF!,"",#REF!) ->  | V91: 84 | W91: =IF(V91>#REF!,"",$T$7) ->  | X91: =IF(V91>=#REF!,"",IF(V91<=#REF!,#REF!,#REF!)) ->  | Y91: =IF(V91>#REF!,"",#REF!) ->  | AG91: 84
A92: 85 | B92: =IF(A92>=#REF!,"",IF(A92<=#REF!,#REF!,#REF!)) ->  | C92: =IF(A92>=#REF!,"",IF(A92<=#REF!,#REF!,#REF!)) ->  | D92: =IF(A92>#REF!,"",#REF!) ->  | F92: 85 | G92: =IF(F92>=#REF!,"",IF(F92<=#REF!,#REF!,#REF!)) ->  | H92: =IF(F92>=#REF!,"",IF(F92<=#REF!,#REF!,#REF!)) ->  | I92: =IF(F92>#REF!,"",PMT(#REF!/12,#REF!,-#REF!)) ->  | N92: 85 | O92: =IF(N92>#REF!,"",$L$7) ->  | P92: =IF(N92>=#REF!,"",IF(N92<=#REF!,#REF!,#REF!)) ->  | Q92: =IF(N92>#REF!,"",#REF!) ->  | V92: 85 | W92: =IF(V92>#REF!,"",$T$7) ->  | X92: =IF(V92>=#REF!,"",IF(V92<=#REF!,#REF!,#REF!)) ->  | Y92: =IF(V92>#REF!,"",#REF!) ->  | AG92: 85
A93: 86 | B93: =IF(A93>=#REF!,"",IF(A93<=#REF!,#REF!,#REF!)) ->  | C93: =IF(A93>=#REF!,"",IF(A93<=#REF!,#REF!,#REF!)) ->  | D93: =IF(A93>#REF!,"",#REF!) ->  | F93: 86 | G93: =IF(F93>=#REF!,"",IF(F93<=#REF!,#REF!,#REF!)) ->  | H93: =IF(F93>=#REF!,"",IF(F93<=#REF!,#REF!,#REF!)) ->  | I93: =IF(F93>#REF!,"",PMT(#REF!/12,#REF!,-#REF!)) ->  | N93: 86 | O93: =IF(N93>#REF!,"",$L$7) ->  | P93: =IF(N93>=#REF!,"",IF(N93<=#REF!,#REF!,#REF!)) ->  | Q93: =IF(N93>#REF!,"",#REF!) ->  | V93: 86 | W93: =IF(V93>#REF!,"",$T$7) ->  | X93: =IF(V93>=#REF!,"",IF(V93<=#REF!,#REF!,#REF!)) ->  | Y93: =IF(V93>#REF!,"",#REF!) ->  | AG93: 86
A94: 87 | B94: =IF(A94>=#REF!,"",IF(A94<=#REF!,#REF!,#REF!)) ->  | C94: =IF(A94>=#REF!,"",IF(A94<=#REF!,#REF!,#REF!)) ->  | D94: =IF(A94>#REF!,"",#REF!) ->  | F94: 87 | G94: =IF(F94>=#REF!,"",IF(F94<=#REF!,#REF!,#REF!)) ->  | H94: =IF(F94>=#REF!,"",IF(F94<=#REF!,#REF!,#REF!)) ->  | I94: =IF(F94>#REF!,"",PMT(#REF!/12,#REF!,-#REF!)) ->  | N94: 87 | O94: =IF(N94>#REF!,"",$L$7) ->  | P94: =IF(N94>=#REF!,"",IF(N94<=#REF!,#REF!,#REF!)) ->  | Q94: =IF(N94>#REF!,"",#REF!) ->  | V94: 87 | W94: =IF(V94>#REF!,"",$T$7) ->  | X94: =IF(V94>=#REF!,"",IF(V94<=#REF!,#REF!,#REF!)) ->  | Y94: =IF(V94>#REF!,"",#REF!) ->  | AG94: 87
A95: 88 | B95: =IF(A95>=#REF!,"",IF(A95<=#REF!,#REF!,#REF!)) ->  | C95: =IF(A95>=#REF!,"",IF(A95<=#REF!,#REF!,#REF!)) ->  | D95: =IF(A95>#REF!,"",#REF!) ->  | F95: 88 | G95: =IF(F95>=#REF!,"",IF(F95<=#REF!,#REF!,#REF!)) ->  | H95: =IF(F95>=#REF!,"",IF(F95<=#REF!,#REF!,#REF!)) ->  | I95: =IF(F95>#REF!,"",PMT(#REF!/12,#REF!,-#REF!)) ->  | N95: 88 | O95: =IF(N95>#REF!,"",$L$7) ->  | P95: =IF(N95>=#REF!,"",IF(N95<=#REF!,#REF!,#REF!)) ->  | Q95: =IF(N95>#REF!,"",#REF!) ->  | V95: 88 | W95: =IF(V95>#REF!,"",$T$7) ->  | X95: =IF(V95>=#REF!,"",IF(V95<=#REF!,#REF!,#REF!)) ->  | Y95: =IF(V95>#REF!,"",#REF!) ->  | AG95: 88
A96: 89 | B96: =IF(A96>=#REF!,"",IF(A96<=#REF!,#REF!,#REF!)) ->  | C96: =IF(A96>=#REF!,"",IF(A96<=#REF!,#REF!,#REF!)) ->  | D96: =IF(A96>#REF!,"",#REF!) ->  | F96: 89 | G96: =IF(F96>=#REF!,"",IF(F96<=#REF!,#REF!,#REF!)) ->  | H96: =IF(F96>=#REF!,"",IF(F96<=#REF!,#REF!,#REF!)) ->  | I96: =IF(F96>#REF!,"",PMT(#REF!/12,#REF!,-#REF!)) ->  | N96: 89 | O96: =IF(N96>#REF!,"",$L$7) ->  | P96: =IF(N96>=#REF!,"",IF(N96<=#REF!,#REF!,#REF!)) ->  | Q96: =IF(N96>#REF!,"",#REF!) ->  | V96: 89 | W96: =IF(V96>#REF!,"",$T$7) ->  | X96: =IF(V96>=#REF!,"",IF(V96<=#REF!,#REF!,#REF!)) ->  | Y96: =IF(V96>#REF!,"",#REF!) ->  | AG96: 89
A97: 90 | B97: =IF(A97>=#REF!,"",IF(A97<=#REF!,#REF!,#REF!)) ->  | C97: =IF(A97>=#REF!,"",IF(A97<=#REF!,#REF!,#REF!)) ->  | D97: =IF(A97>#REF!,"",#REF!) ->  | F97: 90 | G97: =IF(F97>=#REF!,"",IF(F97<=#REF!,#REF!,#REF!)) ->  | H97: =IF(F97>=#REF!,"",IF(F97<=#REF!,#REF!,#REF!)) ->  | I97: =IF(F97>#REF!,"",PMT(#REF!/12,#REF!,-#REF!)) ->  | N97: 90 | O97: =IF(N97>#REF!,"",$L$7) ->  | P97: =IF(N97>=#REF!,"",IF(N97<=#REF!,#REF!,#REF!)) ->  | Q97: =IF(N97>#REF!,"",#REF!) ->  | V97: 90 | W97: =IF(V97>#REF!,"",$T$7) ->  | X97: =IF(V97>=#REF!,"",IF(V97<=#REF!,#REF!,#REF!)) ->  | Y97: =IF(V97>#REF!,"",#REF!) ->  | AG97: 90
A98: 91 | B98: =IF(A98>=#REF!,"",IF(A98<=#REF!,#REF!,#REF!)) ->  | C98: =IF(A98>=#REF!,"",IF(A98<=#REF!,#REF!,#REF!)) ->  | D98: =IF(A98>#REF!,"",#REF!) ->  | F98: 91 | G98: =IF(F98>=#REF!,"",IF(F98<=#REF!,#REF!,#REF!)) ->  | H98: =IF(F98>=#REF!,"",IF(F98<=#REF!,#REF!,#REF!)) ->  | I98: =IF(F98>#REF!,"",PMT(#REF!/12,#REF!,-#REF!)) ->  | N98: 91 | O98: =IF(N98>#REF!,"",$L$7) ->  | P98: =IF(N98>=#REF!,"",IF(N98<=#REF!,#REF!,#REF!)) ->  | Q98: =IF(N98>#REF!,"",#REF!) ->  | V98: 91 | W98: =IF(V98>#REF!,"",$T$7) ->  | X98: =IF(V98>=#REF!,"",IF(V98<=#REF!,#REF!,#REF!)) ->  | Y98: =IF(V98>#REF!,"",#REF!) ->  | AG98: 91
A99: 92 | B99: =IF(A99>=#REF!,"",IF(A99<=#REF!,#REF!,#REF!)) ->  | C99: =IF(A99>=#REF!,"",IF(A99<=#REF!,#REF!,#REF!)) ->  | D99: =IF(A99>#REF!,"",#REF!) ->  | F99: 92 | G99: =IF(F99>=#REF!,"",IF(F99<=#REF!,#REF!,#REF!)) ->  | H99: =IF(F99>=#REF!,"",IF(F99<=#REF!,#REF!,#REF!)) ->  | I99: =IF(F99>#REF!,"",PMT(#REF!/12,#REF!,-#REF!)) ->  | N99: 92 | O99: =IF(N99>#REF!,"",$L$7) ->  | P99: =IF(N99>=#REF!,"",IF(N99<=#REF!,#REF!,#REF!)) ->  | Q99: =IF(N99>#REF!,"",#REF!) ->  | V99: 92 | W99: =IF(V99>#REF!,"",$T$7) ->  | X99: =IF(V99>=#REF!,"",IF(V99<=#REF!,#REF!,#REF!)) ->  | Y99: =IF(V99>#REF!,"",#REF!) ->  | AG99: 92
A100: 93 | B100: =IF(A100>=#REF!,"",IF(A100<=#REF!,#REF!,#REF!)) ->  | C100: =IF(A100>=#REF!,"",IF(A100<=#REF!,#REF!,#REF!)) ->  | D100: =IF(A100>#REF!,"",#REF!) ->  | F100: 93 | G100: =IF(F100>=#REF!,"",IF(F100<=#REF!,#REF!,#REF!)) ->  | H100: =IF(F100>=#REF!,"",IF(F100<=#REF!,#REF!,#REF!)) ->  | I100: =IF(F100>#REF!,"",PMT(#REF!/12,#REF!,-#REF!)) ->  | N100: 93 | O100: =IF(N100>#REF!,"",$L$7) ->  | P100: =IF(N100>=#REF!,"",IF(N100<=#REF!,#REF!,#REF!)) ->  | Q100: =IF(N100>#REF!,"",#REF!) ->  | V100: 93 | W100: =IF(V100>#REF!,"",$T$7) ->  | X100: =IF(V100>=#REF!,"",IF(V100<=#REF!,#REF!,#REF!)) ->  | Y100: =IF(V100>#REF!,"",#REF!) ->  | AG100: 93
A101: 94 | B101: =IF(A101>=#REF!,"",IF(A101<=#REF!,#REF!,#REF!)) ->  | C101: =IF(A101>=#REF!,"",IF(A101<=#REF!,#REF!,#REF!)) ->  | D101: =IF(A101>#REF!,"",#REF!) ->  | F101: 94 | G101: =IF(F101>=#REF!,"",IF(F101<=#REF!,#REF!,#REF!)) ->  | H101: =IF(F101>=#REF!,"",IF(F101<=#REF!,#REF!,#REF!)) ->  | I101: =IF(F101>#REF!,"",PMT(#REF!/12,#REF!,-#REF!)) ->  | N101: 94 | O101: =IF(N101>#REF!,"",$L$7) ->  | P101: =IF(N101>=#REF!,"",IF(N101<=#REF!,#REF!,#REF!)) ->  | Q101: =IF(N101>#REF!,"",#REF!) ->  | V101: 94 | W101: =IF(V101>#REF!,"",$T$7) ->  | X101: =IF(V101>=#REF!,"",IF(V101<=#REF!,#REF!,#REF!)) ->  | Y101: =IF(V101>#REF!,"",#REF!) ->  | AG101: 94
A102: 95 | B102: =IF(A102>=#REF!,"",IF(A102<=#REF!,#REF!,#REF!)) ->  | C102: =IF(A102>=#REF!,"",IF(A102<=#REF!,#REF!,#REF!)) ->  | D102: =IF(A102>#REF!,"",#REF!) ->  | F102: 95 | G102: =IF(F102>=#REF!,"",IF(F102<=#REF!,#REF!,#REF!)) ->  | H102: =IF(F102>=#REF!,"",IF(F102<=#REF!,#REF!,#REF!)) ->  | I102: =IF(F102>#REF!,"",PMT(#REF!/12,#REF!,-#REF!)) ->  | N102: 95 | O102: =IF(N102>#REF!,"",$L$7) ->  | P102: =IF(N102>=#REF!,"",IF(N102<=#REF!,#REF!,#REF!)) ->  | Q102: =IF(N102>#REF!,"",#REF!) ->  | V102: 95 | W102: =IF(V102>#REF!,"",$T$7) ->  | X102: =IF(V102>=#REF!,"",IF(V102<=#REF!,#REF!,#REF!)) ->  | Y102: =IF(V102>#REF!,"",#REF!) ->  | AG102: 95
A103: 96 | B103: =IF(A103>=#REF!,"",IF(A103<=#REF!,#REF!,#REF!)) ->  | C103: =IF(A103>=#REF!,"",IF(A103<=#REF!,#REF!,#REF!)) ->  | D103: =IF(A103>#REF!,"",#REF!) ->  | F103: 96 | G103: =IF(F103>=#REF!,"",IF(F103<=#REF!,#REF!,#REF!)) ->  | H103: =IF(F103>=#REF!,"",IF(F103<=#REF!,#REF!,#REF!)) ->  | I103: =IF(F103>#REF!,"",PMT(#REF!/12,#REF!,-#REF!)) ->  | N103: 96 | O103: =IF(N103>#REF!,"",$L$7) ->  | P103: =IF(N103>=#REF!,"",IF(N103<=#REF!,#REF!,#REF!)) ->  | Q103: =IF(N103>#REF!,"",#REF!) ->  | V103: 96 | W103: =IF(V103>#REF!,"",$T$7) ->  | X103: =IF(V103>=#REF!,"",IF(V103<=#REF!,#REF!,#REF!)) ->  | Y103: =IF(V103>#REF!,"",#REF!) ->  | AG103: 96
A104: 97 | B104: =IF(A104>=#REF!,"",IF(A104<=#REF!,#REF!,#REF!)) ->  | C104: =IF(A104>=#REF!,"",IF(A104<=#REF!,#REF!,#REF!)) ->  | D104: =IF(A104>#REF!,"",#REF!) ->  | F104: 97 | G104: =IF(F104>=#REF!,"",IF(F104<=#REF!,#REF!,#REF!)) ->  | H104: =IF(F104>=#REF!,"",IF(F104<=#REF!,#REF!,#REF!)) ->  | I104: =IF(F104>#REF!,"",PMT(#REF!/12,#REF!,-#REF!)) ->  | N104: 97 | O104: =IF(N104>#REF!,"",$L$7) ->  | P104: =IF(N104>=#REF!,"",IF(N104<=#REF!,#REF!,#REF!)) ->  | Q104: =IF(N104>#REF!,"",#REF!) ->  | V104: 97 | W104: =IF(V104>#REF!,"",$T$7) ->  | X104: =IF(V104>=#REF!,"",IF(V104<=#REF!,#REF!,#REF!)) ->  | Y104: =IF(V104>#REF!,"",#REF!) ->  | AG104: 97
A105: 98 | B105: =IF(A105>=#REF!,"",IF(A105<=#REF!,#REF!,#REF!)) ->  | C105: =IF(A105>=#REF!,"",IF(A105<=#REF!,#REF!,#REF!)) ->  | D105: =IF(A105>#REF!,"",#REF!) ->  | F105: 98 | G105: =IF(F105>=#REF!,"",IF(F105<=#REF!,#REF!,#REF!)) ->  | H105: =IF(F105>=#REF!,"",IF(F105<=#REF!,#REF!,#REF!)) ->  | I105: =IF(F105>#REF!,"",PMT(#REF!/12,#REF!,-#REF!)) ->  | N105: 98 | O105: =IF(N105>#REF!,"",$L$7) ->  | P105: =IF(N105>=#REF!,"",IF(N105<=#REF!,#REF!,#REF!)) ->  | Q105: =IF(N105>#REF!,"",#REF!) ->  | V105: 98 | W105: =IF(V105>#REF!,"",$T$7) ->  | X105: =IF(V105>=#REF!,"",IF(V105<=#REF!,#REF!,#REF!)) ->  | Y105: =IF(V105>#REF!,"",#REF!) ->  | AG105: 98
A106: 99 | B106: =IF(A106>=#REF!,"",IF(A106<=#REF!,#REF!,#REF!)) ->  | C106: =IF(A106>=#REF!,"",IF(A106<=#REF!,#REF!,#REF!)) ->  | D106: =IF(A106>#REF!,"",#REF!) ->  | F106: 99 | G106: =IF(F106>=#REF!,"",IF(F106<=#REF!,#REF!,#REF!)) ->  | H106: =IF(F106>=#REF!,"",IF(F106<=#REF!,#REF!,#REF!)) ->  | I106: =IF(F106>#REF!,"",PMT(#REF!/12,#REF!,-#REF!)) ->  | N106: 99 | O106: =IF(N106>#REF!,"",$L$7) ->  | P106: =IF(N106>=#REF!,"",IF(N106<=#REF!,#REF!,#REF!)) ->  | Q106: =IF(N106>#REF!,"",#REF!) ->  | V106: 99 | W106: =IF(V106>#REF!,"",$T$7) ->  | X106: =IF(V106>=#REF!,"",IF(V106<=#REF!,#REF!,#REF!)) ->  | Y106: =IF(V106>#REF!,"",#REF!) ->  | AG106: 99
A107: 100 | B107: =IF(A107>=#REF!,"",IF(A107<=#REF!,#REF!,#REF!)) ->  | C107: =IF(A107>=#REF!,"",IF(A107<=#REF!,#REF!,#REF!)) ->  | D107: =IF(A107>#REF!,"",#REF!) ->  | F107: 100 | G107: =IF(F107>=#REF!,"",IF(F107<=#REF!,#REF!,#REF!)) ->  | H107: =IF(F107>=#REF!,"",IF(F107<=#REF!,#REF!,#REF!)) ->  | I107: =IF(F107>#REF!,"",PMT(#REF!/12,#REF!,-#REF!)) ->  | N107: 100 | O107: =IF(N107>#REF!,"",$L$7) ->  | P107: =IF(N107>=#REF!,"",IF(N107<=#REF!,#REF!,#REF!)) ->  | Q107: =IF(N107>#REF!,"",#REF!) ->  | V107: 100 | W107: =IF(V107>#REF!,"",$T$7) ->  | X107: =IF(V107>=#REF!,"",IF(V107<=#REF!,#REF!,#REF!)) ->  | Y107: =IF(V107>#REF!,"",#REF!) ->  | AG107: 100
A108: 101 | B108: =IF(A108>=#REF!,"",IF(A108<=#REF!,#REF!,#REF!)) ->  | C108: =IF(A108>=#REF!,"",IF(A108<=#REF!,#REF!,#REF!)) ->  | D108: =IF(A108>#REF!,"",#REF!) ->  | F108: 101 | G108: =IF(F108>=#REF!,"",IF(F108<=#REF!,#REF!,#REF!)) ->  | H108: =IF(F108>=#REF!,"",IF(F108<=#REF!,#REF!,#REF!)) ->  | I108: =IF(F108>#REF!,"",PMT(#REF!/12,#REF!,-#REF!)) ->  | N108: 101 | O108: =IF(N108>#REF!,"",$L$7) ->  | P108: =IF(N108>=#REF!,"",IF(N108<=#REF!,#REF!,#REF!)) ->  | Q108: =IF(N108>#REF!,"",#REF!) ->  | V108: 101 | W108: =IF(V108>#REF!,"",$T$7) ->  | X108: =IF(V108>=#REF!,"",IF(V108<=#REF!,#REF!,#REF!)) ->  | Y108: =IF(V108>#REF!,"",#REF!) ->  | AG108: 101
A109: 102 | B109: =IF(A109>=#REF!,"",IF(A109<=#REF!,#REF!,#REF!)) ->  | C109: =IF(A109>=#REF!,"",IF(A109<=#REF!,#REF!,#REF!)) ->  | D109: =IF(A109>#REF!,"",#REF!) ->  | F109: 102 | G109: =IF(F109>=#REF!,"",IF(F109<=#REF!,#REF!,#REF!)) ->  | H109: =IF(F109>=#REF!,"",IF(F109<=#REF!,#REF!,#REF!)) ->  | I109: =IF(F109>#REF!,"",PMT(#REF!/12,#REF!,-#REF!)) ->  | N109: 102 | O109: =IF(N109>#REF!,"",$L$7) ->  | P109: =IF(N109>=#REF!,"",IF(N109<=#REF!,#REF!,#REF!)) ->  | Q109: =IF(N109>#REF!,"",#REF!) ->  | V109: 102 | W109: =IF(V109>#REF!,"",$T$7) ->  | X109: =IF(V109>=#REF!,"",IF(V109<=#REF!,#REF!,#REF!)) ->  | Y109: =IF(V109>#REF!,"",#REF!) ->  | AG109: 102
A110: 103 | B110: =IF(A110>=#REF!,"",IF(A110<=#REF!,#REF!,#REF!)) ->  | C110: =IF(A110>=#REF!,"",IF(A110<=#REF!,#REF!,#REF!)) ->  | D110: =IF(A110>#REF!,"",#REF!) ->  | F110: 103 | G110: =IF(F110>=#REF!,"",IF(F110<=#REF!,#REF!,#REF!)) ->  | H110: =IF(F110>=#REF!,"",IF(F110<=#REF!,#REF!,#REF!)) ->  | I110: =IF(F110>#REF!,"",PMT(#REF!/12,#REF!,-#REF!)) ->  | N110: 103 | O110: =IF(N110>#REF!,"",$L$7) ->  | P110: =IF(N110>=#REF!,"",IF(N110<=#REF!,#REF!,#REF!)) ->  | Q110: =IF(N110>#REF!,"",#REF!) ->  | V110: 103 | W110: =IF(V110>#REF!,"",$T$7) ->  | X110: =IF(V110>=#REF!,"",IF(V110<=#REF!,#REF!,#REF!)) ->  | Y110: =IF(V110>#REF!,"",#REF!) ->  | AG110: 103
A111: 104 | B111: =IF(A111>=#REF!,"",IF(A111<=#REF!,#REF!,#REF!)) ->  | C111: =IF(A111>=#REF!,"",IF(A111<=#REF!,#REF!,#REF!)) ->  | D111: =IF(A111>#REF!,"",#REF!) ->  | F111: 104 | G111: =IF(F111>=#REF!,"",IF(F111<=#REF!,#REF!,#REF!)) ->  | H111: =IF(F111>=#REF!,"",IF(F111<=#REF!,#REF!,#REF!)) ->  | I111: =IF(F111>#REF!,"",PMT(#REF!/12,#REF!,-#REF!)) ->  | N111: 104 | O111: =IF(N111>#REF!,"",$L$7) ->  | P111: =IF(N111>=#REF!,"",IF(N111<=#REF!,#REF!,#REF!)) ->  | Q111: =IF(N111>#REF!,"",#REF!) ->  | V111: 104 | W111: =IF(V111>#REF!,"",$T$7) ->  | X111: =IF(V111>=#REF!,"",IF(V111<=#REF!,#REF!,#REF!)) ->  | Y111: =IF(V111>#REF!,"",#REF!) ->  | AG111: 104
A112: 105 | B112: =IF(A112>=#REF!,"",IF(A112<=#REF!,#REF!,#REF!)) ->  | C112: =IF(A112>=#REF!,"",IF(A112<=#REF!,#REF!,#REF!)) ->  | D112: =IF(A112>#REF!,"",#REF!) ->  | F112: 105 | G112: =IF(F112>=#REF!,"",IF(F112<=#REF!,#REF!,#REF!)) ->  | H112: =IF(F112>=#REF!,"",IF(F112<=#REF!,#REF!,#REF!)) ->  | I112: =IF(F112>#REF!,"",PMT(#REF!/12,#REF!,-#REF!)) ->  | N112: 105 | O112: =IF(N112>#REF!,"",$L$7) ->  | P112: =IF(N112>=#REF!,"",IF(N112<=#REF!,#REF!,#REF!)) ->  | Q112: =IF(N112>#REF!,"",#REF!) ->  | V112: 105 | W112: =IF(V112>#REF!,"",$T$7) ->  | X112: =IF(V112>=#REF!,"",IF(V112<=#REF!,#REF!,#REF!)) ->  | Y112: =IF(V112>#REF!,"",#REF!) ->  | AG112: 105
A113: 106 | B113: =IF(A113>=#REF!,"",IF(A113<=#REF!,#REF!,#REF!)) ->  | C113: =IF(A113>=#REF!,"",IF(A113<=#REF!,#REF!,#REF!)) ->  | D113: =IF(A113>#REF!,"",#REF!) ->  | F113: 106 | G113: =IF(F113>=#REF!,"",IF(F113<=#REF!,#REF!,#REF!)) ->  | H113: =IF(F113>=#REF!,"",IF(F113<=#REF!,#REF!,#REF!)) ->  | I113: =IF(F113>#REF!,"",PMT(#REF!/12,#REF!,-#REF!)) ->  | N113: 106 | O113: =IF(N113>#REF!,"",$L$7) ->  | P113: =IF(N113>=#REF!,"",IF(N113<=#REF!,#REF!,#REF!)) ->  | Q113: =IF(N113>#REF!,"",#REF!) ->  | V113: 106 | W113: =IF(V113>#REF!,"",$T$7) ->  | X113: =IF(V113>=#REF!,"",IF(V113<=#REF!,#REF!,#REF!)) ->  | Y113: =IF(V113>#REF!,"",#REF!) ->  | AG113: 106
A114: 107 | B114: =IF(A114>=#REF!,"",IF(A114<=#REF!,#REF!,#REF!)) ->  | C114: =IF(A114>=#REF!,"",IF(A114<=#REF!,#REF!,#REF!)) ->  | D114: =IF(A114>#REF!,"",#REF!) ->  | F114: 107 | G114: =IF(F114>=#REF!,"",IF(F114<=#REF!,#REF!,#REF!)) ->  | H114: =IF(F114>=#REF!,"",IF(F114<=#REF!,#REF!,#REF!)) ->  | I114: =IF(F114>#REF!,"",PMT(#REF!/12,#REF!,-#REF!)) ->  | N114: 107 | O114: =IF(N114>#REF!,"",$L$7) ->  | P114: =IF(N114>=#REF!,"",IF(N114<=#REF!,#REF!,#REF!)) ->  | Q114: =IF(N114>#REF!,"",#REF!) ->  | V114: 107 | W114: =IF(V114>#REF!,"",$T$7) ->  | X114: =IF(V114>=#REF!,"",IF(V114<=#REF!,#REF!,#REF!)) ->  | Y114: =IF(V114>#REF!,"",#REF!) ->  | AG114: 107
A115: 108 | B115: =IF(A115>=#REF!,"",IF(A115<=#REF!,#REF!,#REF!)) ->  | C115: =IF(A115>=#REF!,"",IF(A115<=#REF!,#REF!,#REF!)) ->  | D115: =IF(A115>#REF!,"",#REF!) ->  | F115: 108 | G115: =IF(F115>=#REF!,"",IF(F115<=#REF!,#REF!,#REF!)) ->  | H115: =IF(F115>=#REF!,"",IF(F115<=#REF!,#REF!,#REF!)) ->  | I115: =IF(F115>#REF!,"",PMT(#REF!/12,#REF!,-#REF!)) ->  | N115: 108 | O115: =IF(N115>#REF!,"",$L$7) ->  | P115: =IF(N115>=#REF!,"",IF(N115<=#REF!,#REF!,#REF!)) ->  | Q115: =IF(N115>#REF!,"",#REF!) ->  | V115: 108 | W115: =IF(V115>#REF!,"",$T$7) ->  | X115: =IF(V115>=#REF!,"",IF(V115<=#REF!,#REF!,#REF!)) ->  | Y115: =IF(V115>#REF!,"",#REF!) ->  | AG115: 108
A116: 109 | B116: =IF(A116>=#REF!,"",IF(A116<=#REF!,#REF!,#REF!)) ->  | C116: =IF(A116>=#REF!,"",IF(A116<=#REF!,#REF!,#REF!)) ->  | D116: =IF(A116>#REF!,"",#REF!) ->  | F116: 109 | G116: =IF(F116>=#REF!,"",IF(F116<=#REF!,#REF!,#REF!)) ->  | H116: =IF(F116>=#REF!,"",IF(F116<=#REF!,#REF!,#REF!)) ->  | I116: =IF(F116>#REF!,"",PMT(#REF!/12,#REF!,-#REF!)) ->  | N116: 109 | O116: =IF(N116>#REF!,"",$L$7) ->  | P116: =IF(N116>=#REF!,"",IF(N116<=#REF!,#REF!,#REF!)) ->  | Q116: =IF(N116>#REF!,"",#REF!) ->  | V116: 109 | W116: =IF(V116>#REF!,"",$T$7) ->  | X116: =IF(V116>=#REF!,"",IF(V116<=#REF!,#REF!,#REF!)) ->  | Y116: =IF(V116>#REF!,"",#REF!) ->  | AG116: 109
A117: 110 | B117: =IF(A117>=#REF!,"",IF(A117<=#REF!,#REF!,#REF!)) ->  | C117: =IF(A117>=#REF!,"",IF(A117<=#REF!,#REF!,#REF!)) ->  | D117: =IF(A117>#REF!,"",#REF!) ->  | F117: 110 | G117: =IF(F117>=#REF!,"",IF(F117<=#REF!,#REF!,#REF!)) ->  | H117: =IF(F117>=#REF!,"",IF(F117<=#REF!,#REF!,#REF!)) ->  | I117: =IF(F117>#REF!,"",PMT(#REF!/12,#REF!,-#REF!)) ->  | N117: 110 | O117: =IF(N117>#REF!,"",$L$7) ->  | P117: =IF(N117>=#REF!,"",IF(N117<=#REF!,#REF!,#REF!)) ->  | Q117: =IF(N117>#REF!,"",#REF!) ->  | V117: 110 | W117: =IF(V117>#REF!,"",$T$7) ->  | X117: =IF(V117>=#REF!,"",IF(V117<=#REF!,#REF!,#REF!)) ->  | Y117: =IF(V117>#REF!,"",#REF!) ->  | AG117: 110
A118: 111 | B118: =IF(A118>=#REF!,"",IF(A118<=#REF!,#REF!,#REF!)) ->  | C118: =IF(A118>=#REF!,"",IF(A118<=#REF!,#REF!,#REF!)) ->  | D118: =IF(A118>#REF!,"",#REF!) ->  | F118: 111 | G118: =IF(F118>=#REF!,"",IF(F118<=#REF!,#REF!,#REF!)) ->  | H118: =IF(F118>=#REF!,"",IF(F118<=#REF!,#REF!,#REF!)) ->  | I118: =IF(F118>#REF!,"",PMT(#REF!/12,#REF!,-#REF!)) ->  | N118: 111 | O118: =IF(N118>#REF!,"",$L$7) ->  | P118: =IF(N118>=#REF!,"",IF(N118<=#REF!,#REF!,#REF!)) ->  | Q118: =IF(N118>#REF!,"",#REF!) ->  | V118: 111 | W118: =IF(V118>#REF!,"",$T$7) ->  | X118: =IF(V118>=#REF!,"",IF(V118<=#REF!,#REF!,#REF!)) ->  | Y118: =IF(V118>#REF!,"",#REF!) ->  | AG118: 111
A119: 112 | B119: =IF(A119>=#REF!,"",IF(A119<=#REF!,#REF!,#REF!)) ->  | C119: =IF(A119>=#REF!,"",IF(A119<=#REF!,#REF!,#REF!)) ->  | D119: =IF(A119>#REF!,"",#REF!) ->  | F119: 112 | G119: =IF(F119>=#REF!,"",IF(F119<=#REF!,#REF!,#REF!)) ->  | H119: =IF(F119>=#REF!,"",IF(F119<=#REF!,#REF!,#REF!)) ->  | I119: =IF(F119>#REF!,"",PMT(#REF!/12,#REF!,-#REF!)) ->  | N119: 112 | O119: =IF(N119>#REF!,"",$L$7) ->  | P119: =IF(N119>=#REF!,"",IF(N119<=#REF!,#REF!,#REF!)) ->  | Q119: =IF(N119>#REF!,"",#REF!) ->  | V119: 112 | W119: =IF(V119>#REF!,"",$T$7) ->  | X119: =IF(V119>=#REF!,"",IF(V119<=#REF!,#REF!,#REF!)) ->  | Y119: =IF(V119>#REF!,"",#REF!) ->  | AG119: 112
A120: 113 | B120: =IF(A120>=#REF!,"",IF(A120<=#REF!,#REF!,#REF!)) ->  | C120: =IF(A120>=#REF!,"",IF(A120<=#REF!,#REF!,#REF!)) ->  | D120: =IF(A120>#REF!,"",#REF!) ->  | F120: 113 | G120: =IF(F120>=#REF!,"",IF(F120<=#REF!,#REF!,#REF!)) ->  | H120: =IF(F120>=#REF!,"",IF(F120<=#REF!,#REF!,#REF!)) ->  | I120: =IF(F120>#REF!,"",PMT(#REF!/12,#REF!,-#REF!)) ->  | N120: 113 | O120: =IF(N120>#REF!,"",$L$7) ->  | P120: =IF(N120>=#REF!,"",IF(N120<=#REF!,#REF!,#REF!)) ->  | Q120: =IF(N120>#REF!,"",#REF!) ->  | V120: 113 | W120: =IF(V120>#REF!,"",$T$7) ->  | X120: =IF(V120>=#REF!,"",IF(V120<=#REF!,#REF!,#REF!)) ->  | Y120: =IF(V120>#REF!,"",#REF!) ->  | AG120: 113
A121: 114 | B121: =IF(A121>=#REF!,"",IF(A121<=#REF!,#REF!,#REF!)) ->  | C121: =IF(A121>=#REF!,"",IF(A121<=#REF!,#REF!,#REF!)) ->  | D121: =IF(A121>#REF!,"",#REF!) ->  | F121: 114 | G121: =IF(F121>=#REF!,"",IF(F121<=#REF!,#REF!,#REF!)) ->  | H121: =IF(F121>=#REF!,"",IF(F121<=#REF!,#REF!,#REF!)) ->  | I121: =IF(F121>#REF!,"",PMT(#REF!/12,#REF!,-#REF!)) ->  | N121: 114 | O121: =IF(N121>#REF!,"",$L$7) ->  | P121: =IF(N121>=#REF!,"",IF(N121<=#REF!,#REF!,#REF!)) ->  | Q121: =IF(N121>#REF!,"",#REF!) ->  | V121: 114 | W121: =IF(V121>#REF!,"",$T$7) ->  | X121: =IF(V121>=#REF!,"",IF(V121<=#REF!,#REF!,#REF!)) ->  | Y121: =IF(V121>#REF!,"",#REF!) ->  | AG121: 114
A122: 115 | B122: =IF(A122>=#REF!,"",IF(A122<=#REF!,#REF!,#REF!)) ->  | C122: =IF(A122>=#REF!,"",IF(A122<=#REF!,#REF!,#REF!)) ->  | D122: =IF(A122>#REF!,"",#REF!) ->  | F122: 115 | G122: =IF(F122>=#REF!,"",IF(F122<=#REF!,#REF!,#REF!)) ->  | H122: =IF(F122>=#REF!,"",IF(F122<=#REF!,#REF!,#REF!)) ->  | I122: =IF(F122>#REF!,"",PMT(#REF!/12,#REF!,-#REF!)) ->  | N122: 115 | O122: =IF(N122>#REF!,"",$L$7) ->  | P122: =IF(N122>=#REF!,"",IF(N122<=#REF!,#REF!,#REF!)) ->  | Q122: =IF(N122>#REF!,"",#REF!) ->  | V122: 115 | W122: =IF(V122>#REF!,"",$T$7) ->  | X122: =IF(V122>=#REF!,"",IF(V122<=#REF!,#REF!,#REF!)) ->  | Y122: =IF(V122>#REF!,"",#REF!) ->  | AG122: 115
A123: 116 | B123: =IF(A123>=#REF!,"",IF(A123<=#REF!,#REF!,#REF!)) ->  | C123: =IF(A123>=#REF!,"",IF(A123<=#REF!,#REF!,#REF!)) ->  | D123: =IF(A123>#REF!,"",#REF!) ->  | F123: 116 | G123: =IF(F123>=#REF!,"",IF(F123<=#REF!,#REF!,#REF!)) ->  | H123: =IF(F123>=#REF!,"",IF(F123<=#REF!,#REF!,#REF!)) ->  | I123: =IF(F123>#REF!,"",PMT(#REF!/12,#REF!,-#REF!)) ->  | N123: 116 | O123: =IF(N123>#REF!,"",$L$7) ->  | P123: =IF(N123>=#REF!,"",IF(N123<=#REF!,#REF!,#REF!)) ->  | Q123: =IF(N123>#REF!,"",#REF!) ->  | V123: 116 | W123: =IF(V123>#REF!,"",$T$7) ->  | X123: =IF(V123>=#REF!,"",IF(V123<=#REF!,#REF!,#REF!)) ->  | Y123: =IF(V123>#REF!,"",#REF!) ->  | AG123: 116
A124: 117 | B124: =IF(A124>=#REF!,"",IF(A124<=#REF!,#REF!,#REF!)) ->  | C124: =IF(A124>=#REF!,"",IF(A124<=#REF!,#REF!,#REF!)) ->  | D124: =IF(A124>#REF!,"",#REF!) ->  | F124: 117 | G124: =IF(F124>=#REF!,"",IF(F124<=#REF!,#REF!,#REF!)) ->  | H124: =IF(F124>=#REF!,"",IF(F124<=#REF!,#REF!,#REF!)) ->  | I124: =IF(F124>#REF!,"",PMT(#REF!/12,#REF!,-#REF!)) ->  | N124: 117 | O124: =IF(N124>#REF!,"",$L$7) ->  | P124: =IF(N124>=#REF!,"",IF(N124<=#REF!,#REF!,#REF!)) ->  | Q124: =IF(N124>#REF!,"",#REF!) ->  | V124: 117 | W124: =IF(V124>#REF!,"",$T$7) ->  | X124: =IF(V124>=#REF!,"",IF(V124<=#REF!,#REF!,#REF!)) ->  | Y124: =IF(V124>#REF!,"",#REF!) ->  | AG124: 117
A125: 118 | B125: =IF(A125>=#REF!,"",IF(A125<=#REF!,#REF!,#REF!)) ->  | C125: =IF(A125>=#REF!,"",IF(A125<=#REF!,#REF!,#REF!)) ->  | D125: =IF(A125>#REF!,"",#REF!) ->  | F125: 118 | G125: =IF(F125>=#REF!,"",IF(F125<=#REF!,#REF!,#REF!)) ->  | H125: =IF(F125>=#REF!,"",IF(F125<=#REF!,#REF!,#REF!)) ->  | I125: =IF(F125>#REF!,"",PMT(#REF!/12,#REF!,-#REF!)) ->  | N125: 118 | O125: =IF(N125>#REF!,"",$L$7) ->  | P125: =IF(N125>=#REF!,"",IF(N125<=#REF!,#REF!,#REF!)) ->  | Q125: =IF(N125>#REF!,"",#REF!) ->  | V125: 118 | W125: =IF(V125>#REF!,"",$T$7) ->  | X125: =IF(V125>=#REF!,"",IF(V125<=#REF!,#REF!,#REF!)) ->  | Y125: =IF(V125>#REF!,"",#REF!) ->  | AG125: 118
A126: 119 | B126: =IF(A126>=#REF!,"",IF(A126<=#REF!,#REF!,#REF!)) ->  | C126: =IF(A126>=#REF!,"",IF(A126<=#REF!,#REF!,#REF!)) ->  | D126: =IF(A126>#REF!,"",#REF!) ->  | F126: 119 | G126: =IF(F126>=#REF!,"",IF(F126<=#REF!,#REF!,#REF!)) ->  | H126: =IF(F126>=#REF!,"",IF(F126<=#REF!,#REF!,#REF!)) ->  | I126: =IF(F126>#REF!,"",PMT(#REF!/12,#REF!,-#REF!)) ->  | N126: 119 | O126: =IF(N126>#REF!,"",$L$7) ->  | P126: =IF(N126>=#REF!,"",IF(N126<=#REF!,#REF!,#REF!)) ->  | Q126: =IF(N126>#REF!,"",#REF!) ->  | V126: 119 | W126: =IF(V126>#REF!,"",$T$7) ->  | X126: =IF(V126>=#REF!,"",IF(V126<=#REF!,#REF!,#REF!)) ->  | Y126: =IF(V126>#REF!,"",#REF!) ->  | AG126: 119
A127: 120 | B127: =IF(A127>=#REF!,"",IF(A127<=#REF!,#REF!,#REF!)) ->  | C127: =IF(A127>=#REF!,"",IF(A127<=#REF!,#REF!,#REF!)) ->  | D127: =IF(A127>#REF!,"",#REF!) ->  | F127: 120 | G127: =IF(F127>=#REF!,"",IF(F127<=#REF!,#REF!,#REF!)) ->  | H127: =IF(F127>=#REF!,"",IF(F127<=#REF!,#REF!,#REF!)) ->  | I127: =IF(F127>#REF!,"",PMT(#REF!/12,#REF!,-#REF!)) ->  | N127: 120 | O127: =IF(N127>#REF!,"",$L$7) ->  | P127: =IF(N127>=#REF!,"",IF(N127<=#REF!,#REF!,#REF!)) ->  | Q127: =IF(N127>#REF!,"",#REF!) ->  | V127: 120 | W127: =IF(V127>#REF!,"",$T$7) ->  | X127: =IF(V127>=#REF!,"",IF(V127<=#REF!,#REF!,#REF!)) ->  | Y127: =IF(V127>#REF!,"",#REF!) ->  | AG127: 120
A128: 121 | B128: =IF(A128>=#REF!,"",IF(A128<=#REF!,#REF!,#REF!)) ->  | C128: =IF(A128>=#REF!,"",IF(A128<=#REF!,#REF!,#REF!)) ->  | D128: =IF(A128>#REF!,"",#REF!) ->  | F128: 121 | G128: =IF(F128>=#REF!,"",IF(F128<=#REF!,#REF!,#REF!)) ->  | H128: =IF(F128>=#REF!,"",IF(F128<=#REF!,#REF!,#REF!)) ->  | I128: =IF(F128>#REF!,"",PMT(#REF!/12,#REF!,-#REF!)) ->  | N128: 121 | O128: =IF(N128>#REF!,"",$L$7) ->  | P128: =IF(N128>=#REF!,"",IF(N128<=#REF!,#REF!,#REF!)) ->  | Q128: =IF(N128>#REF!,"",#REF!) ->  | V128: 121 | W128: =IF(V128>#REF!,"",$T$7) ->  | X128: =IF(V128>=#REF!,"",IF(V128<=#REF!,#REF!,#REF!)) ->  | Y128: =IF(V128>#REF!,"",#REF!) ->  | AG128: 121
A129: 122 | B129: =IF(A129>=#REF!,"",IF(A129<=#REF!,#REF!,#REF!)) ->  | C129: =IF(A129>=#REF!,"",IF(A129<=#REF!,#REF!,#REF!)) ->  | D129: =IF(A129>#REF!,"",#REF!) ->  | F129: 122 | G129: =IF(F129>=#REF!,"",IF(F129<=#REF!,#REF!,#REF!)) ->  | H129: =IF(F129>=#REF!,"",IF(F129<=#REF!,#REF!,#REF!)) ->  | I129: =IF(F129>#REF!,"",PMT(#REF!/12,#REF!,-#REF!)) ->  | N129: 122 | O129: =IF(N129>#REF!,"",$L$7) ->  | P129: =IF(N129>=#REF!,"",IF(N129<=#REF!,#REF!,#REF!)) ->  | Q129: =IF(N129>#REF!,"",#REF!) ->  | V129: 122 | W129: =IF(V129>#REF!,"",$T$7) ->  | X129: =IF(V129>=#REF!,"",IF(V129<=#REF!,#REF!,#REF!)) ->  | Y129: =IF(V129>#REF!,"",#REF!) ->  | AG129: 122
A130: 123 | B130: =IF(A130>=#REF!,"",IF(A130<=#REF!,#REF!,#REF!)) ->  | C130: =IF(A130>=#REF!,"",IF(A130<=#REF!,#REF!,#REF!)) ->  | D130: =IF(A130>#REF!,"",#REF!) ->  | F130: 123 | G130: =IF(F130>=#REF!,"",IF(F130<=#REF!,#REF!,#REF!)) ->  | H130: =IF(F130>=#REF!,"",IF(F130<=#REF!,#REF!,#REF!)) ->  | I130: =IF(F130>#REF!,"",PMT(#REF!/12,#REF!,-#REF!)) ->  | N130: 123 | O130: =IF(N130>#REF!,"",$L$7) ->  | P130: =IF(N130>=#REF!,"",IF(N130<=#REF!,#REF!,#REF!)) ->  | Q130: =IF(N130>#REF!,"",#REF!) ->  | V130: 123 | W130: =IF(V130>#REF!,"",$T$7) ->  | X130: =IF(V130>=#REF!,"",IF(V130<=#REF!,#REF!,#REF!)) ->  | Y130: =IF(V130>#REF!,"",#REF!) ->  | AG130: 123
A131: 124 | B131: =IF(A131>=#REF!,"",IF(A131<=#REF!,#REF!,#REF!)) ->  | C131: =IF(A131>=#REF!,"",IF(A131<=#REF!,#REF!,#REF!)) ->  | D131: =IF(A131>#REF!,"",#REF!) ->  | F131: 124 | G131: =IF(F131>=#REF!,"",IF(F131<=#REF!,#REF!,#REF!)) ->  | H131: =IF(F131>=#REF!,"",IF(F131<=#REF!,#REF!,#REF!)) ->  | I131: =IF(F131>#REF!,"",PMT(#REF!/12,#REF!,-#REF!)) ->  | N131: 124 | O131: =IF(N131>#REF!,"",$L$7) ->  | P131: =IF(N131>=#REF!,"",IF(N131<=#REF!,#REF!,#REF!)) ->  | Q131: =IF(N131>#REF!,"",#REF!) ->  | V131: 124 | W131: =IF(V131>#REF!,"",$T$7) ->  | X131: =IF(V131>=#REF!,"",IF(V131<=#REF!,#REF!,#REF!)) ->  | Y131: =IF(V131>#REF!,"",#REF!) ->  | AG131: 124
A132: 125 | B132: =IF(A132>=#REF!,"",IF(A132<=#REF!,#REF!,#REF!)) ->  | C132: =IF(A132>=#REF!,"",IF(A132<=#REF!,#REF!,#REF!)) ->  | D132: =IF(A132>#REF!,"",#REF!) ->  | F132: 125 | G132: =IF(F132>=#REF!,"",IF(F132<=#REF!,#REF!,#REF!)) ->  | H132: =IF(F132>=#REF!,"",IF(F132<=#REF!,#REF!,#REF!)) ->  | I132: =IF(F132>#REF!,"",PMT(#REF!/12,#REF!,-#REF!)) ->  | N132: 125 | O132: =IF(N132>#REF!,"",$L$7) ->  | P132: =IF(N132>=#REF!,"",IF(N132<=#REF!,#REF!,#REF!)) ->  | Q132: =IF(N132>#REF!,"",#REF!) ->  | V132: 125 | W132: =IF(V132>#REF!,"",$T$7) ->  | X132: =IF(V132>=#REF!,"",IF(V132<=#REF!,#REF!,#REF!)) ->  | Y132: =IF(V132>#REF!,"",#REF!) ->  | AG132: 125
A133: 126 | B133: =IF(A133>=#REF!,"",IF(A133<=#REF!,#REF!,#REF!)) ->  | C133: =IF(A133>=#REF!,"",IF(A133<=#REF!,#REF!,#REF!)) ->  | D133: =IF(A133>#REF!,"",#REF!) ->  | F133: 126 | G133: =IF(F133>=#REF!,"",IF(F133<=#REF!,#REF!,#REF!)) ->  | H133: =IF(F133>=#REF!,"",IF(F133<=#REF!,#REF!,#REF!)) ->  | I133: =IF(F133>#REF!,"",PMT(#REF!/12,#REF!,-#REF!)) ->  | N133: 126 | O133: =IF(N133>#REF!,"",$L$7) ->  | P133: =IF(N133>=#REF!,"",IF(N133<=#REF!,#REF!,#REF!)) ->  | Q133: =IF(N133>#REF!,"",#REF!) ->  | V133: 126 | W133: =IF(V133>#REF!,"",$T$7) ->  | X133: =IF(V133>=#REF!,"",IF(V133<=#REF!,#REF!,#REF!)) ->  | Y133: =IF(V133>#REF!,"",#REF!) ->  | AG133: 126
A134: 127 | B134: =IF(A134>=#REF!,"",IF(A134<=#REF!,#REF!,#REF!)) ->  | C134: =IF(A134>=#REF!,"",IF(A134<=#REF!,#REF!,#REF!)) ->  | D134: =IF(A134>#REF!,"",#REF!) ->  | F134: 127 | G134: =IF(F134>=#REF!,"",IF(F134<=#REF!,#REF!,#REF!)) ->  | H134: =IF(F134>=#REF!,"",IF(F134<=#REF!,#REF!,#REF!)) ->  | I134: =IF(F134>#REF!,"",PMT(#REF!/12,#REF!,-#REF!)) ->  | N134: 127 | O134: =IF(N134>#REF!,"",$L$7) ->  | P134: =IF(N134>=#REF!,"",IF(N134<=#REF!,#REF!,#REF!)) ->  | Q134: =IF(N134>#REF!,"",#REF!) ->  | V134: 127 | W134: =IF(V134>#REF!,"",$T$7) ->  | X134: =IF(V134>=#REF!,"",IF(V134<=#REF!,#REF!,#REF!)) ->  | Y134: =IF(V134>#REF!,"",#REF!) ->  | AG134: 127
A135: 128 | B135: =IF(A135>=#REF!,"",IF(A135<=#REF!,#REF!,#REF!)) ->  | C135: =IF(A135>=#REF!,"",IF(A135<=#REF!,#REF!,#REF!)) ->  | D135: =IF(A135>#REF!,"",#REF!) ->  | F135: 128 | G135: =IF(F135>=#REF!,"",IF(F135<=#REF!,#REF!,#REF!)) ->  | H135: =IF(F135>=#REF!,"",IF(F135<=#REF!,#REF!,#REF!)) ->  | I135: =IF(F135>#REF!,"",PMT(#REF!/12,#REF!,-#REF!)) ->  | N135: 128 | O135: =IF(N135>#REF!,"",$L$7) ->  | P135: =IF(N135>=#REF!,"",IF(N135<=#REF!,#REF!,#REF!)) ->  | Q135: =IF(N135>#REF!,"",#REF!) ->  | V135: 128 | W135: =IF(V135>#REF!,"",$T$7) ->  | X135: =IF(V135>=#REF!,"",IF(V135<=#REF!,#REF!,#REF!)) ->  | Y135: =IF(V135>#REF!,"",#REF!) ->  | AG135: 128
A136: 129 | B136: =IF(A136>=#REF!,"",IF(A136<=#REF!,#REF!,#REF!)) ->  | C136: =IF(A136>=#REF!,"",IF(A136<=#REF!,#REF!,#REF!)) ->  | D136: =IF(A136>#REF!,"",#REF!) ->  | F136: 129 | G136: =IF(F136>=#REF!,"",IF(F136<=#REF!,#REF!,#REF!)) ->  | H136: =IF(F136>=#REF!,"",IF(F136<=#REF!,#REF!,#REF!)) ->  | I136: =IF(F136>#REF!,"",PMT(#REF!/12,#REF!,-#REF!)) ->  | N136: 129 | O136: =IF(N136>#REF!,"",$L$7) ->  | P136: =IF(N136>=#REF!,"",IF(N136<=#REF!,#REF!,#REF!)) ->  | Q136: =IF(N136>#REF!,"",#REF!) ->  | V136: 129 | W136: =IF(V136>#REF!,"",$T$7) ->  | X136: =IF(V136>=#REF!,"",IF(V136<=#REF!,#REF!,#REF!)) ->  | Y136: =IF(V136>#REF!,"",#REF!) ->  | AG136: 129
A137: 130 | B137: =IF(A137>=#REF!,"",IF(A137<=#REF!,#REF!,#REF!)) ->  | C137: =IF(A137>=#REF!,"",IF(A137<=#REF!,#REF!,#REF!)) ->  | D137: =IF(A137>#REF!,"",#REF!) ->  | F137: 130 | G137: =IF(F137>=#REF!,"",IF(F137<=#REF!,#REF!,#REF!)) ->  | H137: =IF(F137>=#REF!,"",IF(F137<=#REF!,#REF!,#REF!)) ->  | I137: =IF(F137>#REF!,"",PMT(#REF!/12,#REF!,-#REF!)) ->  | N137: 130 | O137: =IF(N137>#REF!,"",$L$7) ->  | P137: =IF(N137>=#REF!,"",IF(N137<=#REF!,#REF!,#REF!)) ->  | Q137: =IF(N137>#REF!,"",#REF!) ->  | V137: 130 | W137: =IF(V137>#REF!,"",$T$7) ->  | X137: =IF(V137>=#REF!,"",IF(V137<=#REF!,#REF!,#REF!)) ->  | Y137: =IF(V137>#REF!,"",#REF!) ->  | AG137: 130
A138: 131 | B138: =IF(A138>=#REF!,"",IF(A138<=#REF!,#REF!,#REF!)) ->  | C138: =IF(A138>=#REF!,"",IF(A138<=#REF!,#REF!,#REF!)) ->  | D138: =IF(A138>#REF!,"",#REF!) ->  | F138: 131 | G138: =IF(F138>=#REF!,"",IF(F138<=#REF!,#REF!,#REF!)) ->  | H138: =IF(F138>=#REF!,"",IF(F138<=#REF!,#REF!,#REF!)) ->  | I138: =IF(F138>#REF!,"",PMT(#REF!/12,#REF!,-#REF!)) ->  | N138: 131 | O138: =IF(N138>#REF!,"",$L$7) ->  | P138: =IF(N138>=#REF!,"",IF(N138<=#REF!,#REF!,#REF!)) ->  | Q138: =IF(N138>#REF!,"",#REF!) ->  | V138: 131 | W138: =IF(V138>#REF!,"",$T$7) ->  | X138: =IF(V138>=#REF!,"",IF(V138<=#REF!,#REF!,#REF!)) ->  | Y138: =IF(V138>#REF!,"",#REF!) ->  | AG138: 131
A139: 132 | B139: =IF(A139>=#REF!,"",IF(A139<=#REF!,#REF!,#REF!)) ->  | C139: =IF(A139>=#REF!,"",IF(A139<=#REF!,#REF!,#REF!)) ->  | D139: =IF(A139>#REF!,"",#REF!) ->  | F139: 132 | G139: =IF(F139>=#REF!,"",IF(F139<=#REF!,#REF!,#REF!)) ->  | H139: =IF(F139>=#REF!,"",IF(F139<=#REF!,#REF!,#REF!)) ->  | I139: =IF(F139>#REF!,"",PMT(#REF!/12,#REF!,-#REF!)) ->  | N139: 132 | O139: =IF(N139>#REF!,"",$L$7) ->  | P139: =IF(N139>=#REF!,"",IF(N139<=#REF!,#REF!,#REF!)) ->  | Q139: =IF(N139>#REF!,"",#REF!) ->  | V139: 132 | W139: =IF(V139>#REF!,"",$T$7) ->  | X139: =IF(V139>=#REF!,"",IF(V139<=#REF!,#REF!,#REF!)) ->  | Y139: =IF(V139>#REF!,"",#REF!) ->  | AG139: 132
A140: 133 | B140: =IF(A140>=#REF!,"",IF(A140<=#REF!,#REF!,#REF!)) ->  | C140: =IF(A140>=#REF!,"",IF(A140<=#REF!,#REF!,#REF!)) ->  | D140: =IF(A140>#REF!,"",#REF!) ->  | F140: 133 | G140: =IF(F140>=#REF!,"",IF(F140<=#REF!,#REF!,#REF!)) ->  | H140: =IF(F140>=#REF!,"",IF(F140<=#REF!,#REF!,#REF!)) ->  | I140: =IF(F140>#REF!,"",PMT(#REF!/12,#REF!,-#REF!)) ->  | N140: 133 | O140: =IF(N140>#REF!,"",$L$7) ->  | P140: =IF(N140>=#REF!,"",IF(N140<=#REF!,#REF!,#REF!)) ->  | Q140: =IF(N140>#REF!,"",#REF!) ->  | V140: 133 | W140: =IF(V140>#REF!,"",$T$7) ->  | X140: =IF(V140>=#REF!,"",IF(V140<=#REF!,#REF!,#REF!)) ->  | Y140: =IF(V140>#REF!,"",#REF!) ->  | AG140: 133
A141: 134 | B141: =IF(A141>=#REF!,"",IF(A141<=#REF!,#REF!,#REF!)) ->  | C141: =IF(A141>=#REF!,"",IF(A141<=#REF!,#REF!,#REF!)) ->  | D141: =IF(A141>#REF!,"",#REF!) ->  | F141: 134 | G141: =IF(F141>=#REF!,"",IF(F141<=#REF!,#REF!,#REF!)) ->  | H141: =IF(F141>=#REF!,"",IF(F141<=#REF!,#REF!,#REF!)) ->  | I141: =IF(F141>#REF!,"",PMT(#REF!/12,#REF!,-#REF!)) ->  | N141: 134 | O141: =IF(N141>#REF!,"",$L$7) ->  | P141: =IF(N141>=#REF!,"",IF(N141<=#REF!,#REF!,#REF!)) ->  | Q141: =IF(N141>#REF!,"",#REF!) ->  | V141: 134 | W141: =IF(V141>#REF!,"",$T$7) ->  | X141: =IF(V141>=#REF!,"",IF(V141<=#REF!,#REF!,#REF!)) ->  | Y141: =IF(V141>#REF!,"",#REF!) ->  | AG141: 134
A142: 135 | B142: =IF(A142>=#REF!,"",IF(A142<=#REF!,#REF!,#REF!)) ->  | C142: =IF(A142>=#REF!,"",IF(A142<=#REF!,#REF!,#REF!)) ->  | D142: =IF(A142>#REF!,"",#REF!) ->  | F142: 135 | G142: =IF(F142>=#REF!,"",IF(F142<=#REF!,#REF!,#REF!)) ->  | H142: =IF(F142>=#REF!,"",IF(F142<=#REF!,#REF!,#REF!)) ->  | I142: =IF(F142>#REF!,"",PMT(#REF!/12,#REF!,-#REF!)) ->  | N142: 135 | O142: =IF(N142>#REF!,"",$L$7) ->  | P142: =IF(N142>=#REF!,"",IF(N142<=#REF!,#REF!,#REF!)) ->  | Q142: =IF(N142>#REF!,"",#REF!) ->  | V142: 135 | W142: =IF(V142>#REF!,"",$T$7) ->  | X142: =IF(V142>=#REF!,"",IF(V142<=#REF!,#REF!,#REF!)) ->  | Y142: =IF(V142>#REF!,"",#REF!) ->  | AG142: 135
A143: 136 | B143: =IF(A143>=#REF!,"",IF(A143<=#REF!,#REF!,#REF!)) ->  | C143: =IF(A143>=#REF!,"",IF(A143<=#REF!,#REF!,#REF!)) ->  | D143: =IF(A143>#REF!,"",#REF!) ->  | F143: 136 | G143: =IF(F143>=#REF!,"",IF(F143<=#REF!,#REF!,#REF!)) ->  | H143: =IF(F143>=#REF!,"",IF(F143<=#REF!,#REF!,#REF!)) ->  | I143: =IF(F143>#REF!,"",PMT(#REF!/12,#REF!,-#REF!)) ->  | N143: 136 | O143: =IF(N143>#REF!,"",$L$7) ->  | P143: =IF(N143>=#REF!,"",IF(N143<=#REF!,#REF!,#REF!)) ->  | Q143: =IF(N143>#REF!,"",#REF!) ->  | V143: 136 | W143: =IF(V143>#REF!,"",$T$7) ->  | X143: =IF(V143>=#REF!,"",IF(V143<=#REF!,#REF!,#REF!)) ->  | Y143: =IF(V143>#REF!,"",#REF!) ->  | AG143: 136
A144: 137 | B144: =IF(A144>=#REF!,"",IF(A144<=#REF!,#REF!,#REF!)) ->  | C144: =IF(A144>=#REF!,"",IF(A144<=#REF!,#REF!,#REF!)) ->  | D144: =IF(A144>#REF!,"",#REF!) ->  | F144: 137 | G144: =IF(F144>=#REF!,"",IF(F144<=#REF!,#REF!,#REF!)) ->  | H144: =IF(F144>=#REF!,"",IF(F144<=#REF!,#REF!,#REF!)) ->  | I144: =IF(F144>#REF!,"",PMT(#REF!/12,#REF!,-#REF!)) ->  | N144: 137 | O144: =IF(N144>#REF!,"",$L$7) ->  | P144: =IF(N144>=#REF!,"",IF(N144<=#REF!,#REF!,#REF!)) ->  | Q144: =IF(N144>#REF!,"",#REF!) ->  | V144: 137 | W144: =IF(V144>#REF!,"",$T$7) ->  | X144: =IF(V144>=#REF!,"",IF(V144<=#REF!,#REF!,#REF!)) ->  | Y144: =IF(V144>#REF!,"",#REF!) ->  | AG144: 137
A145: 138 | B145: =IF(A145>=#REF!,"",IF(A145<=#REF!,#REF!,#REF!)) ->  | C145: =IF(A145>=#REF!,"",IF(A145<=#REF!,#REF!,#REF!)) ->  | D145: =IF(A145>#REF!,"",#REF!) ->  | F145: 138 | G145: =IF(F145>=#REF!,"",IF(F145<=#REF!,#REF!,#REF!)) ->  | H145: =IF(F145>=#REF!,"",IF(F145<=#REF!,#REF!,#REF!)) ->  | I145: =IF(F145>#REF!,"",PMT(#REF!/12,#REF!,-#REF!)) ->  | N145: 138 | O145: =IF(N145>#REF!,"",$L$7) ->  | P145: =IF(N145>=#REF!,"",IF(N145<=#REF!,#REF!,#REF!)) ->  | Q145: =IF(N145>#REF!,"",#REF!) ->  | V145: 138 | W145: =IF(V145>#REF!,"",$T$7) ->  | X145: =IF(V145>=#REF!,"",IF(V145<=#REF!,#REF!,#REF!)) ->  | Y145: =IF(V145>#REF!,"",#REF!) ->  | AG145: 138
A146: 139 | B146: =IF(A146>=#REF!,"",IF(A146<=#REF!,#REF!,#REF!)) ->  | C146: =IF(A146>=#REF!,"",IF(A146<=#REF!,#REF!,#REF!)) ->  | D146: =IF(A146>#REF!,"",#REF!) ->  | F146: 139 | G146: =IF(F146>=#REF!,"",IF(F146<=#REF!,#REF!,#REF!)) ->  | H146: =IF(F146>=#REF!,"",IF(F146<=#REF!,#REF!,#REF!)) ->  | I146: =IF(F146>#REF!,"",PMT(#REF!/12,#REF!,-#REF!)) ->  | N146: 139 | O146: =IF(N146>#REF!,"",$L$7) ->  | P146: =IF(N146>=#REF!,"",IF(N146<=#REF!,#REF!,#REF!)) ->  | Q146: =IF(N146>#REF!,"",#REF!) ->  | V146: 139 | W146: =IF(V146>#REF!,"",$T$7) ->  | X146: =IF(V146>=#REF!,"",IF(V146<=#REF!,#REF!,#REF!)) ->  | Y146: =IF(V146>#REF!,"",#REF!) ->  | AG146: 139
A147: 140 | B147: =IF(A147>=#REF!,"",IF(A147<=#REF!,#REF!,#REF!)) ->  | C147: =IF(A147>=#REF!,"",IF(A147<=#REF!,#REF!,#REF!)) ->  | D147: =IF(A147>#REF!,"",#REF!) ->  | F147: 140 | G147: =IF(F147>=#REF!,"",IF(F147<=#REF!,#REF!,#REF!)) ->  | H147: =IF(F147>=#REF!,"",IF(F147<=#REF!,#REF!,#REF!)) ->  | I147: =IF(F147>#REF!,"",PMT(#REF!/12,#REF!,-#REF!)) ->  | N147: 140 | O147: =IF(N147>#REF!,"",$L$7) ->  | P147: =IF(N147>=#REF!,"",IF(N147<=#REF!,#REF!,#REF!)) ->  | Q147: =IF(N147>#REF!,"",#REF!) ->  | V147: 140 | W147: =IF(V147>#REF!,"",$T$7) ->  | X147: =IF(V147>=#REF!,"",IF(V147<=#REF!,#REF!,#REF!)) ->  | Y147: =IF(V147>#REF!,"",#REF!) ->  | AG147: 140
A148: 141 | B148: =IF(A148>=#REF!,"",IF(A148<=#REF!,#REF!,#REF!)) ->  | C148: =IF(A148>=#REF!,"",IF(A148<=#REF!,#REF!,#REF!)) ->  | D148: =IF(A148>#REF!,"",#REF!) ->  | F148: 141 | G148: =IF(F148>=#REF!,"",IF(F148<=#REF!,#REF!,#REF!)) ->  | H148: =IF(F148>=#REF!,"",IF(F148<=#REF!,#REF!,#REF!)) ->  | I148: =IF(F148>#REF!,"",PMT(#REF!/12,#REF!,-#REF!)) ->  | N148: 141 | O148: =IF(N148>#REF!,"",$L$7) ->  | P148: =IF(N148>=#REF!,"",IF(N148<=#REF!,#REF!,#REF!)) ->  | Q148: =IF(N148>#REF!,"",#REF!) ->  | V148: 141 | W148: =IF(V148>#REF!,"",$T$7) ->  | X148: =IF(V148>=#REF!,"",IF(V148<=#REF!,#REF!,#REF!)) ->  | Y148: =IF(V148>#REF!,"",#REF!) ->  | AG148: 141
A149: 142 | B149: =IF(A149>=#REF!,"",IF(A149<=#REF!,#REF!,#REF!)) ->  | C149: =IF(A149>=#REF!,"",IF(A149<=#REF!,#REF!,#REF!)) ->  | D149: =IF(A149>#REF!,"",#REF!) ->  | F149: 142 | G149: =IF(F149>=#REF!,"",IF(F149<=#REF!,#REF!,#REF!)) ->  | H149: =IF(F149>=#REF!,"",IF(F149<=#REF!,#REF!,#REF!)) ->  | I149: =IF(F149>#REF!,"",PMT(#REF!/12,#REF!,-#REF!)) ->  | N149: 142 | O149: =IF(N149>#REF!,"",$L$7) ->  | P149: =IF(N149>=#REF!,"",IF(N149<=#REF!,#REF!,#REF!)) ->  | Q149: =IF(N149>#REF!,"",#REF!) ->  | V149: 142 | W149: =IF(V149>#REF!,"",$T$7) ->  | X149: =IF(V149>=#REF!,"",IF(V149<=#REF!,#REF!,#REF!)) ->  | Y149: =IF(V149>#REF!,"",#REF!) ->  | AG149: 142
A150: 143 | B150: =IF(A150>=#REF!,"",IF(A150<=#REF!,#REF!,#REF!)) ->  | C150: =IF(A150>=#REF!,"",IF(A150<=#REF!,#REF!,#REF!)) ->  | D150: =IF(A150>#REF!,"",#REF!) ->  | F150: 143 | G150: =IF(F150>=#REF!,"",IF(F150<=#REF!,#REF!,#REF!)) ->  | H150: =IF(F150>=#REF!,"",IF(F150<=#REF!,#REF!,#REF!)) ->  | I150: =IF(F150>#REF!,"",PMT(#REF!/12,#REF!,-#REF!)) ->  | N150: 143 | O150: =IF(N150>#REF!,"",$L$7) ->  | P150: =IF(N150>=#REF!,"",IF(N150<=#REF!,#REF!,#REF!)) ->  | Q150: =IF(N150>#REF!,"",#REF!) ->  | V150: 143 | W150: =IF(V150>#REF!,"",$T$7) ->  | X150: =IF(V150>=#REF!,"",IF(V150<=#REF!,#REF!,#REF!)) ->  | Y150: =IF(V150>#REF!,"",#REF!) ->  | AG150: 143
A151: 144 | B151: =IF(A151>=#REF!,"",IF(A151<=#REF!,#REF!,#REF!)) ->  | C151: =IF(A151>=#REF!,"",IF(A151<=#REF!,#REF!,#REF!)) ->  | D151: =IF(A151>#REF!,"",#REF!) ->  | F151: 144 | G151: =IF(F151>=#REF!,"",IF(F151<=#REF!,#REF!,#REF!)) ->  | H151: =IF(F151>=#REF!,"",IF(F151<=#REF!,#REF!,#REF!)) ->  | I151: =IF(F151>#REF!,"",PMT(#REF!/12,#REF!,-#REF!)) ->  | N151: 144 | O151: =IF(N151>#REF!,"",$L$7) ->  | P151: =IF(N151>=#REF!,"",IF(N151<=#REF!,#REF!,#REF!)) ->  | Q151: =IF(N151>#REF!,"",#REF!) ->  | V151: 144 | W151: =IF(V151>#REF!,"",$T$7) ->  | X151: =IF(V151>=#REF!,"",IF(V151<=#REF!,#REF!,#REF!)) ->  | Y151: =IF(V151>#REF!,"",#REF!) ->  | AG151: 144
A152: 145 | B152: =IF(A152>=#REF!,"",IF(A152<=#REF!,#REF!,#REF!)) ->  | C152: =IF(A152>=#REF!,"",IF(A152<=#REF!,#REF!,#REF!)) ->  | D152: =IF(A152>#REF!,"",#REF!) ->  | F152: 145 | G152: =IF(F152>=#REF!,"",IF(F152<=#REF!,#REF!,#REF!)) ->  | H152: =IF(F152>=#REF!,"",IF(F152<=#REF!,#REF!,#REF!)) ->  | I152: =IF(F152>#REF!,"",PMT(#REF!/12,#REF!,-#REF!)) ->  | N152: 145 | O152: =IF(N152>#REF!,"",$L$7) ->  | P152: =IF(N152>=#REF!,"",IF(N152<=#REF!,#REF!,#REF!)) ->  | Q152: =IF(N152>#REF!,"",#REF!) ->  | V152: 145 | W152: =IF(V152>#REF!,"",$T$7) ->  | X152: =IF(V152>=#REF!,"",IF(V152<=#REF!,#REF!,#REF!)) ->  | Y152: =IF(V152>#REF!,"",#REF!) ->  | AG152: 145
A153: 146 | B153: =IF(A153>=#REF!,"",IF(A153<=#REF!,#REF!,#REF!)) ->  | C153: =IF(A153>=#REF!,"",IF(A153<=#REF!,#REF!,#REF!)) ->  | D153: =IF(A153>#REF!,"",#REF!) ->  | F153: 146 | G153: =IF(F153>=#REF!,"",IF(F153<=#REF!,#REF!,#REF!)) ->  | H153: =IF(F153>=#REF!,"",IF(F153<=#REF!,#REF!,#REF!)) ->  | I153: =IF(F153>#REF!,"",PMT(#REF!/12,#REF!,-#REF!)) ->  | N153: 146 | O153: =IF(N153>#REF!,"",$L$7) ->  | P153: =IF(N153>=#REF!,"",IF(N153<=#REF!,#REF!,#REF!)) ->  | Q153: =IF(N153>#REF!,"",#REF!) ->  | V153: 146 | W153: =IF(V153>#REF!,"",$T$7) ->  | X153: =IF(V153>=#REF!,"",IF(V153<=#REF!,#REF!,#REF!)) ->  | Y153: =IF(V153>#REF!,"",#REF!) ->  | AG153: 146
A154: 147 | B154: =IF(A154>=#REF!,"",IF(A154<=#REF!,#REF!,#REF!)) ->  | C154: =IF(A154>=#REF!,"",IF(A154<=#REF!,#REF!,#REF!)) ->  | D154: =IF(A154>#REF!,"",#REF!) ->  | F154: 147 | G154: =IF(F154>=#REF!,"",IF(F154<=#REF!,#REF!,#REF!)) ->  | H154: =IF(F154>=#REF!,"",IF(F154<=#REF!,#REF!,#REF!)) ->  | I154: =IF(F154>#REF!,"",PMT(#REF!/12,#REF!,-#REF!)) ->  | N154: 147 | O154: =IF(N154>#REF!,"",$L$7) ->  | P154: =IF(N154>=#REF!,"",IF(N154<=#REF!,#REF!,#REF!)) ->  | Q154: =IF(N154>#REF!,"",#REF!) ->  | V154: 147 | W154: =IF(V154>#REF!,"",$T$7) ->  | X154: =IF(V154>=#REF!,"",IF(V154<=#REF!,#REF!,#REF!)) ->  | Y154: =IF(V154>#REF!,"",#REF!) ->  | AG154: 147
A155: 148 | B155: =IF(A155>=#REF!,"",IF(A155<=#REF!,#REF!,#REF!)) ->  | C155: =IF(A155>=#REF!,"",IF(A155<=#REF!,#REF!,#REF!)) ->  | D155: =IF(A155>#REF!,"",#REF!) ->  | F155: 148 | G155: =IF(F155>=#REF!,"",IF(F155<=#REF!,#REF!,#REF!)) ->  | H155: =IF(F155>=#REF!,"",IF(F155<=#REF!,#REF!,#REF!)) ->  | I155: =IF(F155>#REF!,"",PMT(#REF!/12,#REF!,-#REF!)) ->  | N155: 148 | O155: =IF(N155>#REF!,"",$L$7) ->  | P155: =IF(N155>=#REF!,"",IF(N155<=#REF!,#REF!,#REF!)) ->  | Q155: =IF(N155>#REF!,"",#REF!) ->  | V155: 148 | W155: =IF(V155>#REF!,"",$T$7) ->  | X155: =IF(V155>=#REF!,"",IF(V155<=#REF!,#REF!,#REF!)) ->  | Y155: =IF(V155>#REF!,"",#REF!) ->  | AG155: 148
A156: 149 | B156: =IF(A156>=#REF!,"",IF(A156<=#REF!,#REF!,#REF!)) ->  | C156: =IF(A156>=#REF!,"",IF(A156<=#REF!,#REF!,#REF!)) ->  | D156: =IF(A156>#REF!,"",#REF!) ->  | F156: 149 | G156: =IF(F156>=#REF!,"",IF(F156<=#REF!,#REF!,#REF!)) ->  | H156: =IF(F156>=#REF!,"",IF(F156<=#REF!,#REF!,#REF!)) ->  | I156: =IF(F156>#REF!,"",PMT(#REF!/12,#REF!,-#REF!)) ->  | N156: 149 | O156: =IF(N156>#REF!,"",$L$7) ->  | P156: =IF(N156>=#REF!,"",IF(N156<=#REF!,#REF!,#REF!)) ->  | Q156: =IF(N156>#REF!,"",#REF!) ->  | V156: 149 | W156: =IF(V156>#REF!,"",$T$7) ->  | X156: =IF(V156>=#REF!,"",IF(V156<=#REF!,#REF!,#REF!)) ->  | Y156: =IF(V156>#REF!,"",#REF!) ->  | AG156: 149
A157: 150 | B157: =IF(A157>=#REF!,"",IF(A157<=#REF!,#REF!,#REF!)) ->  | C157: =IF(A157>=#REF!,"",IF(A157<=#REF!,#REF!,#REF!)) ->  | D157: =IF(A157>#REF!,"",#REF!) ->  | F157: 150 | G157: =IF(F157>=#REF!,"",IF(F157<=#REF!,#REF!,#REF!)) ->  | H157: =IF(F157>=#REF!,"",IF(F157<=#REF!,#REF!,#REF!)) ->  | I157: =IF(F157>#REF!,"",PMT(#REF!/12,#REF!,-#REF!)) ->  | N157: 150 | O157: =IF(N157>#REF!,"",$L$7) ->  | P157: =IF(N157>=#REF!,"",IF(N157<=#REF!,#REF!,#REF!)) ->  | Q157: =IF(N157>#REF!,"",#REF!) ->  | V157: 150 | W157: =IF(V157>#REF!,"",$T$7) ->  | X157: =IF(V157>=#REF!,"",IF(V157<=#REF!,#REF!,#REF!)) ->  | Y157: =IF(V157>#REF!,"",#REF!) ->  | AG157: 150
A158: 151 | B158: =IF(A158>=#REF!,"",IF(A158<=#REF!,#REF!,#REF!)) ->  | C158: =IF(A158>=#REF!,"",IF(A158<=#REF!,#REF!,#REF!)) ->  | D158: =IF(A158>#REF!,"",#REF!) ->  | F158: 151 | G158: =IF(F158>=#REF!,"",IF(F158<=#REF!,#REF!,#REF!)) ->  | H158: =IF(F158>=#REF!,"",IF(F158<=#REF!,#REF!,#REF!)) ->  | I158: =IF(F158>#REF!,"",PMT(#REF!/12,#REF!,-#REF!)) ->  | N158: 151 | O158: =IF(N158>#REF!,"",$L$7) ->  | P158: =IF(N158>=#REF!,"",IF(N158<=#REF!,#REF!,#REF!)) ->  | Q158: =IF(N158>#REF!,"",#REF!) ->  | V158: 151 | W158: =IF(V158>#REF!,"",$T$7) ->  | X158: =IF(V158>=#REF!,"",IF(V158<=#REF!,#REF!,#REF!)) ->  | Y158: =IF(V158>#REF!,"",#REF!) ->  | AG158: 151
A159: 152 | B159: =IF(A159>=#REF!,"",IF(A159<=#REF!,#REF!,#REF!)) ->  | C159: =IF(A159>=#REF!,"",IF(A159<=#REF!,#REF!,#REF!)) ->  | D159: =IF(A159>#REF!,"",#REF!) ->  | F159: 152 | G159: =IF(F159>=#REF!,"",IF(F159<=#REF!,#REF!,#REF!)) ->  | H159: =IF(F159>=#REF!,"",IF(F159<=#REF!,#REF!,#REF!)) ->  | I159: =IF(F159>#REF!,"",PMT(#REF!/12,#REF!,-#REF!)) ->  | N159: 152 | O159: =IF(N159>#REF!,"",$L$7) ->  | P159: =IF(N159>=#REF!,"",IF(N159<=#REF!,#REF!,#REF!)) ->  | Q159: =IF(N159>#REF!,"",#REF!) ->  | V159: 152 | W159: =IF(V159>#REF!,"",$T$7) ->  | X159: =IF(V159>=#REF!,"",IF(V159<=#REF!,#REF!,#REF!)) ->  | Y159: =IF(V159>#REF!,"",#REF!) ->  | AG159: 152
A160: 153 | B160: =IF(A160>=#REF!,"",IF(A160<=#REF!,#REF!,#REF!)) ->  | C160: =IF(A160>=#REF!,"",IF(A160<=#REF!,#REF!,#REF!)) ->  | D160: =IF(A160>#REF!,"",#REF!) ->  | F160: 153 | G160: =IF(F160>=#REF!,"",IF(F160<=#REF!,#REF!,#REF!)) ->  | H160: =IF(F160>=#REF!,"",IF(F160<=#REF!,#REF!,#REF!)) ->  | I160: =IF(F160>#REF!,"",PMT(#REF!/12,#REF!,-#REF!)) ->  | N160: 153 | O160: =IF(N160>#REF!,"",$L$7) ->  | P160: =IF(N160>=#REF!,"",IF(N160<=#REF!,#REF!,#REF!)) ->  | Q160: =IF(N160>#REF!,"",#REF!) ->  | V160: 153 | W160: =IF(V160>#REF!,"",$T$7) ->  | X160: =IF(V160>=#REF!,"",IF(V160<=#REF!,#REF!,#REF!)) ->  | Y160: =IF(V160>#REF!,"",#REF!) ->  | AG160: 153
A161: 154 | B161: =IF(A161>=#REF!,"",IF(A161<=#REF!,#REF!,#REF!)) ->  | C161: =IF(A161>=#REF!,"",IF(A161<=#REF!,#REF!,#REF!)) ->  | D161: =IF(A161>#REF!,"",#REF!) ->  | F161: 154 | G161: =IF(F161>=#REF!,"",IF(F161<=#REF!,#REF!,#REF!)) ->  | H161: =IF(F161>=#REF!,"",IF(F161<=#REF!,#REF!,#REF!)) ->  | I161: =IF(F161>#REF!,"",PMT(#REF!/12,#REF!,-#REF!)) ->  | N161: 154 | O161: =IF(N161>#REF!,"",$L$7) ->  | P161: =IF(N161>=#REF!,"",IF(N161<=#REF!,#REF!,#REF!)) ->  | Q161: =IF(N161>#REF!,"",#REF!) ->  | V161: 154 | W161: =IF(V161>#REF!,"",$T$7) ->  | X161: =IF(V161>=#REF!,"",IF(V161<=#REF!,#REF!,#REF!)) ->  | Y161: =IF(V161>#REF!,"",#REF!) ->  | AG161: 154
A162: 155 | B162: =IF(A162>=#REF!,"",IF(A162<=#REF!,#REF!,#REF!)) ->  | C162: =IF(A162>=#REF!,"",IF(A162<=#REF!,#REF!,#REF!)) ->  | D162: =IF(A162>#REF!,"",#REF!) ->  | F162: 155 | G162: =IF(F162>=#REF!,"",IF(F162<=#REF!,#REF!,#REF!)) ->  | H162: =IF(F162>=#REF!,"",IF(F162<=#REF!,#REF!,#REF!)) ->  | I162: =IF(F162>#REF!,"",PMT(#REF!/12,#REF!,-#REF!)) ->  | N162: 155 | O162: =IF(N162>#REF!,"",$L$7) ->  | P162: =IF(N162>=#REF!,"",IF(N162<=#REF!,#REF!,#REF!)) ->  | Q162: =IF(N162>#REF!,"",#REF!) ->  | V162: 155 | W162: =IF(V162>#REF!,"",$T$7) ->  | X162: =IF(V162>=#REF!,"",IF(V162<=#REF!,#REF!,#REF!)) ->  | Y162: =IF(V162>#REF!,"",#REF!) ->  | AG162: 155
A163: 156 | B163: =IF(A163>=#REF!,"",IF(A163<=#REF!,#REF!,#REF!)) ->  | C163: =IF(A163>=#REF!,"",IF(A163<=#REF!,#REF!,#REF!)) ->  | D163: =IF(A163>#REF!,"",#REF!) ->  | F163: 156 | G163: =IF(F163>=#REF!,"",IF(F163<=#REF!,#REF!,#REF!)) ->  | H163: =IF(F163>=#REF!,"",IF(F163<=#REF!,#REF!,#REF!)) ->  | I163: =IF(F163>#REF!,"",PMT(#REF!/12,#REF!,-#REF!)) ->  | N163: 156 | O163: =IF(N163>#REF!,"",$L$7) ->  | P163: =IF(N163>=#REF!,"",IF(N163<=#REF!,#REF!,#REF!)) ->  | Q163: =IF(N163>#REF!,"",#REF!) ->  | V163: 156 | W163: =IF(V163>#REF!,"",$T$7) ->  | X163: =IF(V163>=#REF!,"",IF(V163<=#REF!,#REF!,#REF!)) ->  | Y163: =IF(V163>#REF!,"",#REF!) ->  | AG163: 156
A164: 157 | B164: =IF(A164>=#REF!,"",IF(A164<=#REF!,#REF!,#REF!)) ->  | C164: =IF(A164>=#REF!,"",IF(A164<=#REF!,#REF!,#REF!)) ->  | D164: =IF(A164>#REF!,"",#REF!) ->  | F164: 157 | G164: =IF(F164>=#REF!,"",IF(F164<=#REF!,#REF!,#REF!)) ->  | H164: =IF(F164>=#REF!,"",IF(F164<=#REF!,#REF!,#REF!)) ->  | I164: =IF(F164>#REF!,"",PMT(#REF!/12,#REF!,-#REF!)) ->  | N164: 157 | O164: =IF(N164>#REF!,"",$L$7) ->  | P164: =IF(N164>=#REF!,"",IF(N164<=#REF!,#REF!,#REF!)) ->  | Q164: =IF(N164>#REF!,"",#REF!) ->  | V164: 157 | W164: =IF(V164>#REF!,"",$T$7) ->  | X164: =IF(V164>=#REF!,"",IF(V164<=#REF!,#REF!,#REF!)) ->  | Y164: =IF(V164>#REF!,"",#REF!) ->  | AG164: 157
A165: 158 | B165: =IF(A165>=#REF!,"",IF(A165<=#REF!,#REF!,#REF!)) ->  | C165: =IF(A165>=#REF!,"",IF(A165<=#REF!,#REF!,#REF!)) ->  | D165: =IF(A165>#REF!,"",#REF!) ->  | F165: 158 | G165: =IF(F165>=#REF!,"",IF(F165<=#REF!,#REF!,#REF!)) ->  | H165: =IF(F165>=#REF!,"",IF(F165<=#REF!,#REF!,#REF!)) ->  | I165: =IF(F165>#REF!,"",PMT(#REF!/12,#REF!,-#REF!)) ->  | N165: 158 | O165: =IF(N165>#REF!,"",$L$7) ->  | P165: =IF(N165>=#REF!,"",IF(N165<=#REF!,#REF!,#REF!)) ->  | Q165: =IF(N165>#REF!,"",#REF!) ->  | V165: 158 | W165: =IF(V165>#REF!,"",$T$7) ->  | X165: =IF(V165>=#REF!,"",IF(V165<=#REF!,#REF!,#REF!)) ->  | Y165: =IF(V165>#REF!,"",#REF!) ->  | AG165: 158
A166: 159 | B166: =IF(A166>=#REF!,"",IF(A166<=#REF!,#REF!,#REF!)) ->  | C166: =IF(A166>=#REF!,"",IF(A166<=#REF!,#REF!,#REF!)) ->  | D166: =IF(A166>#REF!,"",#REF!) ->  | F166: 159 | G166: =IF(F166>=#REF!,"",IF(F166<=#REF!,#REF!,#REF!)) ->  | H166: =IF(F166>=#REF!,"",IF(F166<=#REF!,#REF!,#REF!)) ->  | I166: =IF(F166>#REF!,"",PMT(#REF!/12,#REF!,-#REF!)) ->  | N166: 159 | O166: =IF(N166>#REF!,"",$L$7) ->  | P166: =IF(N166>=#REF!,"",IF(N166<=#REF!,#REF!,#REF!)) ->  | Q166: =IF(N166>#REF!,"",#REF!) ->  | V166: 159 | W166: =IF(V166>#REF!,"",$T$7) ->  | X166: =IF(V166>=#REF!,"",IF(V166<=#REF!,#REF!,#REF!)) ->  | Y166: =IF(V166>#REF!,"",#REF!) ->  | AG166: 159
A167: 160 | B167: =IF(A167>=#REF!,"",IF(A167<=#REF!,#REF!,#REF!)) ->  | C167: =IF(A167>=#REF!,"",IF(A167<=#REF!,#REF!,#REF!)) ->  | D167: =IF(A167>#REF!,"",#REF!) ->  | F167: 160 | G167: =IF(F167>=#REF!,"",IF(F167<=#REF!,#REF!,#REF!)) ->  | H167: =IF(F167>=#REF!,"",IF(F167<=#REF!,#REF!,#REF!)) ->  | I167: =IF(F167>#REF!,"",PMT(#REF!/12,#REF!,-#REF!)) ->  | N167: 160 | O167: =IF(N167>#REF!,"",$L$7) ->  | P167: =IF(N167>=#REF!,"",IF(N167<=#REF!,#REF!,#REF!)) ->  | Q167: =IF(N167>#REF!,"",#REF!) ->  | V167: 160 | W167: =IF(V167>#REF!,"",$T$7) ->  | X167: =IF(V167>=#REF!,"",IF(V167<=#REF!,#REF!,#REF!)) ->  | Y167: =IF(V167>#REF!,"",#REF!) ->  | AG167: 160
A168: 161 | B168: =IF(A168>=#REF!,"",IF(A168<=#REF!,#REF!,#REF!)) ->  | C168: =IF(A168>=#REF!,"",IF(A168<=#REF!,#REF!,#REF!)) ->  | D168: =IF(A168>#REF!,"",#REF!) ->  | F168: 161 | G168: =IF(F168>=#REF!,"",IF(F168<=#REF!,#REF!,#REF!)) ->  | H168: =IF(F168>=#REF!,"",IF(F168<=#REF!,#REF!,#REF!)) ->  | I168: =IF(F168>#REF!,"",PMT(#REF!/12,#REF!,-#REF!)) ->  | N168: 161 | O168: =IF(N168>#REF!,"",$L$7) ->  | P168: =IF(N168>=#REF!,"",IF(N168<=#REF!,#REF!,#REF!)) ->  | Q168: =IF(N168>#REF!,"",#REF!) ->  | V168: 161 | W168: =IF(V168>#REF!,"",$T$7) ->  | X168: =IF(V168>=#REF!,"",IF(V168<=#REF!,#REF!,#REF!)) ->  | Y168: =IF(V168>#REF!,"",#REF!) ->  | AG168: 161
A169: 162 | B169: =IF(A169>=#REF!,"",IF(A169<=#REF!,#REF!,#REF!)) ->  | C169: =IF(A169>=#REF!,"",IF(A169<=#REF!,#REF!,#REF!)) ->  | D169: =IF(A169>#REF!,"",#REF!) ->  | F169: 162 | G169: =IF(F169>=#REF!,"",IF(F169<=#REF!,#REF!,#REF!)) ->  | H169: =IF(F169>=#REF!,"",IF(F169<=#REF!,#REF!,#REF!)) ->  | I169: =IF(F169>#REF!,"",PMT(#REF!/12,#REF!,-#REF!)) ->  | N169: 162 | O169: =IF(N169>#REF!,"",$L$7) ->  | P169: =IF(N169>=#REF!,"",IF(N169<=#REF!,#REF!,#REF!)) ->  | Q169: =IF(N169>#REF!,"",#REF!) ->  | V169: 162 | W169: =IF(V169>#REF!,"",$T$7) ->  | X169: =IF(V169>=#REF!,"",IF(V169<=#REF!,#REF!,#REF!)) ->  | Y169: =IF(V169>#REF!,"",#REF!) ->  | AG169: 162
A170: 163 | B170: =IF(A170>=#REF!,"",IF(A170<=#REF!,#REF!,#REF!)) ->  | C170: =IF(A170>=#REF!,"",IF(A170<=#REF!,#REF!,#REF!)) ->  | D170: =IF(A170>#REF!,"",#REF!) ->  | F170: 163 | G170: =IF(F170>=#REF!,"",IF(F170<=#REF!,#REF!,#REF!)) ->  | H170: =IF(F170>=#REF!,"",IF(F170<=#REF!,#REF!,#REF!)) ->  | I170: =IF(F170>#REF!,"",PMT(#REF!/12,#REF!,-#REF!)) ->  | N170: 163 | O170: =IF(N170>#REF!,"",$L$7) ->  | P170: =IF(N170>=#REF!,"",IF(N170<=#REF!,#REF!,#REF!)) ->  | Q170: =IF(N170>#REF!,"",#REF!) ->  | V170: 163 | W170: =IF(V170>#REF!,"",$T$7) ->  | X170: =IF(V170>=#REF!,"",IF(V170<=#REF!,#REF!,#REF!)) ->  | Y170: =IF(V170>#REF!,"",#REF!) ->  | AG170: 163
A171: 164 | B171: =IF(A171>=#REF!,"",IF(A171<=#REF!,#REF!,#REF!)) ->  | C171: =IF(A171>=#REF!,"",IF(A171<=#REF!,#REF!,#REF!)) ->  | D171: =IF(A171>#REF!,"",#REF!) ->  | F171: 164 | G171: =IF(F171>=#REF!,"",IF(F171<=#REF!,#REF!,#REF!)) ->  | H171: =IF(F171>=#REF!,"",IF(F171<=#REF!,#REF!,#REF!)) ->  | I171: =IF(F171>#REF!,"",PMT(#REF!/12,#REF!,-#REF!)) ->  | N171: 164 | O171: =IF(N171>#REF!,"",$L$7) ->  | P171: =IF(N171>=#REF!,"",IF(N171<=#REF!,#REF!,#REF!)) ->  | Q171: =IF(N171>#REF!,"",#REF!) ->  | V171: 164 | W171: =IF(V171>#REF!,"",$T$7) ->  | X171: =IF(V171>=#REF!,"",IF(V171<=#REF!,#REF!,#REF!)) ->  | Y171: =IF(V171>#REF!,"",#REF!) ->  | AG171: 164
A172: 165 | B172: =IF(A172>=#REF!,"",IF(A172<=#REF!,#REF!,#REF!)) ->  | C172: =IF(A172>=#REF!,"",IF(A172<=#REF!,#REF!,#REF!)) ->  | D172: =IF(A172>#REF!,"",#REF!) ->  | F172: 165 | G172: =IF(F172>=#REF!,"",IF(F172<=#REF!,#REF!,#REF!)) ->  | H172: =IF(F172>=#REF!,"",IF(F172<=#REF!,#REF!,#REF!)) ->  | I172: =IF(F172>#REF!,"",PMT(#REF!/12,#REF!,-#REF!)) ->  | N172: 165 | O172: =IF(N172>#REF!,"",$L$7) ->  | P172: =IF(N172>=#REF!,"",IF(N172<=#REF!,#REF!,#REF!)) ->  | Q172: =IF(N172>#REF!,"",#REF!) ->  | V172: 165 | W172: =IF(V172>#REF!,"",$T$7) ->  | X172: =IF(V172>=#REF!,"",IF(V172<=#REF!,#REF!,#REF!)) ->  | Y172: =IF(V172>#REF!,"",#REF!) ->  | AG172: 165
A173: 166 | B173: =IF(A173>=#REF!,"",IF(A173<=#REF!,#REF!,#REF!)) ->  | C173: =IF(A173>=#REF!,"",IF(A173<=#REF!,#REF!,#REF!)) ->  | D173: =IF(A173>#REF!,"",#REF!) ->  | F173: 166 | G173: =IF(F173>=#REF!,"",IF(F173<=#REF!,#REF!,#REF!)) ->  | H173: =IF(F173>=#REF!,"",IF(F173<=#REF!,#REF!,#REF!)) ->  | I173: =IF(F173>#REF!,"",PMT(#REF!/12,#REF!,-#REF!)) ->  | N173: 166 | O173: =IF(N173>#REF!,"",$L$7) ->  | P173: =IF(N173>=#REF!,"",IF(N173<=#REF!,#REF!,#REF!)) ->  | Q173: =IF(N173>#REF!,"",#REF!) ->  | V173: 166 | W173: =IF(V173>#REF!,"",$T$7) ->  | X173: =IF(V173>=#REF!,"",IF(V173<=#REF!,#REF!,#REF!)) ->  | Y173: =IF(V173>#REF!,"",#REF!) ->  | AG173: 166
A174: 167 | B174: =IF(A174>=#REF!,"",IF(A174<=#REF!,#REF!,#REF!)) ->  | C174: =IF(A174>=#REF!,"",IF(A174<=#REF!,#REF!,#REF!)) ->  | D174: =IF(A174>#REF!,"",#REF!) ->  | F174: 167 | G174: =IF(F174>=#REF!,"",IF(F174<=#REF!,#REF!,#REF!)) ->  | H174: =IF(F174>=#REF!,"",IF(F174<=#REF!,#REF!,#REF!)) ->  | I174: =IF(F174>#REF!,"",PMT(#REF!/12,#REF!,-#REF!)) ->  | N174: 167 | O174: =IF(N174>#REF!,"",$L$7) ->  | P174: =IF(N174>=#REF!,"",IF(N174<=#REF!,#REF!,#REF!)) ->  | Q174: =IF(N174>#REF!,"",#REF!) ->  | V174: 167 | W174: =IF(V174>#REF!,"",$T$7) ->  | X174: =IF(V174>=#REF!,"",IF(V174<=#REF!,#REF!,#REF!)) ->  | Y174: =IF(V174>#REF!,"",#REF!) ->  | AG174: 167
A175: 168 | B175: =IF(A175>=#REF!,"",IF(A175<=#REF!,#REF!,#REF!)) ->  | C175: =IF(A175>=#REF!,"",IF(A175<=#REF!,#REF!,#REF!)) ->  | D175: =IF(A175>#REF!,"",#REF!) ->  | F175: 168 | G175: =IF(F175>=#REF!,"",IF(F175<=#REF!,#REF!,#REF!)) ->  | H175: =IF(F175>=#REF!,"",IF(F175<=#REF!,#REF!,#REF!)) ->  | I175: =IF(F175>#REF!,"",PMT(#REF!/12,#REF!,-#REF!)) ->  | N175: 168 | O175: =IF(N175>#REF!,"",$L$7) ->  | P175: =IF(N175>=#REF!,"",IF(N175<=#REF!,#REF!,#REF!)) ->  | Q175: =IF(N175>#REF!,"",#REF!) ->  | V175: 168 | W175: =IF(V175>#REF!,"",$T$7) ->  | X175: =IF(V175>=#REF!,"",IF(V175<=#REF!,#REF!,#REF!)) ->  | Y175: =IF(V175>#REF!,"",#REF!) ->  | AG175: 168
A176: 169 | B176: =IF(A176>=#REF!,"",IF(A176<=#REF!,#REF!,#REF!)) ->  | C176: =IF(A176>=#REF!,"",IF(A176<=#REF!,#REF!,#REF!)) ->  | D176: =IF(A176>#REF!,"",#REF!) ->  | F176: 169 | G176: =IF(F176>=#REF!,"",IF(F176<=#REF!,#REF!,#REF!)) ->  | H176: =IF(F176>=#REF!,"",IF(F176<=#REF!,#REF!,#REF!)) ->  | I176: =IF(F176>#REF!,"",PMT(#REF!/12,#REF!,-#REF!)) ->  | N176: 169 | O176: =IF(N176>#REF!,"",$L$7) ->  | P176: =IF(N176>=#REF!,"",IF(N176<=#REF!,#REF!,#REF!)) ->  | Q176: =IF(N176>#REF!,"",#REF!) ->  | V176: 169 | W176: =IF(V176>#REF!,"",$T$7) ->  | X176: =IF(V176>=#REF!,"",IF(V176<=#REF!,#REF!,#REF!)) ->  | Y176: =IF(V176>#REF!,"",#REF!) ->  | AG176: 169
A177: 170 | B177: =IF(A177>=#REF!,"",IF(A177<=#REF!,#REF!,#REF!)) ->  | C177: =IF(A177>=#REF!,"",IF(A177<=#REF!,#REF!,#REF!)) ->  | D177: =IF(A177>#REF!,"",#REF!) ->  | F177: 170 | G177: =IF(F177>=#REF!,"",IF(F177<=#REF!,#REF!,#REF!)) ->  | H177: =IF(F177>=#REF!,"",IF(F177<=#REF!,#REF!,#REF!)) ->  | I177: =IF(F177>#REF!,"",PMT(#REF!/12,#REF!,-#REF!)) ->  | N177: 170 | O177: =IF(N177>#REF!,"",$L$7) ->  | P177: =IF(N177>=#REF!,"",IF(N177<=#REF!,#REF!,#REF!)) ->  | Q177: =IF(N177>#REF!,"",#REF!) ->  | V177: 170 | W177: =IF(V177>#REF!,"",$T$7) ->  | X177: =IF(V177>=#REF!,"",IF(V177<=#REF!,#REF!,#REF!)) ->  | Y177: =IF(V177>#REF!,"",#REF!) ->  | AG177: 170
A178: 171 | B178: =IF(A178>=#REF!,"",IF(A178<=#REF!,#REF!,#REF!)) ->  | C178: =IF(A178>=#REF!,"",IF(A178<=#REF!,#REF!,#REF!)) ->  | D178: =IF(A178>#REF!,"",#REF!) ->  | F178: 171 | G178: =IF(F178>=#REF!,"",IF(F178<=#REF!,#REF!,#REF!)) ->  | H178: =IF(F178>=#REF!,"",IF(F178<=#REF!,#REF!,#REF!)) ->  | I178: =IF(F178>#REF!,"",PMT(#REF!/12,#REF!,-#REF!)) ->  | N178: 171 | O178: =IF(N178>#REF!,"",$L$7) ->  | P178: =IF(N178>=#REF!,"",IF(N178<=#REF!,#REF!,#REF!)) ->  | Q178: =IF(N178>#REF!,"",#REF!) ->  | V178: 171 | W178: =IF(V178>#REF!,"",$T$7) ->  | X178: =IF(V178>=#REF!,"",IF(V178<=#REF!,#REF!,#REF!)) ->  | Y178: =IF(V178>#REF!,"",#REF!) ->  | AG178: 171
A179: 172 | B179: =IF(A179>=#REF!,"",IF(A179<=#REF!,#REF!,#REF!)) ->  | C179: =IF(A179>=#REF!,"",IF(A179<=#REF!,#REF!,#REF!)) ->  | D179: =IF(A179>#REF!,"",#REF!) ->  | F179: 172 | G179: =IF(F179>=#REF!,"",IF(F179<=#REF!,#REF!,#REF!)) ->  | H179: =IF(F179>=#REF!,"",IF(F179<=#REF!,#REF!,#REF!)) ->  | I179: =IF(F179>#REF!,"",PMT(#REF!/12,#REF!,-#REF!)) ->  | N179: 172 | O179: =IF(N179>#REF!,"",$L$7) ->  | P179: =IF(N179>=#REF!,"",IF(N179<=#REF!,#REF!,#REF!)) ->  | Q179: =IF(N179>#REF!,"",#REF!) ->  | V179: 172 | W179: =IF(V179>#REF!,"",$T$7) ->  | X179: =IF(V179>=#REF!,"",IF(V179<=#REF!,#REF!,#REF!)) ->  | Y179: =IF(V179>#REF!,"",#REF!) ->  | AG179: 172
A180: 173 | B180: =IF(A180>=#REF!,"",IF(A180<=#REF!,#REF!,#REF!)) ->  | C180: =IF(A180>=#REF!,"",IF(A180<=#REF!,#REF!,#REF!)) ->  | D180: =IF(A180>#REF!,"",#REF!) ->  | F180: 173 | G180: =IF(F180>=#REF!,"",IF(F180<=#REF!,#REF!,#REF!)) ->  | H180: =IF(F180>=#REF!,"",IF(F180<=#REF!,#REF!,#REF!)) ->  | I180: =IF(F180>#REF!,"",PMT(#REF!/12,#REF!,-#REF!)) ->  | N180: 173 | O180: =IF(N180>#REF!,"",$L$7) ->  | P180: =IF(N180>=#REF!,"",IF(N180<=#REF!,#REF!,#REF!)) ->  | Q180: =IF(N180>#REF!,"",#REF!) ->  | V180: 173 | W180: =IF(V180>#REF!,"",$T$7) ->  | X180: =IF(V180>=#REF!,"",IF(V180<=#REF!,#REF!,#REF!)) ->  | Y180: =IF(V180>#REF!,"",#REF!) ->  | AG180: 173
A181: 174 | B181: =IF(A181>=#REF!,"",IF(A181<=#REF!,#REF!,#REF!)) ->  | C181: =IF(A181>=#REF!,"",IF(A181<=#REF!,#REF!,#REF!)) ->  | D181: =IF(A181>#REF!,"",#REF!) ->  | F181: 174 | G181: =IF(F181>=#REF!,"",IF(F181<=#REF!,#REF!,#REF!)) ->  | H181: =IF(F181>=#REF!,"",IF(F181<=#REF!,#REF!,#REF!)) ->  | I181: =IF(F181>#REF!,"",PMT(#REF!/12,#REF!,-#REF!)) ->  | N181: 174 | O181: =IF(N181>#REF!,"",$L$7) ->  | P181: =IF(N181>=#REF!,"",IF(N181<=#REF!,#REF!,#REF!)) ->  | Q181: =IF(N181>#REF!,"",#REF!) ->  | V181: 174 | W181: =IF(V181>#REF!,"",$T$7) ->  | X181: =IF(V181>=#REF!,"",IF(V181<=#REF!,#REF!,#REF!)) ->  | Y181: =IF(V181>#REF!,"",#REF!) ->  | AG181: 174
A182: 175 | B182: =IF(A182>=#REF!,"",IF(A182<=#REF!,#REF!,#REF!)) ->  | C182: =IF(A182>=#REF!,"",IF(A182<=#REF!,#REF!,#REF!)) ->  | D182: =IF(A182>#REF!,"",#REF!) ->  | F182: 175 | G182: =IF(F182>=#REF!,"",IF(F182<=#REF!,#REF!,#REF!)) ->  | H182: =IF(F182>=#REF!,"",IF(F182<=#REF!,#REF!,#REF!)) ->  | I182: =IF(F182>#REF!,"",PMT(#REF!/12,#REF!,-#REF!)) ->  | N182: 175 | O182: =IF(N182>#REF!,"",$L$7) ->  | P182: =IF(N182>=#REF!,"",IF(N182<=#REF!,#REF!,#REF!)) ->  | Q182: =IF(N182>#REF!,"",#REF!) ->  | V182: 175 | W182: =IF(V182>#REF!,"",$T$7) ->  | X182: =IF(V182>=#REF!,"",IF(V182<=#REF!,#REF!,#REF!)) ->  | Y182: =IF(V182>#REF!,"",#REF!) ->  | AG182: 175
A183: 176 | B183: =IF(A183>=#REF!,"",IF(A183<=#REF!,#REF!,#REF!)) ->  | C183: =IF(A183>=#REF!,"",IF(A183<=#REF!,#REF!,#REF!)) ->  | D183: =IF(A183>#REF!,"",#REF!) ->  | F183: 176 | G183: =IF(F183>=#REF!,"",IF(F183<=#REF!,#REF!,#REF!)) ->  | H183: =IF(F183>=#REF!,"",IF(F183<=#REF!,#REF!,#REF!)) ->  | I183: =IF(F183>#REF!,"",PMT(#REF!/12,#REF!,-#REF!)) ->  | N183: 176 | O183: =IF(N183>#REF!,"",$L$7) ->  | P183: =IF(N183>=#REF!,"",IF(N183<=#REF!,#REF!,#REF!)) ->  | Q183: =IF(N183>#REF!,"",#REF!) ->  | V183: 176 | W183: =IF(V183>#REF!,"",$T$7) ->  | X183: =IF(V183>=#REF!,"",IF(V183<=#REF!,#REF!,#REF!)) ->  | Y183: =IF(V183>#REF!,"",#REF!) ->  | AG183: 176
A184: 177 | B184: =IF(A184>=#REF!,"",IF(A184<=#REF!,#REF!,#REF!)) ->  | C184: =IF(A184>=#REF!,"",IF(A184<=#REF!,#REF!,#REF!)) ->  | D184: =IF(A184>#REF!,"",#REF!) ->  | F184: 177 | G184: =IF(F184>=#REF!,"",IF(F184<=#REF!,#REF!,#REF!)) ->  | H184: =IF(F184>=#REF!,"",IF(F184<=#REF!,#REF!,#REF!)) ->  | I184: =IF(F184>#REF!,"",PMT(#REF!/12,#REF!,-#REF!)) ->  | N184: 177 | O184: =IF(N184>#REF!,"",$L$7) ->  | P184: =IF(N184>=#REF!,"",IF(N184<=#REF!,#REF!,#REF!)) ->  | Q184: =IF(N184>#REF!,"",#REF!) ->  | V184: 177 | W184: =IF(V184>#REF!,"",$T$7) ->  | X184: =IF(V184>=#REF!,"",IF(V184<=#REF!,#REF!,#REF!)) ->  | Y184: =IF(V184>#REF!,"",#REF!) ->  | AG184: 177
A185: 178 | B185: =IF(A185>=#REF!,"",IF(A185<=#REF!,#REF!,#REF!)) ->  | C185: =IF(A185>=#REF!,"",IF(A185<=#REF!,#REF!,#REF!)) ->  | D185: =IF(A185>#REF!,"",#REF!) ->  | F185: 178 | G185: =IF(F185>=#REF!,"",IF(F185<=#REF!,#REF!,#REF!)) ->  | H185: =IF(F185>=#REF!,"",IF(F185<=#REF!,#REF!,#REF!)) ->  | I185: =IF(F185>#REF!,"",PMT(#REF!/12,#REF!,-#REF!)) ->  | N185: 178 | O185: =IF(N185>#REF!,"",$L$7) ->  | P185: =IF(N185>=#REF!,"",IF(N185<=#REF!,#REF!,#REF!)) ->  | Q185: =IF(N185>#REF!,"",#REF!) ->  | V185: 178 | W185: =IF(V185>#REF!,"",$T$7) ->  | X185: =IF(V185>=#REF!,"",IF(V185<=#REF!,#REF!,#REF!)) ->  | Y185: =IF(V185>#REF!,"",#REF!) ->  | AG185: 178
A186: 179 | B186: =IF(A186>=#REF!,"",IF(A186<=#REF!,#REF!,#REF!)) ->  | C186: =IF(A186>=#REF!,"",IF(A186<=#REF!,#REF!,#REF!)) ->  | D186: =IF(A186>#REF!,"",#REF!) ->  | F186: 179 | G186: =IF(F186>=#REF!,"",IF(F186<=#REF!,#REF!,#REF!)) ->  | H186: =IF(F186>=#REF!,"",IF(F186<=#REF!,#REF!,#REF!)) ->  | I186: =IF(F186>#REF!,"",PMT(#REF!/12,#REF!,-#REF!)) ->  | N186: 179 | O186: =IF(N186>#REF!,"",$L$7) ->  | P186: =IF(N186>=#REF!,"",IF(N186<=#REF!,#REF!,#REF!)) ->  | Q186: =IF(N186>#REF!,"",#REF!) ->  | V186: 179 | W186: =IF(V186>#REF!,"",$T$7) ->  | X186: =IF(V186>=#REF!,"",IF(V186<=#REF!,#REF!,#REF!)) ->  | Y186: =IF(V186>#REF!,"",#REF!) ->  | AG186: 179
A187: 180 | B187: =IF(A187>=#REF!,"",IF(A187<=#REF!,#REF!,#REF!)) ->  | C187: =IF(A187>=#REF!,"",IF(A187<=#REF!,#REF!,#REF!)) ->  | D187: =IF(A187>#REF!,"",#REF!) ->  | F187: 180 | G187: =IF(F187>=#REF!,"",IF(F187<=#REF!,#REF!,#REF!)) ->  | H187: =IF(F187>=#REF!,"",IF(F187<=#REF!,#REF!,#REF!)) ->  | I187: =IF(F187>#REF!,"",PMT(#REF!/12,#REF!,-#REF!)) ->  | N187: 180 | O187: =IF(N187>#REF!,"",$L$7) ->  | P187: =IF(N187>=#REF!,"",IF(N187<=#REF!,#REF!,#REF!)) ->  | Q187: =IF(N187>#REF!,"",#REF!) ->  | V187: 180 | W187: =IF(V187>#REF!,"",$T$7) ->  | X187: =IF(V187>=#REF!,"",IF(V187<=#REF!,#REF!,#REF!)) ->  | Y187: =IF(V187>#REF!,"",#REF!) ->  | AG187: 180
A188: 181 | B188: =IF(A188>=#REF!,"",IF(A188<=#REF!,#REF!,#REF!)) ->  | C188: =IF(A188>=#REF!,"",IF(A188<=#REF!,#REF!,#REF!)) ->  | D188: =IF(A188>#REF!,"",#REF!) ->  | F188: 181 | G188: =IF(F188>=#REF!,"",IF(F188<=#REF!,#REF!,#REF!)) ->  | H188: =IF(F188>=#REF!,"",IF(F188<=#REF!,#REF!,#REF!)) ->  | I188: =IF(F188>#REF!,"",PMT(#REF!/12,#REF!,-#REF!)) ->  | N188: 181 | O188: =IF(N188>#REF!,"",$L$7) ->  | P188: =IF(N188>=#REF!,"",IF(N188<=#REF!,#REF!,#REF!)) ->  | Q188: =IF(N188>#REF!,"",#REF!) ->  | V188: 181 | W188: =IF(V188>#REF!,"",$T$7) ->  | X188: =IF(V188>=#REF!,"",IF(V188<=#REF!,#REF!,#REF!)) ->  | Y188: =IF(V188>#REF!,"",#REF!) ->  | AG188: 181
A189: 182 | B189: =IF(A189>=#REF!,"",IF(A189<=#REF!,#REF!,#REF!)) ->  | C189: =IF(A189>=#REF!,"",IF(A189<=#REF!,#REF!,#REF!)) ->  | D189: =IF(A189>#REF!,"",#REF!) ->  | F189: 182 | G189: =IF(F189>=#REF!,"",IF(F189<=#REF!,#REF!,#REF!)) ->  | H189: =IF(F189>=#REF!,"",IF(F189<=#REF!,#REF!,#REF!)) ->  | I189: =IF(F189>#REF!,"",PMT(#REF!/12,#REF!,-#REF!)) ->  | N189: 182 | O189: =IF(N189>#REF!,"",$L$7) ->  | P189: =IF(N189>=#REF!,"",IF(N189<=#REF!,#REF!,#REF!)) ->  | Q189: =IF(N189>#REF!,"",#REF!) ->  | V189: 182 | W189: =IF(V189>#REF!,"",$T$7) ->  | X189: =IF(V189>=#REF!,"",IF(V189<=#REF!,#REF!,#REF!)) ->  | Y189: =IF(V189>#REF!,"",#REF!) ->  | AG189: 182
A190: 183 | B190: =IF(A190>=#REF!,"",IF(A190<=#REF!,#REF!,#REF!)) ->  | C190: =IF(A190>=#REF!,"",IF(A190<=#REF!,#REF!,#REF!)) ->  | D190: =IF(A190>#REF!,"",#REF!) ->  | F190: 183 | G190: =IF(F190>=#REF!,"",IF(F190<=#REF!,#REF!,#REF!)) ->  | H190: =IF(F190>=#REF!,"",IF(F190<=#REF!,#REF!,#REF!)) ->  | I190: =IF(F190>#REF!,"",PMT(#REF!/12,#REF!,-#REF!)) ->  | N190: 183 | O190: =IF(N190>#REF!,"",$L$7) ->  | P190: =IF(N190>=#REF!,"",IF(N190<=#REF!,#REF!,#REF!)) ->  | Q190: =IF(N190>#REF!,"",#REF!) ->  | V190: 183 | W190: =IF(V190>#REF!,"",$T$7) ->  | X190: =IF(V190>=#REF!,"",IF(V190<=#REF!,#REF!,#REF!)) ->  | Y190: =IF(V190>#REF!,"",#REF!) ->  | AG190: 183
A191: 184 | B191: =IF(A191>=#REF!,"",IF(A191<=#REF!,#REF!,#REF!)) ->  | C191: =IF(A191>=#REF!,"",IF(A191<=#REF!,#REF!,#REF!)) ->  | D191: =IF(A191>#REF!,"",#REF!) ->  | F191: 184 | G191: =IF(F191>=#REF!,"",IF(F191<=#REF!,#REF!,#REF!)) ->  | H191: =IF(F191>=#REF!,"",IF(F191<=#REF!,#REF!,#REF!)) ->  | I191: =IF(F191>#REF!,"",PMT(#REF!/12,#REF!,-#REF!)) ->  | N191: 184 | O191: =IF(N191>#REF!,"",$L$7) ->  | P191: =IF(N191>=#REF!,"",IF(N191<=#REF!,#REF!,#REF!)) ->  | Q191: =IF(N191>#REF!,"",#REF!) ->  | V191: 184 | W191: =IF(V191>#REF!,"",$T$7) ->  | X191: =IF(V191>=#REF!,"",IF(V191<=#REF!,#REF!,#REF!)) ->  | Y191: =IF(V191>#REF!,"",#REF!) ->  | AG191: 184
A192: 185 | B192: =IF(A192>=#REF!,"",IF(A192<=#REF!,#REF!,#REF!)) ->  | C192: =IF(A192>=#REF!,"",IF(A192<=#REF!,#REF!,#REF!)) ->  | D192: =IF(A192>#REF!,"",#REF!) ->  | F192: 185 | G192: =IF(F192>=#REF!,"",IF(F192<=#REF!,#REF!,#REF!)) ->  | H192: =IF(F192>=#REF!,"",IF(F192<=#REF!,#REF!,#REF!)) ->  | I192: =IF(F192>#REF!,"",PMT(#REF!/12,#REF!,-#REF!)) ->  | N192: 185 | O192: =IF(N192>#REF!,"",$L$7) ->  | P192: =IF(N192>=#REF!,"",IF(N192<=#REF!,#REF!,#REF!)) ->  | Q192: =IF(N192>#REF!,"",#REF!) ->  | V192: 185 | W192: =IF(V192>#REF!,"",$T$7) ->  | X192: =IF(V192>=#REF!,"",IF(V192<=#REF!,#REF!,#REF!)) ->  | Y192: =IF(V192>#REF!,"",#REF!) ->  | AG192: 185
A193: 186 | B193: =IF(A193>=#REF!,"",IF(A193<=#REF!,#REF!,#REF!)) ->  | C193: =IF(A193>=#REF!,"",IF(A193<=#REF!,#REF!,#REF!)) ->  | D193: =IF(A193>#REF!,"",#REF!) ->  | F193: 186 | G193: =IF(F193>=#REF!,"",IF(F193<=#REF!,#REF!,#REF!)) ->  | H193: =IF(F193>=#REF!,"",IF(F193<=#REF!,#REF!,#REF!)) ->  | I193: =IF(F193>#REF!,"",PMT(#REF!/12,#REF!,-#REF!)) ->  | N193: 186 | O193: =IF(N193>#REF!,"",$L$7) ->  | P193: =IF(N193>=#REF!,"",IF(N193<=#REF!,#REF!,#REF!)) ->  | Q193: =IF(N193>#REF!,"",#REF!) ->  | V193: 186 | W193: =IF(V193>#REF!,"",$T$7) ->  | X193: =IF(V193>=#REF!,"",IF(V193<=#REF!,#REF!,#REF!)) ->  | Y193: =IF(V193>#REF!,"",#REF!) ->  | AG193: 186
A194: 187 | B194: =IF(A194>=#REF!,"",IF(A194<=#REF!,#REF!,#REF!)) ->  | C194: =IF(A194>=#REF!,"",IF(A194<=#REF!,#REF!,#REF!)) ->  | D194: =IF(A194>#REF!,"",#REF!) ->  | F194: 187 | G194: =IF(F194>=#REF!,"",IF(F194<=#REF!,#REF!,#REF!)) ->  | H194: =IF(F194>=#REF!,"",IF(F194<=#REF!,#REF!,#REF!)) ->  | I194: =IF(F194>#REF!,"",PMT(#REF!/12,#REF!,-#REF!)) ->  | N194: 187 | O194: =IF(N194>#REF!,"",$L$7) ->  | P194: =IF(N194>=#REF!,"",IF(N194<=#REF!,#REF!,#REF!)) ->  | Q194: =IF(N194>#REF!,"",#REF!) ->  | V194: 187 | W194: =IF(V194>#REF!,"",$T$7) ->  | X194: =IF(V194>=#REF!,"",IF(V194<=#REF!,#REF!,#REF!)) ->  | Y194: =IF(V194>#REF!,"",#REF!) ->  | AG194: 187
A195: 188 | B195: =IF(A195>=#REF!,"",IF(A195<=#REF!,#REF!,#REF!)) ->  | C195: =IF(A195>=#REF!,"",IF(A195<=#REF!,#REF!,#REF!)) ->  | D195: =IF(A195>#REF!,"",#REF!) ->  | F195: 188 | G195: =IF(F195>=#REF!,"",IF(F195<=#REF!,#REF!,#REF!)) ->  | H195: =IF(F195>=#REF!,"",IF(F195<=#REF!,#REF!,#REF!)) ->  | I195: =IF(F195>#REF!,"",PMT(#REF!/12,#REF!,-#REF!)) ->  | N195: 188 | O195: =IF(N195>#REF!,"",$L$7) ->  | P195: =IF(N195>=#REF!,"",IF(N195<=#REF!,#REF!,#REF!)) ->  | Q195: =IF(N195>#REF!,"",#REF!) ->  | V195: 188 | W195: =IF(V195>#REF!,"",$T$7) ->  | X195: =IF(V195>=#REF!,"",IF(V195<=#REF!,#REF!,#REF!)) ->  | Y195: =IF(V195>#REF!,"",#REF!) ->  | AG195: 188
A196: 189 | B196: =IF(A196>=#REF!,"",IF(A196<=#REF!,#REF!,#REF!)) ->  | C196: =IF(A196>=#REF!,"",IF(A196<=#REF!,#REF!,#REF!)) ->  | D196: =IF(A196>#REF!,"",#REF!) ->  | F196: 189 | G196: =IF(F196>=#REF!,"",IF(F196<=#REF!,#REF!,#REF!)) ->  | H196: =IF(F196>=#REF!,"",IF(F196<=#REF!,#REF!,#REF!)) ->  | I196: =IF(F196>#REF!,"",PMT(#REF!/12,#REF!,-#REF!)) ->  | N196: 189 | O196: =IF(N196>#REF!,"",$L$7) ->  | P196: =IF(N196>=#REF!,"",IF(N196<=#REF!,#REF!,#REF!)) ->  | Q196: =IF(N196>#REF!,"",#REF!) ->  | V196: 189 | W196: =IF(V196>#REF!,"",$T$7) ->  | X196: =IF(V196>=#REF!,"",IF(V196<=#REF!,#REF!,#REF!)) ->  | Y196: =IF(V196>#REF!,"",#REF!) ->  | AG196: 189
A197: 190 | B197: =IF(A197>=#REF!,"",IF(A197<=#REF!,#REF!,#REF!)) ->  | C197: =IF(A197>=#REF!,"",IF(A197<=#REF!,#REF!,#REF!)) ->  | D197: =IF(A197>#REF!,"",#REF!) ->  | F197: 190 | G197: =IF(F197>=#REF!,"",IF(F197<=#REF!,#REF!,#REF!)) ->  | H197: =IF(F197>=#REF!,"",IF(F197<=#REF!,#REF!,#REF!)) ->  | I197: =IF(F197>#REF!,"",PMT(#REF!/12,#REF!,-#REF!)) ->  | N197: 190 | O197: =IF(N197>#REF!,"",$L$7) ->  | P197: =IF(N197>=#REF!,"",IF(N197<=#REF!,#REF!,#REF!)) ->  | Q197: =IF(N197>#REF!,"",#REF!) ->  | V197: 190 | W197: =IF(V197>#REF!,"",$T$7) ->  | X197: =IF(V197>=#REF!,"",IF(V197<=#REF!,#REF!,#REF!)) ->  | Y197: =IF(V197>#REF!,"",#REF!) ->  | AG197: 190
A198: 191 | B198: =IF(A198>=#REF!,"",IF(A198<=#REF!,#REF!,#REF!)) ->  | C198: =IF(A198>=#REF!,"",IF(A198<=#REF!,#REF!,#REF!)) ->  | D198: =IF(A198>#REF!,"",#REF!) ->  | F198: 191 | G198: =IF(F198>=#REF!,"",IF(F198<=#REF!,#REF!,#REF!)) ->  | H198: =IF(F198>=#REF!,"",IF(F198<=#REF!,#REF!,#REF!)) ->  | I198: =IF(F198>#REF!,"",PMT(#REF!/12,#REF!,-#REF!)) ->  | N198: 191 | O198: =IF(N198>#REF!,"",$L$7) ->  | P198: =IF(N198>=#REF!,"",IF(N198<=#REF!,#REF!,#REF!)) ->  | Q198: =IF(N198>#REF!,"",#REF!) ->  | V198: 191 | W198: =IF(V198>#REF!,"",$T$7) ->  | X198: =IF(V198>=#REF!,"",IF(V198<=#REF!,#REF!,#REF!)) ->  | Y198: =IF(V198>#REF!,"",#REF!) ->  | AG198: 191
A199: 192 | B199: =IF(A199>=#REF!,"",IF(A199<=#REF!,#REF!,#REF!)) ->  | C199: =IF(A199>=#REF!,"",IF(A199<=#REF!,#REF!,#REF!)) ->  | D199: =IF(A199>#REF!,"",#REF!) ->  | F199: 192 | G199: =IF(F199>=#REF!,"",IF(F199<=#REF!,#REF!,#REF!)) ->  | H199: =IF(F199>=#REF!,"",IF(F199<=#REF!,#REF!,#REF!)) ->  | I199: =IF(F199>#REF!,"",PMT(#REF!/12,#REF!,-#REF!)) ->  | N199: 192 | O199: =IF(N199>#REF!,"",$L$7) ->  | P199: =IF(N199>=#REF!,"",IF(N199<=#REF!,#REF!,#REF!)) ->  | Q199: =IF(N199>#REF!,"",#REF!) ->  | V199: 192 | W199: =IF(V199>#REF!,"",$T$7) ->  | X199: =IF(V199>=#REF!,"",IF(V199<=#REF!,#REF!,#REF!)) ->  | Y199: =IF(V199>#REF!,"",#REF!) ->  | AG199: 192
A200: 193 | B200: =IF(A200>=#REF!,"",IF(A200<=#REF!,#REF!,#REF!)) ->  | C200: =IF(A200>=#REF!,"",IF(A200<=#REF!,#REF!,#REF!)) ->  | D200: =IF(A200>#REF!,"",#REF!) ->  | F200: 193 | G200: =IF(F200>=#REF!,"",IF(F200<=#REF!,#REF!,#REF!)) ->  | H200: =IF(F200>=#REF!,"",IF(F200<=#REF!,#REF!,#REF!)) ->  | I200: =IF(F200>#REF!,"",PMT(#REF!/12,#REF!,-#REF!)) ->  | N200: 193 | O200: =IF(N200>#REF!,"",$L$7) ->  | P200: =IF(N200>=#REF!,"",IF(N200<=#REF!,#REF!,#REF!)) ->  | Q200: =IF(N200>#REF!,"",#REF!) ->  | V200: 193 | W200: =IF(V200>#REF!,"",$T$7) ->  | X200: =IF(V200>=#REF!,"",IF(V200<=#REF!,#REF!,#REF!)) ->  | Y200: =IF(V200>#REF!,"",#REF!) ->  | AG200: 193
A201: 194 | B201: =IF(A201>=#REF!,"",IF(A201<=#REF!,#REF!,#REF!)) ->  | C201: =IF(A201>=#REF!,"",IF(A201<=#REF!,#REF!,#REF!)) ->  | D201: =IF(A201>#REF!,"",#REF!) ->  | F201: 194 | G201: =IF(F201>=#REF!,"",IF(F201<=#REF!,#REF!,#REF!)) ->  | H201: =IF(F201>=#REF!,"",IF(F201<=#REF!,#REF!,#REF!)) ->  | I201: =IF(F201>#REF!,"",PMT(#REF!/12,#REF!,-#REF!)) ->  | N201: 194 | O201: =IF(N201>#REF!,"",$L$7) ->  | P201: =IF(N201>=#REF!,"",IF(N201<=#REF!,#REF!,#REF!)) ->  | Q201: =IF(N201>#REF!,"",#REF!) ->  | V201: 194 | W201: =IF(V201>#REF!,"",$T$7) ->  | X201: =IF(V201>=#REF!,"",IF(V201<=#REF!,#REF!,#REF!)) ->  | Y201: =IF(V201>#REF!,"",#REF!) ->  | AG201: 194
A202: 195 | B202: =IF(A202>=#REF!,"",IF(A202<=#REF!,#REF!,#REF!)) ->  | C202: =IF(A202>=#REF!,"",IF(A202<=#REF!,#REF!,#REF!)) ->  | D202: =IF(A202>#REF!,"",#REF!) ->  | F202: 195 | G202: =IF(F202>=#REF!,"",IF(F202<=#REF!,#REF!,#REF!)) ->  | H202: =IF(F202>=#REF!,"",IF(F202<=#REF!,#REF!,#REF!)) ->  | I202: =IF(F202>#REF!,"",PMT(#REF!/12,#REF!,-#REF!)) ->  | N202: 195 | O202: =IF(N202>#REF!,"",$L$7) ->  | P202: =IF(N202>=#REF!,"",IF(N202<=#REF!,#REF!,#REF!)) ->  | Q202: =IF(N202>#REF!,"",#REF!) ->  | V202: 195 | W202: =IF(V202>#REF!,"",$T$7) ->  | X202: =IF(V202>=#REF!,"",IF(V202<=#REF!,#REF!,#REF!)) ->  | Y202: =IF(V202>#REF!,"",#REF!) ->  | AG202: 195
A203: 196 | B203: =IF(A203>=#REF!,"",IF(A203<=#REF!,#REF!,#REF!)) ->  | C203: =IF(A203>=#REF!,"",IF(A203<=#REF!,#REF!,#REF!)) ->  | D203: =IF(A203>#REF!,"",#REF!) ->  | F203: 196 | G203: =IF(F203>=#REF!,"",IF(F203<=#REF!,#REF!,#REF!)) ->  | H203: =IF(F203>=#REF!,"",IF(F203<=#REF!,#REF!,#REF!)) ->  | I203: =IF(F203>#REF!,"",PMT(#REF!/12,#REF!,-#REF!)) ->  | N203: 196 | O203: =IF(N203>#REF!,"",$L$7) ->  | P203: =IF(N203>=#REF!,"",IF(N203<=#REF!,#REF!,#REF!)) ->  | Q203: =IF(N203>#REF!,"",#REF!) ->  | V203: 196 | W203: =IF(V203>#REF!,"",$T$7) ->  | X203: =IF(V203>=#REF!,"",IF(V203<=#REF!,#REF!,#REF!)) ->  | Y203: =IF(V203>#REF!,"",#REF!) ->  | AG203: 196
A204: 197 | B204: =IF(A204>=#REF!,"",IF(A204<=#REF!,#REF!,#REF!)) ->  | C204: =IF(A204>=#REF!,"",IF(A204<=#REF!,#REF!,#REF!)) ->  | D204: =IF(A204>#REF!,"",#REF!) ->  | F204: 197 | G204: =IF(F204>=#REF!,"",IF(F204<=#REF!,#REF!,#REF!)) ->  | H204: =IF(F204>=#REF!,"",IF(F204<=#REF!,#REF!,#REF!)) ->  | I204: =IF(F204>#REF!,"",PMT(#REF!/12,#REF!,-#REF!)) ->  | N204: 197 | O204: =IF(N204>#REF!,"",$L$7) ->  | P204: =IF(N204>=#REF!,"",IF(N204<=#REF!,#REF!,#REF!)) ->  | Q204: =IF(N204>#REF!,"",#REF!) ->  | V204: 197 | W204: =IF(V204>#REF!,"",$T$7) ->  | X204: =IF(V204>=#REF!,"",IF(V204<=#REF!,#REF!,#REF!)) ->  | Y204: =IF(V204>#REF!,"",#REF!) ->  | AG204: 197
A205: 198 | B205: =IF(A205>=#REF!,"",IF(A205<=#REF!,#REF!,#REF!)) ->  | C205: =IF(A205>=#REF!,"",IF(A205<=#REF!,#REF!,#REF!)) ->  | D205: =IF(A205>#REF!,"",#REF!) ->  | F205: 198 | G205: =IF(F205>=#REF!,"",IF(F205<=#REF!,#REF!,#REF!)) ->  | H205: =IF(F205>=#REF!,"",IF(F205<=#REF!,#REF!,#REF!)) ->  | I205: =IF(F205>#REF!,"",PMT(#REF!/12,#REF!,-#REF!)) ->  | N205: 198 | O205: =IF(N205>#REF!,"",$L$7) ->  | P205: =IF(N205>=#REF!,"",IF(N205<=#REF!,#REF!,#REF!)) ->  | Q205: =IF(N205>#REF!,"",#REF!) ->  | V205: 198 | W205: =IF(V205>#REF!,"",$T$7) ->  | X205: =IF(V205>=#REF!,"",IF(V205<=#REF!,#REF!,#REF!)) ->  | Y205: =IF(V205>#REF!,"",#REF!) ->  | AG205: 198
... 402 more rows
